Workbook

Sheet Predikce
B3: Porovnání teplot v ČR s dlouhodobým normálem
B4: Rok | C4: 2010 | D4: 2011 | E4: 2012 | F4: 2013 | G4: 2014 | H4: 2015 | I4: 2016 | J4: 2017 | K4: 2018 | L4: 2019
B5: Teplota vzduchu [°C] | C5: 7.2 | D5: 8.5 | E5: 8.3 | F5: 7.9 | G5: 9.4 | H5: 9.4 | I5: 8.7 | J5: 8.6 | K5: 9.6 | L5: 9.5
B6: Dlouhodobý normál 1981 - 2010 [°C] | C6: 7.9 | D6: 7.9 | E6: 7.9 | F6: 7.9 | G6: 7.9 | H6: 7.9 | I6: 7.9 | J6: 7.9 | K6: 7.9 | L6: 7.9
B8: Porovnání teplot v topné sezóně leden - květen, září - prosinec s dlouhodobým normálem
B9: Rok | C9: 2010 | D9: 2011 | E9: 2012 | F9: 2013 | G9: 2014 | H9: 2015 | I9: 2016 | J9: 2017 | K9: 2018 | L9: 2019
B10: Teplota vzduchu [°C] | C10: 3.7 | D10: 5.7 | E10: 5.2 | F10: 4.7 | G10: 6.9 | H10: 6.1 | I10: 5.7 | J10: 5.3 | K10: 6.4 | L10: 6.2
B11: Dlouhodobý normál 1981 - 2010 [°C] | C11: 4.9 | D11: 4.9 | E11: 4.9 | F11: 4.9 | G11: 4.9 | H11: 4.9 | I11: 4.9 | J11: 4.9 | K11: 4.9 | L11: 4.9
B13: Vývoj denostupňů v národní a mezinárodní metodice
B14: Rok | C14: 2010 | D14: 2011 | E14: 2012 | F14: 2013 | G14: 2014 | H14: 2015 | I14: 2016 | J14: 2017 | K14: 2018 | L14: 2019
B15: D 21/13 [D.K] | C15: 4567 | D15: 3970 | E15: 4208 | F15: 4310 | G15: 3611 | H15: 3892 | I15: 4053 | J15: 4138 | K15: 3684 | L15: 3832
B16: D 18/15 [D.K] | C16: 3832 | D16: 3234 | E16: 3399 | F16: 3512 | G16: 2918 | H16: 3090 | I16: 3247 | J16: 3310 | K16: 2996 | L16: 2998
B17: Normál za rok 2010 - 2018 | C17: 3397 | D17: 3397 | E17: 3397 | F17: 3397 | G17: 3397 | H17: 3397 | I17: 3397 | J17: 3397 | K17: 3397 | L17: 3397
B18: Normovaná spotřeba | C18: =C58/C15*C17 -> 89668.30392 | D18: 105816.1222 | E18: 89172.86454 | F18: 87475.50858 | G18: 91369.04597 | H18: 86580.73201 | I18: 87919.6906 | J18: 83898.01909 | K18: 90207.6854 | L18: 85427.63544
B19: Rozdíl celkové spotřeby a normované | C19: =C58-C18 -> 30883.69608 | D19: 17848.87783 | E19: 21289.13546 | F19: 23510.49142 | G19: 5755.954029 | H19: 12616.26799 | I19: 16978.3094 | J19: 18300.98091 | K19: 7621.314604 | L19: 10939.36456
B20: Potencionální úspora | C20: =C19/C58 -> 0.2561856799 | D20: =D19/D58 -> 0.1443324937 | E20: 0.1927281369 | F20: 0.2118329466 | G20: 0.05926336195 | H20: 0.1271839671 | I20: 0.1618554157 | J20: 0.1790720155 | K20: 0.07790445168 | L20: 0.1135177453
B22: Prodané teplo [TJ]
B23: Rok | C23: 2010 | D23: 2011 | E23: 2012 | F23: 2013 | G23: 2014 | H23: 2015 | I23: 2016 | J23: 2017 | K23: 2018 | L23: 2019
B24: Jaderná energetika
B25: Jaderné teplo | C25: 251 | D25: 229 | E25: 218 | F25: 245 | G25: 217 | H25: 225 | I25: 216 | J25: 248 | K25: 237 | L25: 234
B26: Uhelná energetika
B27: Černé uhlí | C27: 18468 | D27: 15361 | E27: 15350 | F27: 14845 | G27: 11736 | H27: 13426 | I27: 13081 | J27: 13202 | K27: 11268 | L27: 9991
B28: Hnědé uhlí | C28: 56026 | D28: 49389 | E28: 49915 | F28: 49040 | G28: 43284 | H28: 43251 | I28: 45434 | J28: 42849 | K28: 40844 | L28: 40099
B29: Koks | C29: 7 | D29: 7 | E29: 2 | F29: 4 | G29: 2 | H29: 1 | I29: 0 | J29: 1 | K29: 0 | L29: 0
B30: Uhelný dehet | C30: 156 | D30: 50 | E30: 58 | F30: 51 | G30: 81 | H30: 94 | I30: 106 | J30: 129 | K30: 103 | L30: 74
B31: Hnědouhelné brikety | C31: 10 | D31: 0 | E31: 0 | F31: 0 | G31: 0 | H31: 1 | I31: 1 | J31: 5 | K31: 5 | L31: 5
B32: Koksárenský plyn | C32: 1710 | D32: 16533 | E32: 1518 | F32: 1602 | G32: 1417 | H32: 1330 | I32: 1370 | J32: 1543 | K32: 1387 | L32: 1271
B33: Energoplyn | C33: 41 | D33: 38 | E33: 31 | F33: 43 | G33: 2 | H33: 2 | I33: 127 | J33: 89 | K33: 118 | L33: 305
B34: Vysokopecní plyn | C34: 1931 | D34: 1243 | E34: 1179 | F34: 1494 | G34: 1186 | H34: 1117 | I34: 1076 | J34: 987 | K34: 949 | L34: 860
B35: Ostatní uhelné plyny | C35: 233 | D35: 177 | E35: 194 | F35: 195 | G35: 186 | H35: 171 | I35: 198 | J35: 207 | K35: 196 | L35: 170
B36: Celkem uhelná energetika | C36: =SUM(C27:C35) -> 78582 | D36: =SUM(D27:D35) -> 82798 | E36: 68247 | F36: 67274 | G36: 57894 | H36: 59393 | I36: 61393 | J36: 59012 | K36: 54870 | L36: 52775
B37: Plynná energetika
B38: Zemní a degazační plyn | C38: 33992 | D38: 30994 | E38: 32745 | F38: 33482 | G38: 28094 | H38: 28060 | I38: 31606 | J38: 30972 | K38: 30973 | L38: 30926
B39: Ropná energetika
B40: Rafinérský plyn | C40: 147 | D40: 530 | E40: 747 | F40: 584 | G40: 642 | H40: 413 | I40: 344 | J40: 464 | K40: 558 | L40: 654
B41: LPG a zbytkový plyn | C41: 74 | D41: 296 | E41: 298 | F41: 271 | G41: 256 | H41: 210 | I41: 195 | J41: 278 | K41: 310 | L41: 295
B42: Topné oleje | C42: 1797 | D42: 1972 | E42: 1104 | F42: 445 | G42: 333 | H42: 379 | I42: 379 | J42: 334 | K42: 140 | L42: 142
B43: Ostatní ropná paliva | C43: 24 | D43: 5 | E43: 0 | F43: 0 | G43: 0 | H43: 0 | I43: 0 | J43: 0 | K43: 0 | L43: 0
B44: Celkem ropná energetika | C44: =SUM(C40:C43) -> 2042 | D44: =SUM(D40:D43) -> 2803 | E44: 2149 | F44: 1300 | G44: 1231 | H44: 1002 | I44: 918 | J44: 1076 | K44: 1008 | L44: 1091
B45: Obnovitelná energetika
B46: Biomasa | C46: 2035 | D46: 2517 | E46: 2431 | F46: 3936 | G46: 4629 | H46: 5474 | I46: 5778 | J46: 6291 | K46: 5966 | L46: 6756
B47: Bioplyn | C47: 227 | D47: 270 | E47: 323 | F47: 411 | G47: 508 | H47: 535 | I47: 503 | J47: 516 | K47: 537 | L47: 538
B48: Tuhý komunální odpad (obnovitelný) | C48: 1011 | D48: 1343 | E48: 1439 | F48: 1434 | G48: 1504 | H48: 1477 | I48: 1540 | J48: 1573 | K48: 1543 | L48: 1522
B49: Tepelná čerpadla | C49: 94 | D49: 77 | E49: 80 | F49: 69 | G49: 78 | H49: 68 | I49: 59 | J49: 80 | K49: 85 | L49: 109 | Q49: =SUM(Q50:Q56) -> 96367
B50: Celkem obnovitelná energetika | C50: =SUM(C46:C49) -> 3367 | D50: =SUM(D46:D49) -> 4207 | E50: 4273 | F50: 5850 | G50: 6719 | H50: 7554 | I50: 7880 | J50: 8460 | K50: 8131 | L50: 8925 | P50: Jaderná energetika | Q50: =L25 -> 234 | R50: =Q50/$Q$49 -> 0.002428217128
B51: Ostatní | P51: Uhelná energetika | Q51: =L36 -> 52775 | R51: =Q51/$Q$49 -> 0.5476459784
B52: Tuhý komunální odpad (neobnovitelný) | C52: 674 | D52: 895 | E52: 960 | F52: 956 | G52: 1003 | H52: 985 | I52: 1027 | J52: 1049 | K52: 1029 | L52: 1014 | P52: Plynná energetika | Q52: =L38 -> 30926 | R52: 0.3209189868
B53: Průmyslový odpad | C53: 257 | D53: 334 | E53: 308 | F53: 289 | G53: 312 | H53: 338 | I53: 396 | J53: 378 | K53: 351 | L53: 345 | P53: Ropná energetika | Q53: =L44 -> 1091 | R53: 0.01132130294
B54: Teplo z chemických procesů | C54: 0 | D54: 0 | E54: 0 | F54: 0 | G54: 26 | H54: 32 | I54: 24 | J54: 27 | K54: 352 | L54: 274 | P54: Obnovitelná energetika | Q54: =L50 -> 8925 | R54: 0.09261469175
B55: Elektrické kotle | C55: 6 | D55: 6 | E55: 8 | F55: 9 | G55: 8 | H55: 5 | I55: 6 | J55: 12 | K55: 13 | L55: 17 | P55: Ostatní | Q55: =L57 -> 1402 | R55: 0.01454854878
B56: Jiné zdroje | C56: 1381 | D56: 1399 | E56: 1554 | F56: 1581 | G56: 1621 | H56: 1603 | I56: 1432 | J56: 965 | K56: 865 | L56: 766 | P56: Komunální odpad | Q56: =L52 -> 1014 | R56: 0.01052227422
B57: Celkem ostatní | C57: =SUM(C52:C56) -> 2318 | D57: =SUM(D52:D56) -> 2634 | E57: 2830 | F57: 2835 | G57: 2970 | H57: 2963 | I57: 2885 | J57: 2431 | K57: 2610 | L57: =SUM(L53:L56) -> 1402
B58: Celkem | C58: =C25+C36+C38+C44+C50+C57 -> 120552 | D58: =D25+D36+D38+D44+D50+D57 -> 123665 | E58: 110462 | F58: 110986 | G58: 97125 | H58: 99197 | I58: 104898 | J58: 102199 | K58: 97829 | L58: =L25+L36+L38+L44+L50+L57+L52 -> 96367
B63: Produkce komunálního odpadu | C63: 2010 | D63: 2011 | E63: 2012 | F63: 2013 | G63: 2014 | H63: 2015 | I63: 2016 | J63: 2017 | K63: 2018 | L63: 2019
B64: Kraj/Jednotky | C64: [t] | D64: [t] | E64: [t] | F64: [t] | G64: [t] | H64: [t] | I64: [t] | J64: [t] | K64: [t] | L64: [t]
B65: Hlavní město Praha | C65: 372145.173 | D65: 379557.14 | E65: 377981.641 | F65: 377771.781 | G65: 376249.632 | H65: 462318 | I65: 463024 | J65: 470776 | K65: 492794 | L65: 525690
B66: Středočeský kraj | C66: 523201.023 | D66: 657447.5977 | E66: 482589.114 | F66: 482253.4229 | G66: 464289.1967 | H66: 514226 | I66: 521950 | J66: 546531 | K66: 540964 | L66: 563466
B67: Jihočeský kraj | C67: 217917.508 | D67: 197130.1965 | E67: 197713.301 | F67: 200282.7926 | G67: 207288.7096 | H67: 316784 | I67: 332410 | J67: 336749 | K67: 361026 | L67: 385199
B68: Plzeňský kraj | C68: 136903.896 | D68: 137204.7315 | E68: 138931.779 | F68: 132252.0706 | G68: 144477.7933 | H68: 162260 | I68: 168735 | J68: 164292 | K68: 158184 | L68: 165862
B69: Karlovarský kraj | C69: 92660.856 | D69: 94299.99978 | E69: 86332.42 | F69: 86896.11363 | G69: 92044.7852 | H69: 126742 | I69: 127570 | J69: 127968 | K69: 114381 | L69: 125855
B70: Ústecký kraj | C70: 256230.509 | D70: 264725.8977 | E70: 263476.359 | F70: 269896.9827 | G70: 261880.0168 | H70: 192312 | I70: 191770 | J70: 205294 | K70: 248078 | L70: 255846
B71: Liberecký kraj | C71: 123892.355 | D71: 125775.7109 | E71: 121060.3 | F71: 116272.9691 | G71: 119118.3833 | H71: 204360 | I71: 205065 | J71: 206329 | K71: 222882 | L71: 276524
B72: Královehradecký kraj | C72: 148224.962 | D72: 153302.6943 | E72: 151872.084 | F72: 151911.6096 | G72: 150330.5611 | H72: 280618 | I72: 283124 | J72: 288681 | K72: 311241 | L72: 327894
B73: Pardubický kraj | C73: 176497.657 | D73: 140779.7677 | E73: 151861.186 | F73: 154001.4515 | G73: 156313.0596 | H73: 248711 | I73: 248073 | J73: 257534 | K73: 301888 | L73: 303842
B74: Kraj Vysočina | C74: 155267.586 | D74: 159196.3774 | E74: 166682.735 | F74: 162187.6777 | G74: 167963.6497 | H74: 260809 | I74: 265412 | J74: 271049 | K74: 311243 | L74: 327016
B75: Jihomoravský kraj | C75: 340990.613 | D75: 324369.5457 | E75: 323528.625 | F75: 336149.1871 | G75: 344784.8437 | H75: 319003 | I75: 330745 | J75: 344849 | K75: 343049 | L75: 359856
B76: Olomoucký kraj | C76: 197099.601 | D76: 191633.4535 | E76: 203126.382 | F76: 196246.4315 | G76: 198533.9346 | H76: 218505 | I76: 234328 | J76: 237518 | K76: 219623 | L76: 252058
B77: Zlínský kraj | C77: 175948.402 | D77: 171682.9087 | E77: 176705.179 | F77: 174388.3132 | G77: 180321.5636 | H77: 265120 | I77: 258038 | J77: 267923 | K77: 228765 | L77: 232868
B78: Moravskoslezský kraj | C78: 417259.641 | D78: 360770.5048 | E78: 390782.215 | F78: 387721.4579 | G78: 396984.6305 | H78: 404745 | I78: 417406 | J78: 412030 | K78: 408462 | L78: 431032
B79: Celkem | C79: =SUM(C65:C78) -> 3334239.782 | D79: =SUM(D65:D78) -> 3357876.526 | E79: =SUM(E65:E78) -> 3232643.32 | F79: 3228232.261 | G79: 3260580.76 | H79: =SUM(H65:H78) -> 3976513 | I79: =SUM(I65:I78) -> 4047650 | J79: =SUM(J65:J78) -> 4137523 | K79: =SUM(K65:K78) -> 4262580 | L79: =SUM(L65:L78) -> 4533008
B81: Hrubý domácí produkt České republiky | C81: 2010 | D81: 2011 | E81: 2012 | F81: 2013 | G81: 2014 | H81: 2015 | I81: 2016 | J81: 2017 | K81: 2018 | L81: 2019
B82: [mil. Kč] | C82: 273111 | D82: 276145.75 | E82: 269457.75 | F82: 259062.25 | G82: 282584.75 | H82: 323582.75 | I82: 312084.25 | J82: 336946.5 | K82: 367889 | L82: 399715.25

Sheet Technický model
N3: 0 | O3: 1 | P3: 2 | Q3: 3 | R3: 4 | S3: 5 | T3: 6 | U3: 7 | V3: 8 | W3: 9 | X3: 10 | Y3: 11 | Z3: 12 | AA3: 13 | AB3: 14 | AC3: 15 | AD3: 16 | AE3: 17 | AF3: 18 | AG3: 19 | AH3: 20 | AI3: 21 | AJ3: 22 | AK3: 23 | AL3: 24 | AM3: 25 | AN3: 26 | AO3: 27 | AP3: 28 | AQ3: 29 | AR3: 30 | AS3: 31 | AT3: 32 | AU3: 33 | AV3: 34 | AW3: 35
C4: Parametry | F4: Jednotky | G4: Hodnoty | J4: Rok | M4: Jednotky | N4: 2027 | O4: 2028 | P4: 2029 | Q4: 2030 | R4: 2031 | S4: 2032 | T4: 2033 | U4: 2034 | V4: 2035 | W4: 2036 | X4: 2037 | Y4: 2038 | Z4: 2039 | AA4: 2040 | AB4: 2041 | AC4: 2042 | AD4: 2043 | AE4: 2044 | AF4: 2045 | AG4: 2046 | AH4: 2047 | AI4: 2048 | AJ4: 2049 | AK4: 2050 | AL4: 2051 | AM4: 2052 | AN4: 2053 | AO4: 2054 | AP4: 2055 | AQ4: 2056 | AR4: 2057 | AS4: 2058 | AT4: 2059 | AU4: 2060 | AV4: 2061 | AW4: 2062
B5: Hlavní parametry | C5: Množství odpadu za rok | F5: [t] | G5: 90000 | J5: Počet hodin v roce | M5: [h] | N5: 8760 | O5: 8784 | P5: 8760 | Q5: 8760 | R5: 8760 | S5: 8784 | T5: 8760 | U5: 8760 | V5: 8760 | W5: 8784 | X5: 8760 | Y5: 8760 | Z5: 8760 | AA5: 8784 | AB5: 8760 | AC5: 8760 | AD5: 8760 | AE5: 8784 | AF5: 8760 | AG5: 8760 | AH5: 8760 | AI5: 8784 | AJ5: 8760 | AK5: 8760 | AL5: 8760 | AM5: 8784 | AN5: 8760 | AO5: 8760 | AP5: 8760 | AQ5: 8784 | AR5: 8760 | AS5: 8760 | AT5: 8760 | AU5: 8784 | AV5: 8760 | AW5: 8760
C6: Předpoklad počtu hodin provozu za rok | F6: [%] | G6: 0.93 | J6: Předpokládaný počet hodin provozu | M6: [h] | N6: =N5*0.93 -> 8146.8 | O6: =O5*$G$6 -> 8169.12 | P6: 8146.8 | Q6: 8146.8 | R6: 8146.8 | S6: 8169.12 | T6: 8146.8 | U6: 8146.8 | V6: 8146.8 | W6: 8169.12 | X6: 8146.8 | Y6: 8146.8 | Z6: 8146.8 | AA6: 8169.12 | AB6: 8146.8 | AC6: 8146.8 | AD6: 8146.8 | AE6: 8169.12 | AF6: 8146.8 | AG6: 8146.8 | AH6: 8146.8 | AI6: 8169.12 | AJ6: 8146.8 | AK6: 8146.8 | AL6: 8146.8 | AM6: 8169.12 | AN6: 8146.8 | AO6: 8146.8 | AP6: 8146.8 | AQ6: 8169.12 | AR6: 8146.8 | AS6: 8146.8 | AT6: 8146.8 | AU6: 8169.12 | AV6: 8146.8 | AW6: 8146.8
C7: Výroba elektřiny | F7: [MWh/t] | G7: 0.3 | J7: Vstup
C8: Výhřevnost odpadu | F8: [GJ/t] | G8: 11 | J8: Vstup materiálu
C9: Výroba páry | F9: [t/t] | G9: 3.4 | J9: Dodávka odpadů | M9: [t] | N9: 0 | O9: =$G$5 -> 90000 | P9: =$G$5 -> 90000 | Q9: =$G$5 -> 90000 | R9: 90000 | S9: 90000 | T9: 90000 | U9: 90000 | V9: 90000 | W9: 90000 | X9: 90000 | Y9: 90000 | Z9: 90000 | AA9: 90000 | AB9: 90000 | AC9: 90000 | AD9: 90000 | AE9: 90000 | AF9: 90000 | AG9: 90000 | AH9: 90000 | AI9: 90000 | AJ9: 90000 | AK9: 90000 | AL9: 90000 | AM9: 90000 | AN9: 90000 | AO9: 90000 | AP9: 90000 | AQ9: 90000 | AR9: 90000 | AS9: 90000 | AT9: 90000 | AU9: 90000 | AV9: 90000 | AW9: 90000
C10: Tepelné ztráty při výrobě | F10: [%] | G10: =AVERAGEA(O46:AW46) -> 0.35 | J10: Energie v palivu | M10: [GJ] | N10: =N9*$G$8 -> 0 | O10: =O9*$G$8 -> 990000 | P10: 990000 | Q10: 990000 | R10: 990000 | S10: 990000 | T10: 990000 | U10: 990000 | V10: 990000 | W10: 990000 | X10: 990000 | Y10: 990000 | Z10: 990000 | AA10: 990000 | AB10: 990000 | AC10: 990000 | AD10: 990000 | AE10: 990000 | AF10: 990000 | AG10: 990000 | AH10: 990000 | AI10: 990000 | AJ10: 990000 | AK10: 990000 | AL10: 990000 | AM10: 990000 | AN10: 990000 | AO10: 990000 | AP10: 990000 | AQ10: 990000 | AR10: 990000 | AS10: 990000 | AT10: 990000 | AU10: 990000 | AV10: 990000 | AW10: 990000
C11: Účinnost teplárny | F11: [%] | G11: 0.85 | M11: [MWh] | N11: =N10/3.6 -> 0 | O11: 275000 | P11: 275000 | Q11: 275000 | R11: 275000 | S11: 275000 | T11: 275000 | U11: 275000 | V11: 275000 | W11: 275000 | X11: 275000 | Y11: 275000 | Z11: 275000 | AA11: 275000 | AB11: 275000 | AC11: 275000 | AD11: 275000 | AE11: 275000 | AF11: 275000 | AG11: 275000 | AH11: 275000 | AI11: 275000 | AJ11: 275000 | AK11: 275000 | AL11: 275000 | AM11: 275000 | AN11: 275000 | AO11: 275000 | AP11: 275000 | AQ11: 275000 | AR11: 275000 | AS11: 275000 | AT11: 275000 | AU11: 275000 | AV11: 275000 | AW11: 275000
B12: Koeficienty vstupní vody | C12: Koeficient spotřeby teplonosné vody | F12: [m3/GJ] | G12: 2 | J12: Spotřeba zemního plynu pro spalování | M12: [m3] | N12: =$G$49*N9 -> 0 | O12: 153900 | P12: 153900 | Q12: 153900 | R12: 153900 | S12: 153900 | T12: 153900 | U12: 153900 | V12: 153900 | W12: 153900 | X12: 153900 | Y12: 153900 | Z12: 153900 | AA12: 153900 | AB12: 153900 | AC12: 153900 | AD12: 153900 | AE12: 153900 | AF12: 153900 | AG12: 153900 | AH12: 153900 | AI12: 153900 | AJ12: 153900 | AK12: 153900 | AL12: 153900 | AM12: 153900 | AN12: 153900 | AO12: 153900 | AP12: 153900 | AQ12: 153900 | AR12: 153900 | AS12: 153900 | AT12: 153900 | AU12: 153900 | AV12: 153900 | AW12: 153900
C13: Koeficient spotřeby výrobní vody | F13: [m3/GJ] | G13: 2.25 | J13: Počet svozových aut za rok | M13: [ks/rok] | N13: =N9/$G$17 -> 0 | O13: 13846.15385 | P13: 13846.15385 | Q13: 13846.15385 | R13: 13846.15385 | S13: 13846.15385 | T13: 13846.15385 | U13: 13846.15385 | V13: 13846.15385 | W13: 13846.15385 | X13: 13846.15385 | Y13: 13846.15385 | Z13: 13846.15385 | AA13: 13846.15385 | AB13: 13846.15385 | AC13: 13846.15385 | AD13: 13846.15385 | AE13: 13846.15385 | AF13: 13846.15385 | AG13: 13846.15385 | AH13: 13846.15385 | AI13: 13846.15385 | AJ13: 13846.15385 | AK13: 13846.15385 | AL13: 13846.15385 | AM13: 13846.15385 | AN13: 13846.15385 | AO13: 13846.15385 | AP13: 13846.15385 | AQ13: 13846.15385 | AR13: 13846.15385 | AS13: 13846.15385 | AT13: 13846.15385 | AU13: 13846.15385 | AV13: 13846.15385 | AW13: 13846.15385
B14: Koeficienty vedlejších materiálů | C14: Tvroba popílku (SPRUK) | F14: [t/t] | G14: 0.4 | J14: Počet svozových aut za hodinu | M14: [ks/h] | N14: =N13/$G$18 -> 0 | O14: 4.741833509 | P14: 4.741833509 | Q14: 4.741833509 | R14: 4.741833509 | S14: 4.741833509 | T14: 4.741833509 | U14: 4.741833509 | V14: 4.741833509 | W14: 4.741833509 | X14: 4.741833509 | Y14: 4.741833509 | Z14: 4.741833509 | AA14: 4.741833509 | AB14: 4.741833509 | AC14: 4.741833509 | AD14: 4.741833509 | AE14: 4.741833509 | AF14: 4.741833509 | AG14: 4.741833509 | AH14: 4.741833509 | AI14: 4.741833509 | AJ14: 4.741833509 | AK14: 4.741833509 | AL14: 4.741833509 | AM14: 4.741833509 | AN14: 4.741833509 | AO14: 4.741833509 | AP14: 4.741833509 | AQ14: 4.741833509 | AR14: 4.741833509 | AS14: 4.741833509 | AT14: 4.741833509 | AU14: 4.741833509 | AV14: 4.741833509 | AW14: 4.741833509
C15: Odpadní voda | F15: [m3/t] | G15: 0.16 | J15: Teplonosná voda | M15: [m3] | N15: =$G$12*N40 -> 0 | O15: =$G$12*O40 -> 1683000 | P15: 1683000 | Q15: 1683000 | R15: 1683000 | S15: 1683000 | T15: 1683000 | U15: 1683000 | V15: 1683000 | W15: 1683000 | X15: 1683000 | Y15: 1683000 | Z15: 1683000 | AA15: 1683000 | AB15: 1683000 | AC15: 1683000 | AD15: 1683000 | AE15: 1683000 | AF15: 1683000 | AG15: 1683000 | AH15: 1683000 | AI15: 1683000 | AJ15: 1683000 | AK15: 1683000 | AL15: 1683000 | AM15: 1683000 | AN15: 1683000 | AO15: 1683000 | AP15: 1683000 | AQ15: 1683000 | AR15: 1683000 | AS15: 1683000 | AT15: 1683000 | AU15: 1683000 | AV15: 1683000 | AW15: 1683000
C16: Separované železo | F16: [t/t] | G16: 0.011 | M16: [l] | N16: =N15*1000 -> 0 | O16: 1683000000 | P16: 1683000000 | Q16: 1683000000 | R16: 1683000000 | S16: 1683000000 | T16: 1683000000 | U16: 1683000000 | V16: 1683000000 | W16: 1683000000 | X16: 1683000000 | Y16: 1683000000 | Z16: 1683000000 | AA16: 1683000000 | AB16: 1683000000 | AC16: 1683000000 | AD16: 1683000000 | AE16: 1683000000 | AF16: 1683000000 | AG16: 1683000000 | AH16: 1683000000 | AI16: 1683000000 | AJ16: 1683000000 | AK16: 1683000000 | AL16: 1683000000 | AM16: 1683000000 | AN16: 1683000000 | AO16: 1683000000 | AP16: 1683000000 | AQ16: 1683000000 | AR16: 1683000000 | AS16: 1683000000 | AT16: 1683000000 | AU16: 1683000000 | AV16: 1683000000 | AW16: 1683000000
B17: Koeficienty svozových aut | C17: Kapacita svovozového vozidla | F17: [t] | G17: 6.5 | J17: Výrobní voda | M17: [m3] | N17: =$G$13*N40 -> 0 | O17: =$G$13*O40 -> 1893375 | P17: =$G$13*P40 -> 1893375 | Q17: =$G$13*Q40 -> 1893375 | R17: 1893375 | S17: 1893375 | T17: 1893375 | U17: 1893375 | V17: 1893375 | W17: 1893375 | X17: 1893375 | Y17: 1893375 | Z17: 1893375 | AA17: 1893375 | AB17: 1893375 | AC17: 1893375 | AD17: 1893375 | AE17: 1893375 | AF17: 1893375 | AG17: 1893375 | AH17: 1893375 | AI17: 1893375 | AJ17: 1893375 | AK17: 1893375 | AL17: 1893375 | AM17: 1893375 | AN17: 1893375 | AO17: 1893375 | AP17: 1893375 | AQ17: 1893375 | AR17: 1893375 | AS17: 1893375 | AT17: 1893375 | AU17: 1893375 | AV17: 1893375 | AW17: 1893375
C18: Pracovní doba svozových aut za rok | F18: [h] | G18: =365*24*(1/3) -> 2920 | M18: [l] | N18: =N17*1000 -> 0 | O18: =O17*1000 -> 1893375000 | P18: 1893375000 | Q18: 1893375000 | R18: 1893375000 | S18: 1893375000 | T18: 1893375000 | U18: 1893375000 | V18: 1893375000 | W18: 1893375000 | X18: 1893375000 | Y18: 1893375000 | Z18: 1893375000 | AA18: 1893375000 | AB18: 1893375000 | AC18: 1893375000 | AD18: 1893375000 | AE18: 1893375000 | AF18: 1893375000 | AG18: 1893375000 | AH18: 1893375000 | AI18: 1893375000 | AJ18: 1893375000 | AK18: 1893375000 | AL18: 1893375000 | AM18: 1893375000 | AN18: 1893375000 | AO18: 1893375000 | AP18: 1893375000 | AQ18: 1893375000 | AR18: 1893375000 | AS18: 1893375000 | AT18: 1893375000 | AU18: 1893375000 | AV18: 1893375000 | AW18: 1893375000
B19: Koeficienty pro energii | C19: Koeficient vlastní spotřeby elektřiny | F19: [%] | G19: 0.3 | I19: Čištění spalin | J19: Hydroxid sodný (50%) | M19: [t] | N19: =N9*$G$23 -> 0 | O19: =O9*$G$23 -> 619.004755 | P19: 619.004755 | Q19: 619.004755 | R19: 619.004755 | S19: 619.004755 | T19: 619.004755 | U19: 619.004755 | V19: 619.004755 | W19: 619.004755 | X19: 619.004755 | Y19: 619.004755 | Z19: 619.004755 | AA19: 619.004755 | AB19: 619.004755 | AC19: 619.004755 | AD19: 619.004755 | AE19: 619.004755 | AF19: 619.004755 | AG19: 619.004755 | AH19: 619.004755 | AI19: 619.004755 | AJ19: 619.004755 | AK19: 619.004755 | AL19: 619.004755 | AM19: 619.004755 | AN19: 619.004755 | AO19: 619.004755 | AP19: 619.004755 | AQ19: 619.004755 | AR19: 619.004755 | AS19: 619.004755 | AT19: 619.004755 | AU19: 619.004755 | AV19: 619.004755 | AW19: 619.004755
C20: Koeficient dodávky tepla do soustavy | F20: [GJ/GJ] | G20: 0.65 | J20: Vápenný hydrát | M20: [t] | N20: =N9*$G$24 -> 0 | O20: =O9*$G$24 -> 160.5744163 | P20: =P9*$G$24 -> 160.5744163 | Q20: 160.5744163 | R20: 160.5744163 | S20: 160.5744163 | T20: 160.5744163 | U20: 160.5744163 | V20: 160.5744163 | W20: 160.5744163 | X20: 160.5744163 | Y20: 160.5744163 | Z20: 160.5744163 | AA20: 160.5744163 | AB20: 160.5744163 | AC20: 160.5744163 | AD20: 160.5744163 | AE20: 160.5744163 | AF20: 160.5744163 | AG20: 160.5744163 | AH20: 160.5744163 | AI20: 160.5744163 | AJ20: 160.5744163 | AK20: 160.5744163 | AL20: 160.5744163 | AM20: 160.5744163 | AN20: 160.5744163 | AO20: 160.5744163 | AP20: 160.5744163 | AQ20: 160.5744163 | AR20: 160.5744163 | AS20: 160.5744163 | AT20: 160.5744163 | AU20: 160.5744163 | AV20: 160.5744163 | AW20: 160.5744163
C21: Koeficient prodeje elektřiny | F21: [%] | G21: 0.7 | J21: Čpavková voda (24%) | M21: [t] | N21: =N9*$G$25 -> 0 | O21: =O9*$G$25 -> 118.2346598 | P21: =P9*$G$25 -> 118.2346598 | Q21: 118.2346598 | R21: 118.2346598 | S21: 118.2346598 | T21: 118.2346598 | U21: 118.2346598 | V21: 118.2346598 | W21: 118.2346598 | X21: 118.2346598 | Y21: 118.2346598 | Z21: 118.2346598 | AA21: 118.2346598 | AB21: 118.2346598 | AC21: 118.2346598 | AD21: 118.2346598 | AE21: 118.2346598 | AF21: 118.2346598 | AG21: 118.2346598 | AH21: 118.2346598 | AI21: 118.2346598 | AJ21: 118.2346598 | AK21: 118.2346598 | AL21: 118.2346598 | AM21: 118.2346598 | AN21: 118.2346598 | AO21: 118.2346598 | AP21: 118.2346598 | AQ21: 118.2346598 | AR21: 118.2346598 | AS21: 118.2346598 | AT21: 118.2346598 | AU21: 118.2346598 | AV21: 118.2346598 | AW21: 118.2346598
C22: Koefecient výroby elektřiny | F22: [%] | G22: 0.1 | J22: Kyselina solná (32%) | M22: [t] | N22: =N9*$G$26 -> 0 | O22: =O9*$G$26 -> 37.71853083 | P22: =P9*$G$26 -> 37.71853083 | Q22: 37.71853083 | R22: 37.71853083 | S22: 37.71853083 | T22: 37.71853083 | U22: 37.71853083 | V22: 37.71853083 | W22: 37.71853083 | X22: 37.71853083 | Y22: 37.71853083 | Z22: 37.71853083 | AA22: 37.71853083 | AB22: 37.71853083 | AC22: 37.71853083 | AD22: 37.71853083 | AE22: 37.71853083 | AF22: 37.71853083 | AG22: 37.71853083 | AH22: 37.71853083 | AI22: 37.71853083 | AJ22: 37.71853083 | AK22: 37.71853083 | AL22: 37.71853083 | AM22: 37.71853083 | AN22: 37.71853083 | AO22: 37.71853083 | AP22: 37.71853083 | AQ22: 37.71853083 | AR22: 37.71853083 | AS22: 37.71853083 | AT22: 37.71853083 | AU22: 37.71853083 | AV22: 37.71853083 | AW22: 37.71853083
B23: Čištění spalin | C23: Koeficient spotřeby hydroxidu sodného | F23: [t/t] | G23: 0.006877830612 | J23: Chlorid železitý (40%) | M23: [t] | N23: =N9*$G$27 -> 0 | O23: =O9*$G$27 -> 24.58018459 | P23: =P9*$G$27 -> 24.58018459 | Q23: 24.58018459 | R23: 24.58018459 | S23: 24.58018459 | T23: 24.58018459 | U23: 24.58018459 | V23: 24.58018459 | W23: 24.58018459 | X23: 24.58018459 | Y23: 24.58018459 | Z23: 24.58018459 | AA23: 24.58018459 | AB23: 24.58018459 | AC23: 24.58018459 | AD23: 24.58018459 | AE23: 24.58018459 | AF23: 24.58018459 | AG23: 24.58018459 | AH23: 24.58018459 | AI23: 24.58018459 | AJ23: 24.58018459 | AK23: 24.58018459 | AL23: 24.58018459 | AM23: 24.58018459 | AN23: 24.58018459 | AO23: 24.58018459 | AP23: 24.58018459 | AQ23: 24.58018459 | AR23: 24.58018459 | AS23: 24.58018459 | AT23: 24.58018459 | AU23: 24.58018459 | AV23: 24.58018459 | AW23: 24.58018459
C24: Koeficient spotřeby vápenného hydrátu | F24: [t/t] | G24: 0.001784160181 | J24: Sulfid sodný | M24: [t] | N24: =N9*$G$28 -> 0 | O24: =O9*$G$28 -> 10.87599067 | P24: =P9*$G$28 -> 10.87599067 | Q24: 10.87599067 | R24: 10.87599067 | S24: 10.87599067 | T24: 10.87599067 | U24: 10.87599067 | V24: 10.87599067 | W24: 10.87599067 | X24: 10.87599067 | Y24: 10.87599067 | Z24: 10.87599067 | AA24: 10.87599067 | AB24: 10.87599067 | AC24: 10.87599067 | AD24: 10.87599067 | AE24: 10.87599067 | AF24: 10.87599067 | AG24: 10.87599067 | AH24: 10.87599067 | AI24: 10.87599067 | AJ24: 10.87599067 | AK24: 10.87599067 | AL24: 10.87599067 | AM24: 10.87599067 | AN24: 10.87599067 | AO24: 10.87599067 | AP24: 10.87599067 | AQ24: 10.87599067 | AR24: 10.87599067 | AS24: 10.87599067 | AT24: 10.87599067 | AU24: 10.87599067 | AV24: 10.87599067 | AW24: 10.87599067
C25: Koeficient spotřeby čpavkové vody | F25: [t/t] | G25: 0.001313718442 | J25: Činidla kotelních vod | M25: [t] | N25: =N9*$G$29 -> 0 | O25: =O9*$G$29 -> 3.508973838 | P25: =P9*$G$29 -> 3.508973838 | Q25: 3.508973838 | R25: 3.508973838 | S25: 3.508973838 | T25: 3.508973838 | U25: 3.508973838 | V25: 3.508973838 | W25: 3.508973838 | X25: 3.508973838 | Y25: 3.508973838 | Z25: 3.508973838 | AA25: 3.508973838 | AB25: 3.508973838 | AC25: 3.508973838 | AD25: 3.508973838 | AE25: 3.508973838 | AF25: 3.508973838 | AG25: 3.508973838 | AH25: 3.508973838 | AI25: 3.508973838 | AJ25: 3.508973838 | AK25: 3.508973838 | AL25: 3.508973838 | AM25: 3.508973838 | AN25: 3.508973838 | AO25: 3.508973838 | AP25: 3.508973838 | AQ25: 3.508973838 | AR25: 3.508973838 | AS25: 3.508973838 | AT25: 3.508973838 | AU25: 3.508973838 | AV25: 3.508973838 | AW25: 3.508973838
C26: Koeficient spotřeby kyseliny solné | F26: [t/t] | G26: 0.000419094787 | J26: Flokulant | M26: [t] | N26: =N9*$G$30 -> 0 | O26: =O9*$G$30 -> 0.2560063944 | P26: =P9*$G$30 -> 0.2560063944 | Q26: 0.2560063944 | R26: 0.2560063944 | S26: 0.2560063944 | T26: 0.2560063944 | U26: 0.2560063944 | V26: 0.2560063944 | W26: 0.2560063944 | X26: 0.2560063944 | Y26: 0.2560063944 | Z26: 0.2560063944 | AA26: 0.2560063944 | AB26: 0.2560063944 | AC26: 0.2560063944 | AD26: 0.2560063944 | AE26: 0.2560063944 | AF26: 0.2560063944 | AG26: 0.2560063944 | AH26: 0.2560063944 | AI26: 0.2560063944 | AJ26: 0.2560063944 | AK26: 0.2560063944 | AL26: 0.2560063944 | AM26: 0.2560063944 | AN26: 0.2560063944 | AO26: 0.2560063944 | AP26: 0.2560063944 | AQ26: 0.2560063944 | AR26: 0.2560063944 | AS26: 0.2560063944 | AT26: 0.2560063944 | AU26: 0.2560063944 | AV26: 0.2560063944 | AW26: 0.2560063944
C27: Koeficient spotřeby chloridu železitého | F27: [t/t] | G27: 0.0002731131621 | I27: Rozdělení jednotlivých typů odpadů | J27: 040209 - Kompozitní tkaniny | M27: [t] | N27: =N9*$G$50 -> 0 | O27: 1036.951312 | P27: 1036.951312 | Q27: 1036.951312 | R27: 1036.951312 | S27: 1036.951312 | T27: 1036.951312 | U27: 1036.951312 | V27: 1036.951312 | W27: 1036.951312 | X27: 1036.951312 | Y27: 1036.951312 | Z27: 1036.951312 | AA27: 1036.951312 | AB27: 1036.951312 | AC27: 1036.951312 | AD27: 1036.951312 | AE27: 1036.951312 | AF27: 1036.951312 | AG27: 1036.951312 | AH27: 1036.951312 | AI27: 1036.951312 | AJ27: 1036.951312 | AK27: 1036.951312 | AL27: 1036.951312 | AM27: 1036.951312 | AN27: 1036.951312 | AO27: 1036.951312 | AP27: 1036.951312 | AQ27: 1036.951312 | AR27: 1036.951312 | AS27: 1036.951312 | AT27: 1036.951312 | AU27: 1036.951312 | AV27: 1036.951312 | AW27: 1036.951312
C28: Koeficient spotřeby sulfidu sodného | F28: [t/t] | G28: 0.0001208443408 | J28: 040210 - Organické přírodní produkty | M28: [t] | N28: =N9*$G$51 -> 0 | O28: 248.5972165 | P28: 248.5972165 | Q28: 248.5972165 | R28: 248.5972165 | S28: 248.5972165 | T28: 248.5972165 | U28: 248.5972165 | V28: 248.5972165 | W28: 248.5972165 | X28: 248.5972165 | Y28: 248.5972165 | Z28: 248.5972165 | AA28: 248.5972165 | AB28: 248.5972165 | AC28: 248.5972165 | AD28: 248.5972165 | AE28: 248.5972165 | AF28: 248.5972165 | AG28: 248.5972165 | AH28: 248.5972165 | AI28: 248.5972165 | AJ28: 248.5972165 | AK28: 248.5972165 | AL28: 248.5972165 | AM28: 248.5972165 | AN28: 248.5972165 | AO28: 248.5972165 | AP28: 248.5972165 | AQ28: 248.5972165 | AR28: =AR9*$G$51 -> 248.5972165 | AS28: 248.5972165 | AT28: 248.5972165 | AU28: 248.5972165 | AV28: 248.5972165 | AW28: 248.5972165
C29: Koeficient spotřeby činidla kotelních vod | F29: [t/t] | G29: 3.89885982e-05 | J29: 070210 - Plastový odpad | M29: [t] | N29: =N9*$G$52 -> 0 | O29: 3088.515429 | P29: 3088.515429 | Q29: 3088.515429 | R29: 3088.515429 | S29: 3088.515429 | T29: 3088.515429 | U29: 3088.515429 | V29: 3088.515429 | W29: 3088.515429 | X29: 3088.515429 | Y29: 3088.515429 | Z29: 3088.515429 | AA29: 3088.515429 | AB29: 3088.515429 | AC29: 3088.515429 | AD29: 3088.515429 | AE29: 3088.515429 | AF29: 3088.515429 | AG29: 3088.515429 | AH29: 3088.515429 | AI29: 3088.515429 | AJ29: 3088.515429 | AK29: 3088.515429 | AL29: 3088.515429 | AM29: 3088.515429 | AN29: 3088.515429 | AO29: 3088.515429 | AP29: 3088.515429 | AQ29: 3088.515429 | AR29: 3088.515429 | AS29: 3088.515429 | AT29: 3088.515429 | AU29: 3088.515429 | AV29: 3088.515429 | AW29: 3088.515429
C30: Koeficient spotřeby flokulant | F30: [t/t] | G30: 2.844515494e-06 | J30: 120105 - Plastové hobliny | M30: [t] | N30: =N9*$G$53 -> 0 | O30: 958.9291975 | P30: 958.9291975 | Q30: 958.9291975 | R30: 958.9291975 | S30: 958.9291975 | T30: 958.9291975 | U30: 958.9291975 | V30: 958.9291975 | W30: 958.9291975 | X30: 958.9291975 | Y30: 958.9291975 | Z30: 958.9291975 | AA30: 958.9291975 | AB30: 958.9291975 | AC30: 958.9291975 | AD30: 958.9291975 | AE30: 958.9291975 | AF30: 958.9291975 | AG30: 958.9291975 | AH30: 958.9291975 | AI30: 958.9291975 | AJ30: 958.9291975 | AK30: 958.9291975 | AL30: 958.9291975 | AM30: 958.9291975 | AN30: 958.9291975 | AO30: 958.9291975 | AP30: 958.9291975 | AQ30: 958.9291975 | AR30: 958.9291975 | AS30: 958.9291975 | AT30: 958.9291975 | AU30: 958.9291975 | AV30: 958.9291975 | AW30: 958.9291975
B31: Emise | C31: Koeficient produkce prachu | F31: [mg/(t*m3)] | G31: 1.479818179e-05 | J31: 150106 - Směsné obaly | M31: [t] | N31: =N9*$G$54 -> 0 | O31: 2745.359097 | P31: 2745.359097 | Q31: 2745.359097 | R31: 2745.359097 | S31: 2745.359097 | T31: 2745.359097 | U31: 2745.359097 | V31: 2745.359097 | W31: 2745.359097 | X31: 2745.359097 | Y31: 2745.359097 | Z31: 2745.359097 | AA31: 2745.359097 | AB31: 2745.359097 | AC31: 2745.359097 | AD31: 2745.359097 | AE31: 2745.359097 | AF31: 2745.359097 | AG31: 2745.359097 | AH31: 2745.359097 | AI31: 2745.359097 | AJ31: 2745.359097 | AK31: 2745.359097 | AL31: 2745.359097 | AM31: 2745.359097 | AN31: 2745.359097 | AO31: 2745.359097 | AP31: 2745.359097 | AQ31: 2745.359097 | AR31: 2745.359097 | AS31: 2745.359097 | AT31: 2745.359097 | AU31: 2745.359097 | AV31: 2745.359097 | AW31: 2745.359097
C32: Koeficient produkce HCl | F32: [t/t] | G32: 5.365488095e-06 | J32: 170201 - Dřevo | M32: [t] | N32: =N9*$G$55 -> 0 | O32: 357.5245465 | P32: 357.5245465 | Q32: 357.5245465 | R32: 357.5245465 | S32: 357.5245465 | T32: 357.5245465 | U32: 357.5245465 | V32: 357.5245465 | W32: 357.5245465 | X32: 357.5245465 | Y32: 357.5245465 | Z32: 357.5245465 | AA32: 357.5245465 | AB32: 357.5245465 | AC32: 357.5245465 | AD32: 357.5245465 | AE32: 357.5245465 | AF32: 357.5245465 | AG32: 357.5245465 | AH32: 357.5245465 | AI32: 357.5245465 | AJ32: 357.5245465 | AK32: 357.5245465 | AL32: 357.5245465 | AM32: 357.5245465 | AN32: 357.5245465 | AO32: 357.5245465 | AP32: 357.5245465 | AQ32: 357.5245465 | AR32: 357.5245465 | AS32: 357.5245465 | AT32: 357.5245465 | AU32: 357.5245465 | AV32: 357.5245465 | AW32: 357.5245465
C33: Koeficient produkce HF | F33: [t/t] | G33: 4.208116917e-06 | J33: 200101 - Papír | M33: [t] | N33: =N9*$G$56 -> 0 | O33: 436.0346379 | P33: 436.0346379 | Q33: 436.0346379 | R33: 436.0346379 | S33: 436.0346379 | T33: 436.0346379 | U33: 436.0346379 | V33: 436.0346379 | W33: 436.0346379 | X33: 436.0346379 | Y33: 436.0346379 | Z33: 436.0346379 | AA33: 436.0346379 | AB33: 436.0346379 | AC33: 436.0346379 | AD33: 436.0346379 | AE33: 436.0346379 | AF33: 436.0346379 | AG33: 436.0346379 | AH33: 436.0346379 | AI33: 436.0346379 | AJ33: 436.0346379 | AK33: 436.0346379 | AL33: 436.0346379 | AM33: 436.0346379 | AN33: 436.0346379 | AO33: 436.0346379 | AP33: 436.0346379 | AQ33: 436.0346379 | AR33: 436.0346379 | AS33: 436.0346379 | AT33: 436.0346379 | AU33: 436.0346379 | AV33: 436.0346379 | AW33: 436.0346379
C34: Koeficient produkce SO2 | F34: [t/t] | G34: 7.973683569e-05 | J34: 200111 - Textil | M34: [t] | N34: =N9*$G$57 -> 0 | O34: 326.3482325 | P34: 326.3482325 | Q34: 326.3482325 | R34: 326.3482325 | S34: 326.3482325 | T34: 326.3482325 | U34: 326.3482325 | V34: 326.3482325 | W34: 326.3482325 | X34: 326.3482325 | Y34: 326.3482325 | Z34: 326.3482325 | AA34: 326.3482325 | AB34: 326.3482325 | AC34: 326.3482325 | AD34: 326.3482325 | AE34: 326.3482325 | AF34: 326.3482325 | AG34: 326.3482325 | AH34: 326.3482325 | AI34: 326.3482325 | AJ34: 326.3482325 | AK34: 326.3482325 | AL34: 326.3482325 | AM34: 326.3482325 | AN34: 326.3482325 | AO34: 326.3482325 | AP34: 326.3482325 | AQ34: 326.3482325 | AR34: 326.3482325 | AS34: 326.3482325 | AT34: 326.3482325 | AU34: 326.3482325 | AV34: 326.3482325 | AW34: 326.3482325
C35: Koeficient produkce NOx | F35: [t/t] | G35: 0.001520111184 | J35: 200301 - Směsný komunální odpad | M35: [t] | N35: =N9*$G$58 -> 0 | O35: 73145.37982 | P35: 73145.37982 | Q35: 73145.37982 | R35: 73145.37982 | S35: 73145.37982 | T35: 73145.37982 | U35: 73145.37982 | V35: 73145.37982 | W35: 73145.37982 | X35: 73145.37982 | Y35: 73145.37982 | Z35: 73145.37982 | AA35: 73145.37982 | AB35: 73145.37982 | AC35: 73145.37982 | AD35: 73145.37982 | AE35: 73145.37982 | AF35: 73145.37982 | AG35: 73145.37982 | AH35: 73145.37982 | AI35: 73145.37982 | AJ35: 73145.37982 | AK35: 73145.37982 | AL35: 73145.37982 | AM35: 73145.37982 | AN35: 73145.37982 | AO35: 73145.37982 | AP35: 73145.37982 | AQ35: 73145.37982 | AR35: 73145.37982 | AS35: 73145.37982 | AT35: 73145.37982 | AU35: 73145.37982 | AV35: 73145.37982 | AW35: 73145.37982
C36: Koeficient produkce CO | F36: [t/t] | G36: 9.291385934e-05 | J36: 200307 - Objemný odpad | M36: [t] | N36: =N9*$G$59 -> 0 | O36: 4464.936135 | P36: 4464.936135 | Q36: 4464.936135 | R36: 4464.936135 | S36: 4464.936135 | T36: 4464.936135 | U36: 4464.936135 | V36: 4464.936135 | W36: 4464.936135 | X36: 4464.936135 | Y36: 4464.936135 | Z36: 4464.936135 | AA36: 4464.936135 | AB36: 4464.936135 | AC36: 4464.936135 | AD36: 4464.936135 | AE36: 4464.936135 | AF36: 4464.936135 | AG36: 4464.936135 | AH36: 4464.936135 | AI36: 4464.936135 | AJ36: 4464.936135 | AK36: 4464.936135 | AL36: 4464.936135 | AM36: 4464.936135 | AN36: 4464.936135 | AO36: 4464.936135 | AP36: 4464.936135 | AQ36: 4464.936135 | AR36: 4464.936135 | AS36: 4464.936135 | AT36: 4464.936135 | AU36: 4464.936135 | AV36: 4464.936135 | AW36: 4464.936135
C37: Koeficient produkce C | F37: [t/t] | G37: 9.439947678e-06 | J37: Ostatní nezařazený odpad | M37: [t] | N37: =N9*$G$60 -> 0 | O37: 3191.424375 | P37: 3191.424375 | Q37: 3191.424375 | R37: 3191.424375 | S37: 3191.424375 | T37: 3191.424375 | U37: 3191.424375 | V37: 3191.424375 | W37: 3191.424375 | X37: 3191.424375 | Y37: 3191.424375 | Z37: 3191.424375 | AA37: 3191.424375 | AB37: 3191.424375 | AC37: 3191.424375 | AD37: 3191.424375 | AE37: 3191.424375 | AF37: 3191.424375 | AG37: 3191.424375 | AH37: 3191.424375 | AI37: 3191.424375 | AJ37: 3191.424375 | AK37: 3191.424375 | AL37: 3191.424375 | AM37: 3191.424375 | AN37: 3191.424375 | AO37: 3191.424375 | AP37: 3191.424375 | AQ37: 3191.424375 | AR37: 3191.424375 | AS37: 3191.424375 | AT37: 3191.424375 | AU37: 3191.424375 | AV37: 3191.424375 | AW37: 3191.424375
C38: Koeficient produkce NH3 | F38: [t/t] | G38: 1.463010196e-05 | J38: Výstup
C39: Koeficient produkce Hg | F39: [t/t] | G39: 1.162032244e-07 | J39: Výstup energie
B40: Parametry kotle | C40: Výroba tepelné energie v kotli | F40: [GJ/h] | G40: =AVERAGEA(O72:AW72) -> 103.2195196 | J40: Výroba tepelné energie v kotli | M40: [GJ] | N40: =N10*$G$11 -> 0 | O40: 841500 | P40: 841500 | Q40: =Q10*$G$11 -> 841500 | R40: 841500 | S40: 841500 | T40: 841500 | U40: 841500 | V40: 841500 | W40: 841500 | X40: 841500 | Y40: 841500 | Z40: 841500 | AA40: 841500 | AB40: 841500 | AC40: 841500 | AD40: 841500 | AE40: 841500 | AF40: 841500 | AG40: 841500 | AH40: 841500 | AI40: 841500 | AJ40: 841500 | AK40: 841500 | AL40: 841500 | AM40: 841500 | AN40: 841500 | AO40: 841500 | AP40: 841500 | AQ40: 841500 | AR40: 841500 | AS40: 841500 | AT40: 841500 | AU40: 841500 | AV40: 841500 | AW40: 841500
F41: [MWt] | G41: 28.67208878 | M41: [MWh] | N41: =N40/3.6 -> 0 | O41: 233750 | P41: 233750 | Q41: 233750 | R41: 233750 | S41: 233750 | T41: 233750 | U41: 233750 | V41: 233750 | W41: 233750 | X41: 233750 | Y41: 233750 | Z41: 233750 | AA41: 233750 | AB41: 233750 | AC41: 233750 | AD41: 233750 | AE41: 233750 | AF41: 233750 | AG41: 233750 | AH41: 233750 | AI41: 233750 | AJ41: 233750 | AK41: 233750 | AL41: 233750 | AM41: 233750 | AN41: 233750 | AO41: 233750 | AP41: 233750 | AQ41: 233750 | AR41: 233750 | AS41: 233750 | AT41: 233750 | AU41: 233750 | AV41: 233750 | AW41: 233750
C42: Prodej tepelné energie v kotli | F42: [GJ/h] | G42: 67.09268773 | J42: Prodej tepelné energie do soustavy | M42: [GJ] | N42: =N40*$G$20 -> 0 | O42: =O40*$G$20 -> 546975 | P42: =P40*$G$20 -> 546975 | Q42: 546975 | R42: 546975 | S42: 546975 | T42: 546975 | U42: 546975 | V42: 546975 | W42: 546975 | X42: 546975 | Y42: 546975 | Z42: 546975 | AA42: 546975 | AB42: 546975 | AC42: 546975 | AD42: 546975 | AE42: 546975 | AF42: 546975 | AG42: 546975 | AH42: 546975 | AI42: 546975 | AJ42: 546975 | AK42: 546975 | AL42: 546975 | AM42: 546975 | AN42: 546975 | AO42: 546975 | AP42: 546975 | AQ42: 546975 | AR42: 546975 | AS42: 546975 | AT42: 546975 | AU42: 546975 | AV42: 546975 | AW42: 546975
F43: [MWt] | G43: 18.6368577 | M43: [MWh] | N43: =N42/3.6 -> 0 | O43: 151937.5 | P43: 151937.5 | Q43: 151937.5 | R43: 151937.5 | S43: 151937.5 | T43: 151937.5 | U43: 151937.5 | V43: 151937.5 | W43: 151937.5 | X43: 151937.5 | Y43: 151937.5 | Z43: 151937.5 | AA43: 151937.5 | AB43: 151937.5 | AC43: 151937.5 | AD43: 151937.5 | AE43: 151937.5 | AF43: 151937.5 | AG43: 151937.5 | AH43: 151937.5 | AI43: 151937.5 | AJ43: 151937.5 | AK43: 151937.5 | AL43: 151937.5 | AM43: 151937.5 | AN43: 151937.5 | AO43: 151937.5 | AP43: 151937.5 | AQ43: 151937.5 | AR43: 151937.5 | AS43: 151937.5 | AT43: 151937.5 | AU43: 151937.5 | AV43: 151937.5 | AW43: 151937.5
C44: Výroba elektrické energie v závodě | F44: [GJ/h] | G44: 10.32195196 | J44: Tepelné ztráty | M44: [GJ] | N44: =N40-N42 -> 0 | O44: =O40-O42 -> 294525 | P44: 294525 | Q44: 294525 | R44: 294525 | S44: 294525 | T44: 294525 | U44: 294525 | V44: 294525 | W44: 294525 | X44: 294525 | Y44: 294525 | Z44: 294525 | AA44: 294525 | AB44: 294525 | AC44: 294525 | AD44: 294525 | AE44: 294525 | AF44: 294525 | AG44: 294525 | AH44: 294525 | AI44: 294525 | AJ44: 294525 | AK44: 294525 | AL44: 294525 | AM44: 294525 | AN44: 294525 | AO44: 294525 | AP44: 294525 | AQ44: 294525 | AR44: 294525 | AS44: 294525 | AT44: 294525 | AU44: 294525 | AV44: 294525 | AW44: 294525
F45: [MWe] | G45: 2.867208878 | M45: [MWh] | N45: =N44/3.6 -> 0 | O45: =O44/3.6 -> 81812.5 | P45: 81812.5 | Q45: 81812.5 | R45: 81812.5 | S45: 81812.5 | T45: 81812.5 | U45: 81812.5 | V45: 81812.5 | W45: 81812.5 | X45: 81812.5 | Y45: 81812.5 | Z45: 81812.5 | AA45: 81812.5 | AB45: 81812.5 | AC45: 81812.5 | AD45: 81812.5 | AE45: 81812.5 | AF45: 81812.5 | AG45: 81812.5 | AH45: 81812.5 | AI45: 81812.5 | AJ45: 81812.5 | AK45: 81812.5 | AL45: 81812.5 | AM45: 81812.5 | AN45: 81812.5 | AO45: 81812.5 | AP45: 81812.5 | AQ45: 81812.5 | AR45: 81812.5 | AS45: 81812.5 | AT45: 81812.5 | AU45: 81812.5 | AV45: 81812.5 | AW45: 81812.5
C46: Prodej elektrické energie do soustavy | F46: [GJ/h] | G46: 7.225366371 | J46: Poměr tepelných ztrát | M46: [%] | N46: =IF(N40=0,0,N44/N40) -> 0 | O46: 0.35 | P46: 0.35 | Q46: 0.35 | R46: 0.35 | S46: 0.35 | T46: 0.35 | U46: 0.35 | V46: 0.35 | W46: 0.35 | X46: 0.35 | Y46: 0.35 | Z46: 0.35 | AA46: 0.35 | AB46: 0.35 | AC46: 0.35 | AD46: 0.35 | AE46: 0.35 | AF46: 0.35 | AG46: 0.35 | AH46: 0.35 | AI46: 0.35 | AJ46: 0.35 | AK46: 0.35 | AL46: 0.35 | AM46: 0.35 | AN46: 0.35 | AO46: 0.35 | AP46: 0.35 | AQ46: 0.35 | AR46: 0.35 | AS46: 0.35 | AT46: 0.35 | AU46: 0.35 | AV46: 0.35 | AW46: 0.35
F47: [MWe] | G47: 2.007046214 | J47: Výroba elektrické energie v závodě | M47: [GJ] | N47: =N48*3.6 -> 0 | O47: =O48*3.6 -> 84150 | P47: 84150 | Q47: =Q48*3.6 -> 84150 | R47: 84150 | S47: 84150 | T47: 84150 | U47: 84150 | V47: 84150 | W47: 84150 | X47: 84150 | Y47: 84150 | Z47: 84150 | AA47: 84150 | AB47: 84150 | AC47: 84150 | AD47: 84150 | AE47: 84150 | AF47: 84150 | AG47: 84150 | AH47: 84150 | AI47: 84150 | AJ47: 84150 | AK47: 84150 | AL47: 84150 | AM47: 84150 | AN47: 84150 | AO47: 84150 | AP47: 84150 | AQ47: 84150 | AR47: 84150 | AS47: 84150 | AT47: 84150 | AU47: 84150 | AV47: 84150 | AW47: =AW48*3.6 -> 84150
C48: Kapacita kotle pro palivo | F48: [t/h] | G48: 11.03952081 | M48: [MWh] | N48: =N41*$G$22 -> 0 | O48: =O41*$G$22 -> 23375 | P48: =P41*$G$22 -> 23375 | Q48: 23375 | R48: 23375 | S48: 23375 | T48: 23375 | U48: 23375 | V48: 23375 | W48: 23375 | X48: 23375 | Y48: 23375 | Z48: 23375 | AA48: 23375 | AB48: 23375 | AC48: 23375 | AD48: 23375 | AE48: 23375 | AF48: 23375 | AG48: 23375 | AH48: 23375 | AI48: 23375 | AJ48: 23375 | AK48: 23375 | AL48: 23375 | AM48: 23375 | AN48: 23375 | AO48: 23375 | AP48: 23375 | AQ48: 23375 | AR48: 23375 | AS48: 23375 | AT48: 23375 | AU48: 23375 | AV48: 23375 | AW48: 23375
C49: Koeficient spotřeby zemního plynu pro start a pomoc spalování | F49: [m3/t] | G49: 1.71 | J49: Prodej elektrické energie do soustavy | M49: [GJ] | N49: =N50*3.6 -> 0 | O49: =O50*3.6 -> 58905 | P49: =P50*3.6 -> 58905 | Q49: 58905 | R49: 58905 | S49: 58905 | T49: 58905 | U49: 58905 | V49: 58905 | W49: 58905 | X49: 58905 | Y49: 58905 | Z49: 58905 | AA49: 58905 | AB49: 58905 | AC49: 58905 | AD49: 58905 | AE49: 58905 | AF49: 58905 | AG49: 58905 | AH49: 58905 | AI49: 58905 | AJ49: 58905 | AK49: 58905 | AL49: 58905 | AM49: 58905 | AN49: 58905 | AO49: 58905 | AP49: 58905 | AQ49: 58905 | AR49: 58905 | AS49: 58905 | AT49: 58905 | AU49: 58905 | AV49: 58905 | AW49: 58905
B50: Parametry spotřeby jednotlivých typů odpadu | C50: 040209 - Kompozitní tkaniny | F50: [t/t] | G50: 0.01152168124 | M50: [MWh] | N50: =N48-N52 -> 0 | O50: =O48-O52 -> 16362.5 | P50: =P48-P52 -> 16362.5 | Q50: =Q48-Q52 -> 16362.5 | R50: 16362.5 | S50: 16362.5 | T50: 16362.5 | U50: 16362.5 | V50: 16362.5 | W50: 16362.5 | X50: 16362.5 | Y50: 16362.5 | Z50: 16362.5 | AA50: 16362.5 | AB50: 16362.5 | AC50: 16362.5 | AD50: 16362.5 | AE50: 16362.5 | AF50: 16362.5 | AG50: 16362.5 | AH50: 16362.5 | AI50: 16362.5 | AJ50: 16362.5 | AK50: 16362.5 | AL50: 16362.5 | AM50: 16362.5 | AN50: 16362.5 | AO50: 16362.5 | AP50: 16362.5 | AQ50: 16362.5 | AR50: 16362.5 | AS50: 16362.5 | AT50: 16362.5 | AU50: 16362.5 | AV50: 16362.5 | AW50: 16362.5
C51: 040210 - Organické přírodní produkty | F51: [t/t] | G51: 0.002762191294 | J51: Vlastní spotřeba elektrické energie | M51: [GJ] | N51: =N52*3.6 -> 0 | O51: 25245 | P51: 25245 | Q51: 25245 | R51: 25245 | S51: 25245 | T51: 25245 | U51: 25245 | V51: 25245 | W51: 25245 | X51: 25245 | Y51: 25245 | Z51: 25245 | AA51: 25245 | AB51: 25245 | AC51: 25245 | AD51: 25245 | AE51: 25245 | AF51: 25245 | AG51: 25245 | AH51: 25245 | AI51: 25245 | AJ51: 25245 | AK51: 25245 | AL51: 25245 | AM51: 25245 | AN51: 25245 | AO51: 25245 | AP51: 25245 | AQ51: 25245 | AR51: 25245 | AS51: 25245 | AT51: 25245 | AU51: 25245 | AV51: 25245 | AW51: 25245
C52: 070210 - Plastový odpad | F52: [t/t] | G52: 0.0343168381 | M52: [MWh] | N52: =N48*$G$19 -> 0 | O52: =O48*$G$19 -> 7012.5 | P52: 7012.5 | Q52: 7012.5 | R52: 7012.5 | S52: 7012.5 | T52: 7012.5 | U52: 7012.5 | V52: 7012.5 | W52: 7012.5 | X52: 7012.5 | Y52: 7012.5 | Z52: 7012.5 | AA52: 7012.5 | AB52: 7012.5 | AC52: 7012.5 | AD52: 7012.5 | AE52: 7012.5 | AF52: 7012.5 | AG52: 7012.5 | AH52: 7012.5 | AI52: 7012.5 | AJ52: 7012.5 | AK52: 7012.5 | AL52: 7012.5 | AM52: 7012.5 | AN52: 7012.5 | AO52: 7012.5 | AP52: 7012.5 | AQ52: 7012.5 | AR52: 7012.5 | AS52: 7012.5 | AT52: 7012.5 | AU52: 7012.5 | AV52: 7012.5 | AW52: 7012.5
C53: 120105 - Plastové hobliny | F53: [t/t] | G53: 0.01065476886 | J53: Výstup materiálu
C54: 150106 - Směsné obaly | F54: [t/t] | G54: 0.03050398997 | J54: Tvorba páry v kotli | M54: [t] | N54: =$G$9*N9 -> 0 | O54: 306000 | P54: 306000 | Q54: 306000 | R54: 306000 | S54: 306000 | T54: 306000 | U54: 306000 | V54: 306000 | W54: 306000 | X54: 306000 | Y54: 306000 | Z54: 306000 | AA54: 306000 | AB54: 306000 | AC54: 306000 | AD54: 306000 | AE54: 306000 | AF54: 306000 | AG54: 306000 | AH54: 306000 | AI54: 306000 | AJ54: 306000 | AK54: 306000 | AL54: 306000 | AM54: 306000 | AN54: 306000 | AO54: 306000 | AP54: 306000 | AQ54: 306000 | AR54: 306000 | AS54: 306000 | AT54: 306000 | AU54: 306000 | AV54: 306000 | AW54: 306000
C55: 170201 - Dřevo | F55: [t/t] | G55: 0.003972494961 | J55: Tvorba odpadní vody | M55: [m3] | N55: =N9*$G$15 -> 0 | O55: =O9*$G$15 -> 14400 | P55: 14400 | Q55: 14400 | R55: 14400 | S55: 14400 | T55: 14400 | U55: 14400 | V55: 14400 | W55: 14400 | X55: 14400 | Y55: 14400 | Z55: 14400 | AA55: 14400 | AB55: 14400 | AC55: 14400 | AD55: 14400 | AE55: 14400 | AF55: 14400 | AG55: 14400 | AH55: 14400 | AI55: 14400 | AJ55: 14400 | AK55: 14400 | AL55: 14400 | AM55: 14400 | AN55: 14400 | AO55: 14400 | AP55: 14400 | AQ55: 14400 | AR55: 14400 | AS55: 14400 | AT55: 14400 | AU55: 14400 | AV55: 14400 | AW55: 14400
C56: 200101 - Papír | F56: [t/t] | G56: 0.00484482931 | M56: [l] | N56: =N55*1000 -> 0 | O56: =O55*1000 -> 14400000 | P56: 14400000 | Q56: 14400000 | R56: 14400000 | S56: 14400000 | T56: 14400000 | U56: 14400000 | V56: 14400000 | W56: 14400000 | X56: 14400000 | Y56: 14400000 | Z56: 14400000 | AA56: 14400000 | AB56: 14400000 | AC56: 14400000 | AD56: 14400000 | AE56: 14400000 | AF56: 14400000 | AG56: 14400000 | AH56: 14400000 | AI56: 14400000 | AJ56: 14400000 | AK56: 14400000 | AL56: 14400000 | AM56: 14400000 | AN56: 14400000 | AO56: 14400000 | AP56: 14400000 | AQ56: 14400000 | AR56: 14400000 | AS56: 14400000 | AT56: 14400000 | AU56: 14400000 | AV56: 14400000 | AW56: 14400000
C57: 200111 - Textil | F57: [t/t] | G57: 0.003626091472 | J57: Výroba separovaného železa | M57: [t] | N57: =N9*$G$16 -> 0 | O57: 990 | P57: 990 | Q57: 990 | R57: 990 | S57: 990 | T57: 990 | U57: 990 | V57: 990 | W57: 990 | X57: 990 | Y57: 990 | Z57: 990 | AA57: 990 | AB57: 990 | AC57: 990 | AD57: 990 | AE57: 990 | AF57: 990 | AG57: 990 | AH57: 990 | AI57: 990 | AJ57: 990 | AK57: 990 | AL57: 990 | AM57: 990 | AN57: 990 | AO57: 990 | AP57: 990 | AQ57: 990 | AR57: 990 | AS57: 990 | AT57: 990 | AU57: 990 | AV57: 990 | AW57: 990
C58: 200301 - Směsný komunální odpad | F58: [t/t] | G58: 0.8127264425 | J58: Výroba popílku (SPRUK) | M58: [t] | N58: =N9*$G$14 -> 0 | O58: 36000 | P58: 36000 | Q58: 36000 | R58: 36000 | S58: 36000 | T58: 36000 | U58: 36000 | V58: 36000 | W58: 36000 | X58: 36000 | Y58: 36000 | Z58: 36000 | AA58: 36000 | AB58: 36000 | AC58: 36000 | AD58: 36000 | AE58: 36000 | AF58: 36000 | AG58: 36000 | AH58: 36000 | AI58: 36000 | AJ58: 36000 | AK58: 36000 | AL58: 36000 | AM58: 36000 | AN58: 36000 | AO58: 36000 | AP58: 36000 | AQ58: 36000 | AR58: 36000 | AS58: 36000 | AT58: 36000 | AU58: 36000 | AV58: 36000 | AW58: 36000
C59: 200307 - Objemný odpad | F59: [t/t] | G59: 0.0496104015 | J59: Výstupní emise
C60: Ostatní nezařazený odpad | F60: [t/t] | G60: 0.03546027083 | J60: Prach | K60: Limit | L60: 10 | M60: [mg/m3] | N60: =N9*$G$31 -> 0 | O60: 1.331836361 | P60: 1.331836361 | Q60: 1.331836361 | R60: 1.331836361 | S60: 1.331836361 | T60: 1.331836361 | U60: 1.331836361 | V60: 1.331836361 | W60: 1.331836361 | X60: 1.331836361 | Y60: 1.331836361 | Z60: 1.331836361 | AA60: 1.331836361 | AB60: 1.331836361 | AC60: 1.331836361 | AD60: 1.331836361 | AE60: 1.331836361 | AF60: 1.331836361 | AG60: 1.331836361 | AH60: 1.331836361 | AI60: 1.331836361 | AJ60: 1.331836361 | AK60: 1.331836361 | AL60: 1.331836361 | AM60: 1.331836361 | AN60: 1.331836361 | AO60: 1.331836361 | AP60: 1.331836361 | AQ60: 1.331836361 | AR60: 1.331836361 | AS60: 1.331836361 | AT60: 1.331836361 | AU60: 1.331836361 | AV60: 1.331836361 | AW60: 1.331836361
B61: EU ETS | C61: Koeficient produkce CO2 do ovzduší | F61: [t/t] | G61: 0.6540339167 | J61: HCl | L61: 10 | M61: [t] | N61: =N9*$G$32 -> 0 | O61: 0.4828939286 | P61: 0.4828939286 | Q61: 0.4828939286 | R61: 0.4828939286 | S61: 0.4828939286 | T61: 0.4828939286 | U61: 0.4828939286 | V61: 0.4828939286 | W61: 0.4828939286 | X61: 0.4828939286 | Y61: 0.4828939286 | Z61: 0.4828939286 | AA61: 0.4828939286 | AB61: 0.4828939286 | AC61: 0.4828939286 | AD61: 0.4828939286 | AE61: 0.4828939286 | AF61: 0.4828939286 | AG61: 0.4828939286 | AH61: 0.4828939286 | AI61: 0.4828939286 | AJ61: 0.4828939286 | AK61: 0.4828939286 | AL61: 0.4828939286 | AM61: 0.4828939286 | AN61: 0.4828939286 | AO61: 0.4828939286 | AP61: 0.4828939286 | AQ61: 0.4828939286 | AR61: 0.4828939286 | AS61: 0.4828939286 | AT61: 0.4828939286 | AU61: 0.4828939286 | AV61: 0.4828939286 | AW61: 0.4828939286
J62: HF | L62: 1 | M62: [t] | N62: =N9*$G$33 -> 0 | O62: 0.3787305225 | P62: 0.3787305225 | Q62: 0.3787305225 | R62: 0.3787305225 | S62: 0.3787305225 | T62: 0.3787305225 | U62: 0.3787305225 | V62: 0.3787305225 | W62: 0.3787305225 | X62: 0.3787305225 | Y62: 0.3787305225 | Z62: 0.3787305225 | AA62: 0.3787305225 | AB62: 0.3787305225 | AC62: 0.3787305225 | AD62: 0.3787305225 | AE62: 0.3787305225 | AF62: 0.3787305225 | AG62: 0.3787305225 | AH62: 0.3787305225 | AI62: 0.3787305225 | AJ62: 0.3787305225 | AK62: 0.3787305225 | AL62: 0.3787305225 | AM62: 0.3787305225 | AN62: 0.3787305225 | AO62: 0.3787305225 | AP62: 0.3787305225 | AQ62: 0.3787305225 | AR62: 0.3787305225 | AS62: 0.3787305225 | AT62: 0.3787305225 | AU62: 0.3787305225 | AV62: 0.3787305225 | AW62: 0.3787305225
J63: SO2 | L63: 50 | M63: [t] | N63: =N9*$G$34 -> 0 | O63: 7.176315212 | P63: 7.176315212 | Q63: 7.176315212 | R63: 7.176315212 | S63: 7.176315212 | T63: 7.176315212 | U63: 7.176315212 | V63: 7.176315212 | W63: 7.176315212 | X63: 7.176315212 | Y63: 7.176315212 | Z63: 7.176315212 | AA63: 7.176315212 | AB63: 7.176315212 | AC63: 7.176315212 | AD63: 7.176315212 | AE63: 7.176315212 | AF63: 7.176315212 | AG63: 7.176315212 | AH63: 7.176315212 | AI63: 7.176315212 | AJ63: 7.176315212 | AK63: 7.176315212 | AL63: 7.176315212 | AM63: 7.176315212 | AN63: 7.176315212 | AO63: 7.176315212 | AP63: 7.176315212 | AQ63: 7.176315212 | AR63: 7.176315212 | AS63: 7.176315212 | AT63: 7.176315212 | AU63: 7.176315212 | AV63: 7.176315212 | AW63: 7.176315212
J64: NOx | L64: 200 | M64: [t] | N64: =N9*$G$35 -> 0 | O64: 136.8100065 | P64: 136.8100065 | Q64: 136.8100065 | R64: 136.8100065 | S64: 136.8100065 | T64: 136.8100065 | U64: 136.8100065 | V64: 136.8100065 | W64: 136.8100065 | X64: 136.8100065 | Y64: 136.8100065 | Z64: 136.8100065 | AA64: 136.8100065 | AB64: 136.8100065 | AC64: 136.8100065 | AD64: 136.8100065 | AE64: 136.8100065 | AF64: 136.8100065 | AG64: 136.8100065 | AH64: 136.8100065 | AI64: 136.8100065 | AJ64: 136.8100065 | AK64: 136.8100065 | AL64: 136.8100065 | AM64: 136.8100065 | AN64: 136.8100065 | AO64: 136.8100065 | AP64: 136.8100065 | AQ64: 136.8100065 | AR64: 136.8100065 | AS64: 136.8100065 | AT64: 136.8100065 | AU64: 136.8100065 | AV64: 136.8100065 | AW64: 136.8100065
J65: CO | L65: 50 | M65: [t] | N65: =N9*$G$36 -> 0 | O65: 8.362247341 | P65: 8.362247341 | Q65: 8.362247341 | R65: 8.362247341 | S65: 8.362247341 | T65: 8.362247341 | U65: 8.362247341 | V65: 8.362247341 | W65: 8.362247341 | X65: 8.362247341 | Y65: 8.362247341 | Z65: 8.362247341 | AA65: 8.362247341 | AB65: 8.362247341 | AC65: 8.362247341 | AD65: 8.362247341 | AE65: 8.362247341 | AF65: 8.362247341 | AG65: 8.362247341 | AH65: 8.362247341 | AI65: 8.362247341 | AJ65: 8.362247341 | AK65: 8.362247341 | AL65: 8.362247341 | AM65: 8.362247341 | AN65: 8.362247341 | AO65: 8.362247341 | AP65: 8.362247341 | AQ65: 8.362247341 | AR65: 8.362247341 | AS65: 8.362247341 | AT65: 8.362247341 | AU65: 8.362247341 | AV65: 8.362247341 | AW65: 8.362247341
J66: C | L66: 10 | M66: [t] | N66: =N9*$G$37 -> 0 | O66: 0.849595291 | P66: 0.849595291 | Q66: 0.849595291 | R66: 0.849595291 | S66: 0.849595291 | T66: 0.849595291 | U66: 0.849595291 | V66: 0.849595291 | W66: 0.849595291 | X66: 0.849595291 | Y66: 0.849595291 | Z66: 0.849595291 | AA66: 0.849595291 | AB66: 0.849595291 | AC66: 0.849595291 | AD66: 0.849595291 | AE66: 0.849595291 | AF66: 0.849595291 | AG66: 0.849595291 | AH66: 0.849595291 | AI66: 0.849595291 | AJ66: 0.849595291 | AK66: 0.849595291 | AL66: 0.849595291 | AM66: 0.849595291 | AN66: 0.849595291 | AO66: 0.849595291 | AP66: 0.849595291 | AQ66: 0.849595291 | AR66: 0.849595291 | AS66: 0.849595291 | AT66: 0.849595291 | AU66: 0.849595291 | AV66: 0.849595291 | AW66: 0.849595291
J67: NH3 | L67: 50 | M67: [t] | N67: =N9*$G$38 -> 0 | O67: 1.316709177 | P67: 1.316709177 | Q67: 1.316709177 | R67: 1.316709177 | S67: 1.316709177 | T67: 1.316709177 | U67: 1.316709177 | V67: 1.316709177 | W67: 1.316709177 | X67: 1.316709177 | Y67: 1.316709177 | Z67: 1.316709177 | AA67: 1.316709177 | AB67: 1.316709177 | AC67: 1.316709177 | AD67: 1.316709177 | AE67: 1.316709177 | AF67: 1.316709177 | AG67: 1.316709177 | AH67: 1.316709177 | AI67: 1.316709177 | AJ67: 1.316709177 | AK67: 1.316709177 | AL67: 1.316709177 | AM67: 1.316709177 | AN67: 1.316709177 | AO67: 1.316709177 | AP67: 1.316709177 | AQ67: 1.316709177 | AR67: 1.316709177 | AS67: 1.316709177 | AT67: 1.316709177 | AU67: 1.316709177 | AV67: 1.316709177 | AW67: 1.316709177
J68: Hg | L68: 0.05 | M68: [t] | N68: =N9*$G$39 -> 0 | O68: =O9*$G$39 -> 0.01045829019 | P68: 0.01045829019 | Q68: 0.01045829019 | R68: 0.01045829019 | S68: 0.01045829019 | T68: 0.01045829019 | U68: 0.01045829019 | V68: 0.01045829019 | W68: 0.01045829019 | X68: 0.01045829019 | Y68: 0.01045829019 | Z68: 0.01045829019 | AA68: 0.01045829019 | AB68: 0.01045829019 | AC68: 0.01045829019 | AD68: 0.01045829019 | AE68: 0.01045829019 | AF68: 0.01045829019 | AG68: 0.01045829019 | AH68: 0.01045829019 | AI68: 0.01045829019 | AJ68: 0.01045829019 | AK68: 0.01045829019 | AL68: 0.01045829019 | AM68: 0.01045829019 | AN68: 0.01045829019 | AO68: 0.01045829019 | AP68: 0.01045829019 | AQ68: 0.01045829019 | AR68: 0.01045829019 | AS68: 0.01045829019 | AT68: 0.01045829019 | AU68: 0.01045829019 | AV68: 0.01045829019 | AW68: 0.01045829019
J69: CO2 | M69: [t] | N69: =N9*$G$61 -> 0 | O69: 58863.0525 | P69: 58863.0525 | Q69: 58863.0525 | R69: 58863.0525 | S69: 58863.0525 | T69: 58863.0525 | U69: 58863.0525 | V69: 58863.0525 | W69: 58863.0525 | X69: 58863.0525 | Y69: 58863.0525 | Z69: 58863.0525 | AA69: 58863.0525 | AB69: 58863.0525 | AC69: 58863.0525 | AD69: 58863.0525 | AE69: 58863.0525 | AF69: 58863.0525 | AG69: 58863.0525 | AH69: 58863.0525 | AI69: 58863.0525 | AJ69: 58863.0525 | AK69: 58863.0525 | AL69: 58863.0525 | AM69: 58863.0525 | AN69: 58863.0525 | AO69: 58863.0525 | AP69: 58863.0525 | AQ69: 58863.0525 | AR69: 58863.0525 | AS69: 58863.0525 | AT69: 58863.0525 | AU69: 58863.0525 | AV69: 58863.0525 | AW69: 58863.0525
J70: Účinnost teplárny | M70: [%] | N70: =IF(N10=0,0,N40/N10) -> 0 | O70: =IF(O10=0,0,O40/O10) -> 0.85 | P70: 0.85 | Q70: 0.85 | R70: 0.85 | S70: 0.85 | T70: 0.85 | U70: 0.85 | V70: 0.85 | W70: 0.85 | X70: 0.85 | Y70: 0.85 | Z70: 0.85 | AA70: 0.85 | AB70: 0.85 | AC70: 0.85 | AD70: 0.85 | AE70: 0.85 | AF70: 0.85 | AG70: 0.85 | AH70: 0.85 | AI70: 0.85 | AJ70: 0.85 | AK70: 0.85 | AL70: 0.85 | AM70: 0.85 | AN70: 0.85 | AO70: 0.85 | AP70: 0.85 | AQ70: 0.85 | AR70: 0.85 | AS70: 0.85 | AT70: 0.85 | AU70: 0.85 | AV70: 0.85 | AW70: 0.85
J71: Parametry kotle
J72: Výroba tepelné energie v kotli | M72: [GJ/h] | N72: =N40/N6 -> 0 | O72: 103.0098713 | P72: 103.2920901 | Q72: 103.2920901 | R72: 103.2920901 | S72: 103.0098713 | T72: 103.2920901 | U72: 103.2920901 | V72: 103.2920901 | W72: 103.0098713 | X72: 103.2920901 | Y72: 103.2920901 | Z72: 103.2920901 | AA72: 103.0098713 | AB72: 103.2920901 | AC72: 103.2920901 | AD72: 103.2920901 | AE72: 103.0098713 | AF72: 103.2920901 | AG72: 103.2920901 | AH72: 103.2920901 | AI72: 103.0098713 | AJ72: 103.2920901 | AK72: 103.2920901 | AL72: 103.2920901 | AM72: 103.0098713 | AN72: 103.2920901 | AO72: 103.2920901 | AP72: 103.2920901 | AQ72: 103.0098713 | AR72: 103.2920901 | AS72: 103.2920901 | AT72: 103.2920901 | AU72: 103.0098713 | AV72: 103.2920901 | AW72: 103.2920901
M73: [MWt] | N73: =N41/N6 -> 0 | O73: 28.61385314 | P73: 28.69224726 | Q73: 28.69224726 | R73: 28.69224726 | S73: 28.61385314 | T73: 28.69224726 | U73: 28.69224726 | V73: 28.69224726 | W73: 28.61385314 | X73: 28.69224726 | Y73: 28.69224726 | Z73: 28.69224726 | AA73: 28.61385314 | AB73: 28.69224726 | AC73: 28.69224726 | AD73: 28.69224726 | AE73: 28.61385314 | AF73: 28.69224726 | AG73: 28.69224726 | AH73: 28.69224726 | AI73: 28.61385314 | AJ73: 28.69224726 | AK73: 28.69224726 | AL73: 28.69224726 | AM73: 28.61385314 | AN73: 28.69224726 | AO73: 28.69224726 | AP73: 28.69224726 | AQ73: 28.61385314 | AR73: 28.69224726 | AS73: 28.69224726 | AT73: 28.69224726 | AU73: 28.61385314 | AV73: 28.69224726 | AW73: 28.69224726
J74: Prodej tepelné energie v kotli | M74: [GJ/h] | N74: =N42/N6 -> 0 | O74: 66.95641636 | P74: 67.13985859 | Q74: 67.13985859 | R74: 67.13985859 | S74: 66.95641636 | T74: 67.13985859 | U74: 67.13985859 | V74: 67.13985859 | W74: 66.95641636 | X74: 67.13985859 | Y74: 67.13985859 | Z74: 67.13985859 | AA74: 66.95641636 | AB74: 67.13985859 | AC74: 67.13985859 | AD74: 67.13985859 | AE74: 66.95641636 | AF74: 67.13985859 | AG74: 67.13985859 | AH74: 67.13985859 | AI74: 66.95641636 | AJ74: 67.13985859 | AK74: 67.13985859 | AL74: 67.13985859 | AM74: 66.95641636 | AN74: 67.13985859 | AO74: 67.13985859 | AP74: 67.13985859 | AQ74: 66.95641636 | AR74: 67.13985859 | AS74: 67.13985859 | AT74: 67.13985859 | AU74: 66.95641636 | AV74: 67.13985859 | AW74: 67.13985859
M75: [MWt] | N75: =N43/N6 -> 0 | O75: 18.59900454 | P75: 18.64996072 | Q75: 18.64996072 | R75: 18.64996072 | S75: 18.59900454 | T75: 18.64996072 | U75: 18.64996072 | V75: 18.64996072 | W75: 18.59900454 | X75: 18.64996072 | Y75: 18.64996072 | Z75: 18.64996072 | AA75: 18.59900454 | AB75: 18.64996072 | AC75: 18.64996072 | AD75: 18.64996072 | AE75: 18.59900454 | AF75: 18.64996072 | AG75: 18.64996072 | AH75: 18.64996072 | AI75: 18.59900454 | AJ75: 18.64996072 | AK75: 18.64996072 | AL75: 18.64996072 | AM75: 18.59900454 | AN75: 18.64996072 | AO75: 18.64996072 | AP75: 18.64996072 | AQ75: 18.59900454 | AR75: 18.64996072 | AS75: 18.64996072 | AT75: 18.64996072 | AU75: 18.59900454 | AV75: 18.64996072 | AW75: 18.64996072
J76: Výroba elektrické energie v závodě | M76: [GJ/h] | N76: =N47/N6 -> 0 | O76: 10.30098713 | P76: 10.32920901 | Q76: 10.32920901 | R76: 10.32920901 | S76: 10.30098713 | T76: 10.32920901 | U76: 10.32920901 | V76: 10.32920901 | W76: 10.30098713 | X76: 10.32920901 | Y76: 10.32920901 | Z76: 10.32920901 | AA76: 10.30098713 | AB76: 10.32920901 | AC76: 10.32920901 | AD76: 10.32920901 | AE76: 10.30098713 | AF76: 10.32920901 | AG76: 10.32920901 | AH76: 10.32920901 | AI76: 10.30098713 | AJ76: 10.32920901 | AK76: 10.32920901 | AL76: 10.32920901 | AM76: 10.30098713 | AN76: 10.32920901 | AO76: 10.32920901 | AP76: 10.32920901 | AQ76: 10.30098713 | AR76: 10.32920901 | AS76: 10.32920901 | AT76: 10.32920901 | AU76: 10.30098713 | AV76: 10.32920901 | AW76: 10.32920901
M77: [MWe] | N77: =N48/N6 -> 0 | O77: 2.861385314 | P77: 2.869224726 | Q77: 2.869224726 | R77: 2.869224726 | S77: 2.861385314 | T77: 2.869224726 | U77: 2.869224726 | V77: 2.869224726 | W77: 2.861385314 | X77: 2.869224726 | Y77: 2.869224726 | Z77: 2.869224726 | AA77: 2.861385314 | AB77: 2.869224726 | AC77: 2.869224726 | AD77: 2.869224726 | AE77: 2.861385314 | AF77: 2.869224726 | AG77: 2.869224726 | AH77: 2.869224726 | AI77: 2.861385314 | AJ77: 2.869224726 | AK77: 2.869224726 | AL77: 2.869224726 | AM77: 2.861385314 | AN77: 2.869224726 | AO77: 2.869224726 | AP77: 2.869224726 | AQ77: 2.861385314 | AR77: 2.869224726 | AS77: 2.869224726 | AT77: 2.869224726 | AU77: 2.861385314 | AV77: 2.869224726 | AW77: 2.869224726
J78: Prodej elektrické energie do soustavy | M78: [GJ/h] | N78: =N49/N6 -> 0 | O78: 7.210690992 | P78: 7.23044631 | Q78: 7.23044631 | R78: 7.23044631 | S78: 7.210690992 | T78: 7.23044631 | U78: 7.23044631 | V78: 7.23044631 | W78: 7.210690992 | X78: 7.23044631 | Y78: 7.23044631 | Z78: 7.23044631 | AA78: 7.210690992 | AB78: 7.23044631 | AC78: 7.23044631 | AD78: 7.23044631 | AE78: 7.210690992 | AF78: 7.23044631 | AG78: 7.23044631 | AH78: 7.23044631 | AI78: 7.210690992 | AJ78: 7.23044631 | AK78: 7.23044631 | AL78: 7.23044631 | AM78: 7.210690992 | AN78: 7.23044631 | AO78: 7.23044631 | AP78: 7.23044631 | AQ78: 7.210690992 | AR78: 7.23044631 | AS78: 7.23044631 | AT78: 7.23044631 | AU78: 7.210690992 | AV78: 7.23044631 | AW78: 7.23044631
M79: [MWe] | N79: =N50/N6 -> 0 | O79: 2.00296972 | P79: 2.008457308 | Q79: 2.008457308 | R79: 2.008457308 | S79: 2.00296972 | T79: 2.008457308 | U79: 2.008457308 | V79: 2.008457308 | W79: 2.00296972 | X79: 2.008457308 | Y79: 2.008457308 | Z79: 2.008457308 | AA79: 2.00296972 | AB79: 2.008457308 | AC79: 2.008457308 | AD79: 2.008457308 | AE79: 2.00296972 | AF79: 2.008457308 | AG79: 2.008457308 | AH79: 2.008457308 | AI79: 2.00296972 | AJ79: 2.008457308 | AK79: 2.008457308 | AL79: 2.008457308 | AM79: 2.00296972 | AN79: 2.008457308 | AO79: 2.008457308 | AP79: 2.008457308 | AQ79: 2.00296972 | AR79: 2.008457308 | AS79: 2.008457308 | AT79: 2.008457308 | AU79: 2.00296972 | AV79: 2.008457308 | AW79: 2.008457308
J80: Kapacita kotle pro palivo | M80: t/h | N80: =N9/N6 -> 0 | O80: 11.01709854 | P80: 11.04728237 | Q80: 11.04728237 | R80: 11.04728237 | S80: 11.01709854 | T80: 11.04728237 | U80: 11.04728237 | V80: 11.04728237 | W80: 11.01709854 | X80: 11.04728237 | Y80: 11.04728237 | Z80: 11.04728237 | AA80: 11.01709854 | AB80: 11.04728237 | AC80: 11.04728237 | AD80: 11.04728237 | AE80: 11.01709854 | AF80: 11.04728237 | AG80: 11.04728237 | AH80: 11.04728237 | AI80: 11.01709854 | AJ80: 11.04728237 | AK80: 11.04728237 | AL80: 11.04728237 | AM80: 11.01709854 | AN80: 11.04728237 | AO80: 11.04728237 | AP80: 11.04728237 | AQ80: 11.01709854 | AR80: 11.04728237 | AS80: 11.04728237 | AT80: 11.04728237 | AU80: 11.01709854 | AV80: 11.04728237 | AW80: 11.04728237
B84: Grafy
C86: [t/rok] | D86: [Kč]
C87: 10000 | D87: 250000000
C88: 20000 | D88: 450000000
C89: 30000 | D89: 650000000
C90: 40000 | D90: 850000000
C91: 50000 | D91: 1050000000
C92: 60000 | D92: 1250000000
C93: 70000 | D93: 1450000000
C94: 80000 | D94: 1650000000
C95: 90000 | D95: 1850000000
C96: 100000 | D96: 2050000000
C97: 110000 | D97: 2250000000
C98: 120000 | D98: 2450000000
C99: 130000 | D99: 2650000000
C100: 140000 | D100: 2850000000
C101: 150000 | D101: 3050000000
C102: 160000 | D102: 3250000000
C103: 170000 | D103: 3450000000
C104: 180000 | D104: 3650000000
C105: 190000 | D105: 3850000000
C106: 200000 | D106: 4050000000
C107: 210000 | D107: 4250000000
C108: 220000 | D108: 4450000000
C109: 230000 | D109: 4650000000
C110: 240000 | D110: 4850000000
C111: 250000 | D111: 5050000000
C112: 260000 | D112: 5250000000
C113: 270000 | D113: 5450000000
C114: 280000 | D114: 5650000000
C115: 290000 | D115: 5850000000
C116: 300000 | D116: 6000000000
Y117: =SUM(Y118:Y120) -> 3590775
C118: =SUM(C119:C120) -> 841500 | F118: =SUM(F119:F120) -> 84150 | K118: =SUM(K119:K129) -> 90000 | X118: Teplonosná voda | Y118: =$G$12*O40 -> 1683000 | Z118: =Y118/$Y$117 -> 0.4687010464
B119: Prodej tepelné energie | C119: =O42 -> 546975 | D119: =C119/$C$118 -> 0.65 | E119: Prodej elektrické energie | F119: =O49 -> 58905 | G119: =F119/$F$118 -> 0.7 | J119: 040209 - Kompozitní tkaniny | K119: =O27 -> 1036.951312 | L119: =K119/$K$118 -> 0.01152168124 | X119: Výrobní voda | Y119: =$G$13*O40 -> 1893375 | Z119: =Y119/$Y$117 -> 0.5272886772
B120: Tepelné ztráty | C120: =O44 -> 294525 | D120: 0.35 | E120: Vlastní spotřeba elektrické energie | F120: =O51 -> 25245 | G120: 0.3 | J120: 040210 - Organické přírodní produkty | K120: 248.5972165 | L120: 0.002762191294 | X120: Odpadní voda | Y120: =O9*$G$15 -> 14400 | Z120: 0.004010276333
J121: 070210 - Plastový odpad | K121: 3088.515429 | L121: 0.0343168381
J122: 120105 - Plastové hobliny | K122: 958.9291975 | L122: 0.01065476886
J123: 150106 - Směsné obaly | K123: 2745.359097 | L123: 0.03050398997
J124: 170201 - Dřevo | K124: 357.5245465 | L124: 0.003972494961
J125: 200101 - Papír | K125: 436.0346379 | L125: 0.00484482931
J126: 200111 - Textil | K126: 326.3482325 | L126: 0.003626091472
J127: 200301 - Směsný komunální odpad | K127: 73145.37982 | L127: 0.8127264425
J128: 200307 - Objemný odpad | K128: 4464.936135 | L128: 0.0496104015
J129: Ostatní nezařazený odpad | K129: 3191.424375 | L129: 0.03546027083
F144: =SUM(F145:F152) -> 974.7535175
B145: Hydroxid sodný (50%) | E145: [t] | F145: =O9*$G$23 -> 619.004755 | G145: =F145/$F$144 -> 0.6350372109
B146: Vápenný hydrát | E146: [t] | F146: =O9*$G$24 -> 160.5744163 | G146: =F146/$F$144 -> 0.164733354
B147: Čpavková voda (24%) | E147: [t] | F147: =O9*$G$25 -> 118.2346598 | G147: 0.1212969819
B148: Kyselina solná (32%) | E148: [t] | F148: =O9*$G$26 -> 37.71853083 | G148: 0.03869545496
B149: Chlorid železitý (40%) | E149: [t] | F149: =O9*$G$27 -> 24.58018459 | G149: 0.02521682061
B150: Sulfid sodný | E150: [t] | F150: =O9*$G$28 -> 10.87599067 | G150: 0.01115768292
B151: Činidla kotelních vod | E151: [t] | F151: =O9*$G$29 -> 3.508973838 | G151: 0.003599857579
B152: Flokulant | E152: [t] | F152: =O9*$G$30 -> 0.2560063944 | G152: 0.0002626370563

Sheet Ekonomický model
C2: Scénář | D2: Optimistický
D3: Pesimistický
D4: Realistický
M5: 0 | N5: 1 | O5: 2 | P5: 3 | Q5: 4 | R5: 5 | S5: 6 | T5: 7 | U5: 8 | V5: 9 | W5: 10 | X5: 11 | Y5: 12 | Z5: 13 | AA5: 14 | AB5: 15 | AC5: 16 | AD5: 17 | AE5: 18 | AF5: 19 | AG5: 20 | AH5: 21 | AI5: 22 | AJ5: 23 | AK5: 24 | AL5: 25 | AM5: 26 | AN5: 27 | AO5: 28 | AP5: 29 | AQ5: 30 | AR5: 31 | AS5: 32 | AT5: 33 | AU5: 34 | AV5: 35
C6: Parametry | F6: Jednotky | G6: Hodnoty | K6: Rok | L6: Jednotky | M6: 2027 | N6: 2028 | O6: 2029 | P6: 2030 | Q6: 2031 | R6: 2032 | S6: 2033 | T6: 2034 | U6: 2035 | V6: 2036 | W6: 2037 | X6: 2038 | Y6: 2039 | Z6: 2040 | AA6: 2041 | AB6: 2042 | AC6: 2043 | AD6: 2044 | AE6: 2045 | AF6: 2046 | AG6: 2047 | AH6: 2048 | AI6: 2049 | AJ6: 2050 | AK6: 2051 | AL6: 2052 | AM6: 2053 | AN6: 2054 | AO6: 2055 | AP6: 2056 | AQ6: 2057 | AR6: 2058 | AS6: 2059 | AT6: 2060 | AU6: 2061 | AV6: 2062
B7: Parametry projektu | C7: Cena ZEVO | F7: [Kč] | G7: =IF('Technický model'!G5='Technický model'!C87,'Technický model'!D87,IF('Technický model'!C88='Technický model'!G5,'Technický model'!D88,IF('Technický model'!C89='Technický model'!G5,'Technický model'!D89,IF('Technický model'!G5='Technický model'!C90,'Technický model'!D90,IF('Technický model'!C91='Technický model'!G5,'Technický model'!D91,IF('Technický model'!G5='Technický model'!C92,'Technický model'!D92,IF('Technický model'!C93='Technický model'!G5,'Technický model'!D93,IF('Technický model'!G5='Technický model'!C94,'Technický model'!D94,IF('Technický model'!G5='Technický model'!C95,'Technický model'!D95,IF('Technický model'!G5='Technický model'!C96,'Technický model'!D96,IF('Technický model'!G5='Technický model'!C97,'Technický model'!D97,IF('Technický model'!G5='Technický model'!C98,'Technický model'!D98,IF('Technický model'!G5='Technický model'!C99,'Technický model'!D99,IF('Technický model'!G5='Technický model'!C100,'Technický model'!D100,IF('Technický model'!G5='Technický model'!C101,'Technický model'!D101,IF('Technický model'!G5='Technický model'!C102,'Technický model'!D102,IF('Technický model'!G5='Technický model'!C103,'Technický model'!D103,IF('Technický model'!G5='Technický model'!C104,'Technický model'!D104,IF('Technický model'!G5='Technický model'!C105,'Technický model'!D105,IF('Technický model'!G5='Technický model'!C106,'Technický model'!D106,IF('Technický model'!G5='Technický model'!C107,'Technický model'!D107,IF('Technický model'!G5='Technický model'!C108,'Technický model'!D108,IF('Technický model'!G5='Technický model'!C109,'Technický model'!D109,IF('Technický model'!G5='Technický model'!C110,'Technický model'!D110,IF('Technický model'!G5='Technický model'!C111,'Technický model'!D111,IF('Technický model'!G5='Technický model'!C112,'Technický model'!D112,IF('Technický model'!G5='Technický model'!C113,'Technický model'!D113,IF('Technický model'!G5='Technický model'!C114,'Technický model'!D114,IF('Technický model'!G5='Technický model'!C115,'Technický model'!D115,IF('Technický model'!G5='Technický model'!C116,"NENÍ")))))))))))))))))))))))))))))) -> 1850000000 | J7: Náklady na investici | K7: Investice | L7: [Kč] | M7: =-$G$7 -> -1850000000 | N7: 0 | O7: 0 | P7: 0 | Q7: 0 | R7: 0 | S7: 0 | T7: 0 | U7: 0 | V7: 0 | W7: 0 | X7: 0 | Y7: 0 | Z7: 0 | AA7: 0 | AB7: 0 | AC7: 0 | AD7: 0 | AE7: 0 | AF7: 0 | AG7: 0 | AH7: 0 | AI7: 0 | AJ7: 0 | AK7: 0 | AL7: 0 | AM7: 0 | AN7: 0 | AO7: 0 | AP7: 0 | AQ7: 0 | AR7: 0 | AS7: 0 | AT7: 0 | AU7: 0 | AV7: 0
C8: Životnost ZEVO | F8: [let] | G8: 35 | K8: Odpisy | L8: [Kč] | M8: 0 | N8: =IF($H$9=TRUE,L103,L107) -> 70762500 | O8: =IF($H$9=TRUE,M103,M107) -> 144762500 | P8: 144762500 | Q8: 144762500 | R8: 144762500 | S8: 144762500 | T8: 144762500 | U8: 144762500 | V8: 144762500 | W8: 144762500 | X8: 47637500 | Y8: 47637500 | Z8: 47637500 | AA8: 47637500 | AB8: 47637500 | AC8: 47637500 | AD8: 47637500 | AE8: 47637500 | AF8: 47637500 | AG8: 47637500 | AH8: 0 | AI8: 0 | AJ8: 0 | AK8: 0 | AL8: 0 | AM8: 0 | AN8: 0 | AO8: 0 | AP8: 0 | AQ8: 0 | AR8: 0 | AS8: 0 | AT8: 0 | AU8: 0 | AV8: 0
C9: Způsob odpisování zrychlené | F9: [-] | H9: FALSE | K9: Finanční podpora (dotace) | L9: [Kč] | M9: =IF($G$17=M6,$G$16,0) -> 0 | N9: =IF($G$17=N6,$G$16,0) -> 0 | O9: =IF($G$17=O6,$G$16,0) -> 0 | P9: 0 | Q9: 0 | R9: 0 | S9: 0 | T9: 0 | U9: 0 | V9: 0 | W9: 0 | X9: 0 | Y9: 0 | Z9: 0 | AA9: 0 | AB9: 0 | AC9: 0 | AD9: 0 | AE9: 0 | AF9: 0 | AG9: 0 | AH9: 0 | AI9: 0 | AJ9: 0 | AK9: 0 | AL9: 0 | AM9: 0 | AN9: 0 | AO9: 0 | AP9: 0 | AQ9: 0 | AR9: 0 | AS9: 0 | AT9: 0 | AU9: 0 | AV9: 0
C10: Uvažovat daně | F10: [-] | H10: TRUE | K10: Vlastní kapitál | L10: [Kč] | M10: =$G$12 -> 1680484135 | N10: 0 | O10: 0 | P10: 0 | Q10: 0 | R10: 0 | S10: 0 | T10: 0 | U10: 0 | V10: 0 | W10: 0 | X10: 0 | Y10: 0 | Z10: 0 | AA10: 0 | AB10: 0 | AC10: 0 | AD10: 0 | AE10: 0 | AF10: 0 | AG10: 0 | AH10: 0 | AI10: 0 | AJ10: 0 | AK10: 0 | AL10: 0 | AM10: 0 | AN10: 0 | AO10: 0 | AP10: 0 | AQ10: 0 | AR10: 0 | AS10: 0 | AT10: 0 | AU10: 0 | AV10: 0
C11: Daňová sazba ze zisku | F11: [%] | G11: 0.19 | K11: Úvěr | L11: [Kč] | M11: =$G$13 -> 169515865 | N11: 0 | O11: 0 | P11: 0 | Q11: 0 | R11: 0 | S11: 0 | T11: 0 | U11: 0 | V11: 0 | W11: 0 | X11: 0 | Y11: 0 | Z11: 0 | AA11: 0 | AB11: 0 | AC11: 0 | AD11: 0 | AE11: 0 | AF11: 0 | AG11: 0 | AH11: 0 | AI11: 0 | AJ11: 0 | AK11: 0 | AL11: 0 | AM11: 0 | AN11: 0 | AO11: 0 | AP11: 0 | AQ11: 0 | AR11: 0 | AS11: 0 | AT11: 0 | AU11: 0 | AV11: 0
C12: Vlastní kapitál (E) | F12: [Kč] | G12: =G7-G13 -> 1680484135 | K12: Úrok | L12: [Kč] | M12: =-IF(M5=0,0,IF(M5<=$G$15,IPMT($G$14,M5,$G$15,-$G$13),0)) -> 0 | N12: =-IF(N5=0,0,IF(N5<=$G$15,IPMT($G$14,N5,$G$15,-$G$13),0)) -> -7763826.617 | O12: =-IF(O5=0,0,IF(O5<=$G$15,IPMT($G$14,O5,$G$15,-$G$13),0)) -> -6346930.614 | P12: -4865140.774 | Q12: -3315484.959 | R12: -1694854.908 | S12: 0 | T12: 0 | U12: 0 | V12: 0 | W12: 0 | X12: 0 | Y12: 0 | Z12: 0 | AA12: 0 | AB12: 0 | AC12: 0 | AD12: 0 | AE12: 0 | AF12: 0 | AG12: 0 | AH12: 0 | AI12: 0 | AJ12: 0 | AK12: 0 | AL12: 0 | AM12: 0 | AN12: 0 | AO12: 0 | AP12: 0 | AQ12: 0 | AR12: 0 | AS12: 0 | AT12: 0 | AU12: 0 | AV12: 0
C13: Velikost úvěru (D) | F13: [Kč] | G13: 169515865 | K13: Úmor | L13: [Kč] | M13: =M14-M12 -> 0 | N13: =N14-N12 -> -30936593.96 | O13: =O14-O12 -> -32353489.96 | P13: -33835279.8 | Q13: -35384935.62 | R13: -37005565.67 | S13: 0 | T13: 0 | U13: 0 | V13: 0 | W13: 0 | X13: 0 | Y13: 0 | Z13: 0 | AA13: 0 | AB13: 0 | AC13: 0 | AD13: 0 | AE13: 0 | AF13: 0 | AG13: 0 | AH13: 0 | AI13: 0 | AJ13: 0 | AK13: 0 | AL13: 0 | AM13: 0 | AN13: 0 | AO13: 0 | AP13: 0 | AQ13: 0 | AR13: 0 | AS13: 0 | AT13: 0 | AU13: 0 | AV13: 0
C14: Úroková míra úvěru | F14: [%] | G14: 0.0458 | K14: Splátka úvěru | L14: [Kč] | M14: 0 | N14: =-IF($G$13=0,0,IF(N5<=$G$15,PMT($G$14,$G$15,-$G$13),0)) -> -38700420.57 | O14: =-IF($G$13=0,0,IF(O5<=$G$15,PMT($G$14,$G$15,-$G$13),0)) -> -38700420.57 | P14: -38700420.57 | Q14: -38700420.57 | R14: -38700420.57 | S14: 0 | T14: 0 | U14: 0 | V14: 0 | W14: 0 | X14: 0 | Y14: 0 | Z14: 0 | AA14: 0 | AB14: 0 | AC14: 0 | AD14: 0 | AE14: 0 | AF14: 0 | AG14: 0 | AH14: 0 | AI14: 0 | AJ14: 0 | AK14: 0 | AL14: 0 | AM14: 0 | AN14: 0 | AO14: 0 | AP14: 0 | AQ14: 0 | AR14: 0 | AS14: 0 | AT14: 0 | AU14: 0 | AV14: 0
C15: Doba splácení úvěru | F15: [let] | G15: 5 | K15: Celkové náklady na investici | L15: [Kč] | M15: =M7+M9+M10+M11+M14 -> 0 | N15: =N7+N9+N10+N11+N14 -> -38700420.57 | O15: =O7+O9+O10+O11+O14 -> -38700420.57 | P15: -38700420.57 | Q15: -38700420.57 | R15: -38700420.57 | S15: =S7+S9+S10+S11+S14 -> 0 | T15: 0 | U15: 0 | V15: 0 | W15: 0 | X15: 0 | Y15: 0 | Z15: 0 | AA15: 0 | AB15: 0 | AC15: 0 | AD15: 0 | AE15: 0 | AF15: 0 | AG15: 0 | AH15: 0 | AI15: 0 | AJ15: 0 | AK15: 0 | AL15: 0 | AM15: 0 | AN15: 0 | AO15: 0 | AP15: 0 | AQ15: 0 | AR15: 0 | AS15: 0 | AT15: 0 | AU15: 0 | AV15: 0
C16: Finanční podpora (dotace) | F16: [Kč] | G16: 0 | K16: Celkové náklady na provoz | L16: [Kč] | M16: =M17+M18 -> 0 | N16: =N17+N18 -> -30981900 | O16: =O17+O18 -> -33021911.25 | P16: -35214774.05 | Q16: -37574165.6 | R16: -40115221.71 | S16: -42854713 | T16: -45811244.13 | U16: -49005478.75 | V16: -52460393.98 | W16: -56201568.1 | X16: -60257506.19 | Y16: -64660008.57 | Z16: -69444587.99 | AA16: -74650942.21 | AB16: -80323489.23 | AC16: -86511973.91 | AD16: -93272155.51 | AE16: -100666587.2 | AF16: -108765500.2 | AG16: -117647805.9 | AH16: -127402234 | AI16: -138128622.7 | AJ16: -149939383.2 | AK16: -162961162.6 | AL16: -177336730.7 | AM16: -193227123 | AN16: -210814073.2 | AO16: -230302776.7 | AP16: -251925028.6 | AQ16: -275942788.4 | AR16: -302652229 | AS16: -332388338 | AT16: -365530143.9 | AU16: -402506656.7 | AV16: -443803616.9
C17: Finanční podpora (dotace) v roce | F17: [let] | G17: 0 | J17: Náklady na provoz | K17: Cena zemního plynu | L17: [Kč] | M17: =-$G$80*'Technický model'!N12 -> 0 | N17: =-$G$80*'Technický model'!O12*(1+$G$83+$G$86)^M5 -> -3231900 | O17: =-$G$80*'Technický model'!P12*(1+$G$83+$G$86)^N5 -> -3676286.25 | P17: =-$G$80*'Technický model'!Q12*(1+$G$83+$G$86)^O5 -> -4181775.609 | Q17: =-$G$80*'Technický model'!R12*(1+$G$83+$G$86)^P5 -> -4756769.756 | R17: =-$G$80*'Technický model'!S12*(1+$G$83+$G$86)^Q5 -> -5410825.597 | S17: =-$G$80*'Technický model'!T12*(1+$G$83+$G$86)^R5 -> -6154814.117 | T17: =-$G$80*'Technický model'!U12*(1+$G$83+$G$86)^S5 -> -7001101.058 | U17: =-$G$80*'Technický model'!V12*(1+$G$83+$G$86)^T5 -> -7963752.453 | V17: =-$G$80*'Technický model'!W12*(1+$G$83+$G$86)^U5 -> -9058768.415 | W17: =-$G$80*'Technický model'!X12*(1+$G$83+$G$86)^V5 -> -10304349.07 | X17: =-$G$80*'Technický model'!Y12*(1+$G$83+$G$86)^W5 -> -11721197.07 | Y17: =-$G$80*'Technický model'!Z12*(1+$G$83+$G$86)^X5 -> -13332861.67 | Z17: =-$G$80*'Technický model'!AA12*(1+$G$83+$G$86)^Y5 -> -15166130.15 | AA17: =-$G$80*'Technický model'!AB12*(1+$G$83+$G$86)^Z5 -> -17251473.04 | AB17: =-$G$80*'Technický model'!AC12*(1+$G$83+$G$86)^AA5 -> -19623550.58 | AC17: =-$G$80*'Technický model'!AD12*(1+$G$83+$G$86)^AB5 -> -22321788.79 | AD17: =-$G$80*'Technický model'!AE12*(1+$G$83+$G$86)^AC5 -> -25391034.75 | AE17: =-$G$80*'Technický model'!AF12*(1+$G$83+$G$86)^AD5 -> -28882302.03 | AF17: =-$G$80*'Technický model'!AG12*(1+$G$83+$G$86)^AE5 -> -32853618.56 | AG17: =-$G$80*'Technický model'!AH12*(1+$G$83+$G$86)^AF5 -> -37370991.11 | AH17: =-$G$80*'Technický model'!AI12*(1+$G$83+$G$86)^AG5 -> -42509502.38 | AI17: =-$G$80*'Technický model'!AJ12*(1+$G$83+$G$86)^AH5 -> -48354558.96 | AJ17: =-$G$80*'Technický model'!AK12*(1+$G$83+$G$86)^AI5 -> -55003310.82 | AK17: =-$G$80*'Technický model'!AL12*(1+$G$83+$G$86)^AJ5 -> -62566266.06 | AL17: =-$G$80*'Technický model'!AM12*(1+$G$83+$G$86)^AK5 -> -71169127.64 | AM17: =-$G$80*'Technický model'!AN12*(1+$G$83+$G$86)^AL5 -> -80954882.69 | AN17: =-$G$80*'Technický model'!AO12*(1+$G$83+$G$86)^AM5 -> -92086179.06 | AO17: =-$G$80*'Technický model'!AP12*(1+$G$83+$G$86)^AN5 -> -104748028.7 | AP17: =-$G$80*'Technický model'!AQ12*(1+$G$83+$G$86)^AO5 -> -119150882.6 | AQ17: =-$G$80*'Technický model'!AR12*(1+$G$83+$G$86)^AP5 -> -135534129 | AR17: =-$G$80*'Technický model'!AS12*(1+$G$83+$G$86)^AQ5 -> -154170071.7 | AS17: =-$G$80*'Technický model'!AT12*(1+$G$83+$G$86)^AR5 -> -175368456.6 | AT17: =-$G$80*'Technický model'!AU12*(1+$G$83+$G$86)^AS5 -> -199481619.4 | AU17: =-$G$80*'Technický model'!AV12*(1+$G$83+$G$86)^AT5 -> -226910342 | AV17: =-$G$80*'Technický model'!AW12*(1+$G$83+$G$86)^AU5 -> -258110514.1
C18: Vážená cena kapitálu (WACC) | F18: [%] | G18: =$G$98 -> 0.06266137865 | K18: Opravy, údržba a reinvestice | L18: [Kč] | M18: 0 | N18: =-$G$68*$G$7*(1+$G$86)^M5 -> -27750000 | O18: =-$G$68*$G$7*(1+$G$86)^N5 -> -29345625 | P18: -31032998.44 | Q18: -32817395.85 | R18: -34704396.11 | S18: -36699898.89 | T18: -38810143.07 | U18: -41041726.3 | V18: -43401625.56 | W18: -45897219.03 | X18: -48536309.12 | Y18: -51327146.9 | Z18: -54278457.84 | AA18: -57399469.17 | AB18: -60699938.65 | AC18: -64190185.12 | AD18: -67881120.77 | AE18: -71784285.21 | AF18: -75911881.61 | AG18: -80276814.8 | AH18: -84892731.65 | AI18: -89774063.72 | AJ18: -94936072.39 | AK18: -100394896.5 | AL18: -106167603.1 | AM18: -112272240.3 | AN18: -118727894.1 | AO18: -125554748 | AP18: -132774146 | AQ18: -140408659.4 | AR18: -148482157.3 | AS18: -157019881.4 | AT18: -166048524.6 | AU18: -175596314.7 | AV18: -185693102.8
C19: Cena pojištění | F19: [Kč/rok] | G19: 0.0075 | K19: Celkové náklady na palivo (odpad) | L19: [Kč] | M19: =SUM(M20:M30) -> 0 | N19: =SUM(N20:N30) -> -113923296.8 | O19: =SUM(O20:O30) -> -126516768.1 | P19: -140525447.4 | Q19: -156110271.6 | R19: -173450634 | S19: -192746512.7 | T19: -214220846.9 | U19: -238122187.3 | V19: -264727654 | W19: -294346238.1 | X19: -327322484.6 | Y19: -364040603.8 | Z19: -404929059.2 | AA19: -450465687.6 | AB19: -501183413.8 | AC19: -557676628.5 | AD19: -620608306.8 | AE19: -690717954.1 | AF19: -768830474.2 | AG19: -855866068.1 | AH19: -952851283.6 | AI19: -1060931349 | AJ19: -1181383941 | AK19: -1315634551 | AL19: -1465273645 | AM19: -1632075813 | AN19: -1818021145 | AO19: -2025319105 | AP19: -2256435170 | AQ19: -2514120580 | AR19: -2801445542 | AS19: -3121836310 | AT19: -3479116573 | AU19: -3877553671 | AV19: -4321910185
C20: Eskalace ceny pojištění | F20: [%] | G20: 0.01 | J20: Náklady na nákup odpadu | K20: 040209 - Kompozitní tkaniny | L20: [Kč] | M20: =-($G$21*'Technický model'!N27) -> 0 | N20: =-($G$21*'Technický model'!O27)*(1+$G$32+$G$86)^M5 -> -2056762.933 | O20: =-($G$21*'Technický model'!P27)*(1+$G$32+$G$86)^N5 -> -2288148.763 | P20: =-($G$21*'Technický model'!Q27)*(1+$G$32+$G$86)^O5 -> -2545565.499 | Q20: =-($G$21*'Technický model'!R27)*(1+$G$32+$G$86)^P5 -> -2831941.617 | R20: =-($G$21*'Technický model'!S27)*(1+$G$32+$G$86)^Q5 -> -3150535.049 | S20: =-($G$21*'Technický model'!T27)*(1+$G$32+$G$86)^R5 -> -3504970.242 | T20: =-($G$21*'Technický model'!U27)*(1+$G$32+$G$86)^S5 -> -3899279.394 | U20: =-($G$21*'Technický model'!V27)*(1+$G$32+$G$86)^T5 -> -4337948.326 | V20: =-($G$21*'Technický model'!W27)*(1+$G$32+$G$86)^U5 -> -4825967.513 | W20: =-($G$21*'Technický model'!X27)*(1+$G$32+$G$86)^V5 -> -5368888.858 | X20: =-($G$21*'Technický model'!Y27)*(1+$G$32+$G$86)^W5 -> -5972888.854 | Y20: =-($G$21*'Technický model'!Z27)*(1+$G$32+$G$86)^X5 -> -6644838.851 | Z20: =-($G$21*'Technický model'!AA27)*(1+$G$32+$G$86)^Y5 -> -7392383.221 | AA20: =-($G$21*'Technický model'!AB27)*(1+$G$32+$G$86)^Z5 -> -8224026.334 | AB20: =-($G$21*'Technický model'!AC27)*(1+$G$32+$G$86)^AA5 -> -9149229.296 | AC20: =-($G$21*'Technický model'!AD27)*(1+$G$32+$G$86)^AB5 -> -10178517.59 | AD20: =-($G$21*'Technický model'!AE27)*(1+$G$32+$G$86)^AC5 -> -11323600.82 | AE20: =-($G$21*'Technický model'!AF27)*(1+$G$32+$G$86)^AD5 -> -12597505.91 | AF20: =-($G$21*'Technický model'!AG27)*(1+$G$32+$G$86)^AE5 -> -14014725.33 | AG20: =-($G$21*'Technický model'!AH27)*(1+$G$32+$G$86)^AF5 -> -15591381.93 | AH20: =-($G$21*'Technický model'!AI27)*(1+$G$32+$G$86)^AG5 -> -17345412.4 | AI20: =-($G$21*'Technický model'!AJ27)*(1+$G$32+$G$86)^AH5 -> -19296771.29 | AJ20: =-($G$21*'Technický model'!AK27)*(1+$G$32+$G$86)^AI5 -> -21467658.06 | AK20: =-($G$21*'Technický model'!AL27)*(1+$G$32+$G$86)^AJ5 -> -23882769.59 | AL20: =-($G$21*'Technický model'!AM27)*(1+$G$32+$G$86)^AK5 -> -26569581.17 | AM20: =-($G$21*'Technický model'!AN27)*(1+$G$32+$G$86)^AL5 -> -29558659.05 | AN20: =-($G$21*'Technický model'!AO27)*(1+$G$32+$G$86)^AM5 -> -32884008.2 | AO20: =-($G$21*'Technický model'!AP27)*(1+$G$32+$G$86)^AN5 -> -36583459.12 | AP20: =-($G$21*'Technický model'!AQ27)*(1+$G$32+$G$86)^AO5 -> -40699098.27 | AQ20: =-($G$21*'Technický model'!AR27)*(1+$G$32+$G$86)^AP5 -> -45277746.82 | AR20: =-($G$21*'Technický model'!AS27)*(1+$G$32+$G$86)^AQ5 -> -50371493.34 | AS20: =-($G$21*'Technický model'!AT27)*(1+$G$32+$G$86)^AR5 -> -56038286.34 | AT20: =-($G$21*'Technický model'!AU27)*(1+$G$32+$G$86)^AS5 -> -62342593.56 | AU20: =-($G$21*'Technický model'!AV27)*(1+$G$32+$G$86)^AT5 -> -69356135.33 | AV20: =-($G$21*'Technický model'!AW27)*(1+$G$32+$G$86)^AU5 -> -77158700.56
B21: Cena odpadu | C21: 040209 - Kompozitní tkaniny | F21: [Kč/t] | G21: 1983.471074 | K21: 040210 - Organické přírodní produkty | L21: [Kč] | M21: =-($G$22*'Technický model'!N28) -> 0 | N21: =-($G$22*'Technický model'!O28)*(1+$G$33+$G$86)^M5 -> -493085.3881 | O21: =-($G$22*'Technický model'!P28)*(1+$G$33+$G$86)^N5 -> -531299.5056 | P21: =-($G$22*'Technický model'!Q28)*(1+$G$33+$G$86)^O5 -> -572475.2173 | Q21: =-($G$22*'Technický model'!R28)*(1+$G$33+$G$86)^P5 -> -616842.0467 | R21: =-($G$22*'Technický model'!S28)*(1+$G$33+$G$86)^Q5 -> -664647.3053 | S21: =-($G$22*'Technický model'!T28)*(1+$G$33+$G$86)^R5 -> -716157.4714 | T21: =-($G$22*'Technický model'!U28)*(1+$G$33+$G$86)^S5 -> -771659.6755 | U21: =-($G$22*'Technický model'!V28)*(1+$G$33+$G$86)^T5 -> -831463.3003 | V21: =-($G$22*'Technický model'!W28)*(1+$G$33+$G$86)^U5 -> -895901.7061 | W21: =-($G$22*'Technický model'!X28)*(1+$G$33+$G$86)^V5 -> -965334.0883 | X21: =-($G$22*'Technický model'!Y28)*(1+$G$33+$G$86)^W5 -> -1040147.48 | Y21: =-($G$22*'Technický model'!Z28)*(1+$G$33+$G$86)^X5 -> -1120758.91 | Z21: =-($G$22*'Technický model'!AA28)*(1+$G$33+$G$86)^Y5 -> -1207617.725 | AA21: =-($G$22*'Technický model'!AB28)*(1+$G$33+$G$86)^Z5 -> -1301208.099 | AB21: =-($G$22*'Technický model'!AC28)*(1+$G$33+$G$86)^AA5 -> -1402051.727 | AC21: =-($G$22*'Technický model'!AD28)*(1+$G$33+$G$86)^AB5 -> -1510710.736 | AD21: =-($G$22*'Technický model'!AE28)*(1+$G$33+$G$86)^AC5 -> -1627790.818 | AE21: =-($G$22*'Technický model'!AF28)*(1+$G$33+$G$86)^AD5 -> -1753944.606 | AF21: =-($G$22*'Technický model'!AG28)*(1+$G$33+$G$86)^AE5 -> -1889875.313 | AG21: =-($G$22*'Technický model'!AH28)*(1+$G$33+$G$86)^AF5 -> -2036340.65 | AH21: =-($G$22*'Technický model'!AI28)*(1+$G$33+$G$86)^AG5 -> -2194157.05 | AI21: =-($G$22*'Technický model'!AJ28)*(1+$G$33+$G$86)^AH5 -> -2364204.221 | AJ21: =-($G$22*'Technický model'!AK28)*(1+$G$33+$G$86)^AI5 -> -2547430.049 | AK21: =-($G$22*'Technický model'!AL28)*(1+$G$33+$G$86)^AJ5 -> -2744855.877 | AL21: =-($G$22*'Technický model'!AM28)*(1+$G$33+$G$86)^AK5 -> -2957582.208 | AM21: =-($G$22*'Technický model'!AN28)*(1+$G$33+$G$86)^AL5 -> -3186794.829 | AN21: =-($G$22*'Technický model'!AO28)*(1+$G$33+$G$86)^AM5 -> -3433771.428 | AO21: =-($G$22*'Technický model'!AP28)*(1+$G$33+$G$86)^AN5 -> -3699888.714 | AP21: =-($G$22*'Technický model'!AQ28)*(1+$G$33+$G$86)^AO5 -> -3986630.089 | AQ21: =-($G$22*'Technický model'!AR28)*(1+$G$33+$G$86)^AP5 -> -4295593.921 | AR21: =-($G$22*'Technický model'!AS28)*(1+$G$33+$G$86)^AQ5 -> -4628502.45 | AS21: =-($G$22*'Technický model'!AT28)*(1+$G$33+$G$86)^AR5 -> -4987211.39 | AT21: =-($G$22*'Technický model'!AU28)*(1+$G$33+$G$86)^AS5 -> -5373720.273 | AU21: =-($G$22*'Technický model'!AV28)*(1+$G$33+$G$86)^AT5 -> -5790183.594 | AV21: =-($G$22*'Technický model'!AW28)*(1+$G$33+$G$86)^AU5 -> -6238922.822
C22: 040210 - Organické přírodní produkty | F22: [Kč/t] | G22: 1983.471074 | K22: 070210 - Plastový odpad | L22: [Kč] | M22: =-($G$23*'Technický model'!N29) -> 0 | N22: =-($G$23*'Technický model'!O29)*(1+$G$34+$G$86)^M5 -> -13783457.29 | O22: =-($G$23*'Technický model'!P29)*(1+$G$34+$G$86)^N5 -> -15334096.23 | P22: =-($G$23*'Technický model'!Q29)*(1+$G$34+$G$86)^O5 -> -17059182.06 | Q22: =-($G$23*'Technický model'!R29)*(1+$G$34+$G$86)^P5 -> -18978340.04 | R22: =-($G$23*'Technický model'!S29)*(1+$G$34+$G$86)^Q5 -> -21113403.29 | S22: =-($G$23*'Technický model'!T29)*(1+$G$34+$G$86)^R5 -> -23488661.16 | T22: =-($G$23*'Technický model'!U29)*(1+$G$34+$G$86)^S5 -> -26131135.55 | U22: =-($G$23*'Technický model'!V29)*(1+$G$34+$G$86)^T5 -> -29070888.29 | V22: =-($G$23*'Technický model'!W29)*(1+$G$34+$G$86)^U5 -> -32341363.23 | W22: =-($G$23*'Technický model'!X29)*(1+$G$34+$G$86)^V5 -> -35979766.59 | X22: =-($G$23*'Technický model'!Y29)*(1+$G$34+$G$86)^W5 -> -40027490.33 | Y22: =-($G$23*'Technický model'!Z29)*(1+$G$34+$G$86)^X5 -> -44530582.99 | Z22: =-($G$23*'Technický model'!AA29)*(1+$G$34+$G$86)^Y5 -> -49540273.58 | AA22: =-($G$23*'Technický model'!AB29)*(1+$G$34+$G$86)^Z5 -> -55113554.36 | AB22: =-($G$23*'Technický model'!AC29)*(1+$G$34+$G$86)^AA5 -> -61313829.22 | AC22: =-($G$23*'Technický model'!AD29)*(1+$G$34+$G$86)^AB5 -> -68211635.01 | AD22: =-($G$23*'Technický model'!AE29)*(1+$G$34+$G$86)^AC5 -> -75885443.95 | AE22: =-($G$23*'Technický model'!AF29)*(1+$G$34+$G$86)^AD5 -> -84422556.39 | AF22: =-($G$23*'Technický model'!AG29)*(1+$G$34+$G$86)^AE5 -> -93920093.99 | AG22: =-($G$23*'Technický model'!AH29)*(1+$G$34+$G$86)^AF5 -> -104486104.6 | AH22: =-($G$23*'Technický model'!AI29)*(1+$G$34+$G$86)^AG5 -> -116240791.3 | AI22: =-($G$23*'Technický model'!AJ29)*(1+$G$34+$G$86)^AH5 -> -129317880.4 | AJ22: =-($G$23*'Technický model'!AK29)*(1+$G$34+$G$86)^AI5 -> -143866141.9 | AK22: =-($G$23*'Technický model'!AL29)*(1+$G$34+$G$86)^AJ5 -> -160051082.9 | AL22: =-($G$23*'Technický model'!AM29)*(1+$G$34+$G$86)^AK5 -> -178056829.7 | AM22: =-($G$23*'Technický model'!AN29)*(1+$G$34+$G$86)^AL5 -> -198088223 | AN22: =-($G$23*'Technický model'!AO29)*(1+$G$34+$G$86)^AM5 -> -220373148.1 | AO22: =-($G$23*'Technický model'!AP29)*(1+$G$34+$G$86)^AN5 -> -245165127.3 | AP22: =-($G$23*'Technický model'!AQ29)*(1+$G$34+$G$86)^AO5 -> -272746204.1 | AQ22: =-($G$23*'Technický model'!AR29)*(1+$G$34+$G$86)^AP5 -> -303430152 | AR22: =-($G$23*'Technický model'!AS29)*(1+$G$34+$G$86)^AQ5 -> -337566044.1 | AS22: =-($G$23*'Technický model'!AT29)*(1+$G$34+$G$86)^AR5 -> -375542224.1 | AT22: =-($G$23*'Technický model'!AU29)*(1+$G$34+$G$86)^AS5 -> -417790724.3 | AU22: =-($G$23*'Technický model'!AV29)*(1+$G$34+$G$86)^AT5 -> -464792180.8 | AV22: =-($G$23*'Technický model'!AW29)*(1+$G$34+$G$86)^AU5 -> -517081301.1
C23: 070210 - Plastový odpad | F23: [Kč/t] | G23: 4462.809917 | K23: 120105 - Plastové hobliny | L23: [Kč] | M23: =-($G$24*'Technický model'!N30) -> 0 | N23: =-($G$24*'Technický model'!O30)*(1+$G$35+$G$86)^M5 -> -1902008.326 | O23: =-($G$24*'Technický model'!P30)*(1+$G$35+$G$86)^N5 -> -2115984.262 | P23: =-($G$24*'Technický model'!Q30)*(1+$G$35+$G$86)^O5 -> -2354032.492 | Q23: =-($G$24*'Technický model'!R30)*(1+$G$35+$G$86)^P5 -> -2618861.147 | R23: =-($G$24*'Technický model'!S30)*(1+$G$35+$G$86)^Q5 -> -2913483.026 | S23: =-($G$24*'Technický model'!T30)*(1+$G$35+$G$86)^R5 -> -3241249.867 | T23: =-($G$24*'Technický model'!U30)*(1+$G$35+$G$86)^S5 -> -3605890.477 | U23: =-($G$24*'Technický model'!V30)*(1+$G$35+$G$86)^T5 -> -4011553.155 | V23: =-($G$24*'Technický model'!W30)*(1+$G$35+$G$86)^U5 -> -4462852.885 | W23: =-($G$24*'Technický model'!X30)*(1+$G$35+$G$86)^V5 -> -4964923.835 | X23: =-($G$24*'Technický model'!Y30)*(1+$G$35+$G$86)^W5 -> -5523477.766 | Y23: =-($G$24*'Technický model'!Z30)*(1+$G$35+$G$86)^X5 -> -6144869.015 | Z23: =-($G$24*'Technický model'!AA30)*(1+$G$35+$G$86)^Y5 -> -6836166.779 | AA23: =-($G$24*'Technický model'!AB30)*(1+$G$35+$G$86)^Z5 -> -7605235.542 | AB23: =-($G$24*'Technický model'!AC30)*(1+$G$35+$G$86)^AA5 -> -8460824.54 | AC23: =-($G$24*'Technický model'!AD30)*(1+$G$35+$G$86)^AB5 -> -9412667.301 | AD23: =-($G$24*'Technický model'!AE30)*(1+$G$35+$G$86)^AC5 -> -10471592.37 | AE23: =-($G$24*'Technický model'!AF30)*(1+$G$35+$G$86)^AD5 -> -11649646.51 | AF23: =-($G$24*'Technický model'!AG30)*(1+$G$35+$G$86)^AE5 -> -12960231.75 | AG23: =-($G$24*'Technický model'!AH30)*(1+$G$35+$G$86)^AF5 -> -14418257.82 | AH23: =-($G$24*'Technický model'!AI30)*(1+$G$35+$G$86)^AG5 -> -16040311.82 | AI23: =-($G$24*'Technický model'!AJ30)*(1+$G$35+$G$86)^AH5 -> -17844846.9 | AJ23: =-($G$24*'Technický model'!AK30)*(1+$G$35+$G$86)^AI5 -> -19852392.18 | AK23: =-($G$24*'Technický model'!AL30)*(1+$G$35+$G$86)^AJ5 -> -22085786.3 | AL23: =-($G$24*'Technický model'!AM30)*(1+$G$35+$G$86)^AK5 -> -24570437.26 | AM23: =-($G$24*'Technický model'!AN30)*(1+$G$35+$G$86)^AL5 -> -27334611.45 | AN23: =-($G$24*'Technický model'!AO30)*(1+$G$35+$G$86)^AM5 -> -30409755.24 | AO23: =-($G$24*'Technický model'!AP30)*(1+$G$35+$G$86)^AN5 -> -33830852.7 | AP23: =-($G$24*'Technický model'!AQ30)*(1+$G$35+$G$86)^AO5 -> -37636823.63 | AQ23: =-($G$24*'Technický model'!AR30)*(1+$G$35+$G$86)^AP5 -> -41870966.29 | AR23: =-($G$24*'Technický model'!AS30)*(1+$G$35+$G$86)^AQ5 -> -46581450 | AS23: =-($G$24*'Technický model'!AT30)*(1+$G$35+$G$86)^AR5 -> -51821863.12 | AT23: =-($G$24*'Technický model'!AU30)*(1+$G$35+$G$86)^AS5 -> -57651822.73 | AU23: =-($G$24*'Technický model'!AV30)*(1+$G$35+$G$86)^AT5 -> -64137652.78 | AV23: =-($G$24*'Technický model'!AW30)*(1+$G$35+$G$86)^AU5 -> -71353138.72
C24: 120105 - Plastové hobliny | F24: [Kč/t] | G24: 1983.471074 | K24: 150106 - Směsné obaly | L24: [Kč] | M24: =-($G$25*'Technický model'!N31) -> 0 | N24: =-($G$25*'Technický model'!O31)*(1+$G$36+$G$86)^M5 -> -3743671.496 | O24: =-($G$25*'Technický model'!P31)*(1+$G$36+$G$86)^N5 -> -4033806.037 | P24: =-($G$25*'Technický model'!Q31)*(1+$G$36+$G$86)^O5 -> -4346426.005 | Q24: =-($G$25*'Technický model'!R31)*(1+$G$36+$G$86)^P5 -> -4683274.02 | R24: =-($G$25*'Technický model'!S31)*(1+$G$36+$G$86)^Q5 -> -5046227.756 | S24: =-($G$25*'Technický model'!T31)*(1+$G$36+$G$86)^R5 -> -5437310.408 | T24: =-($G$25*'Technický model'!U31)*(1+$G$36+$G$86)^S5 -> -5858701.964 | U24: =-($G$25*'Technický model'!V31)*(1+$G$36+$G$86)^T5 -> -6312751.366 | V24: =-($G$25*'Technický model'!W31)*(1+$G$36+$G$86)^U5 -> -6801989.597 | W24: =-($G$25*'Technický model'!X31)*(1+$G$36+$G$86)^V5 -> -7329143.791 | X24: =-($G$25*'Technický model'!Y31)*(1+$G$36+$G$86)^W5 -> -7897152.435 | Y24: =-($G$25*'Technický model'!Z31)*(1+$G$36+$G$86)^X5 -> -8509181.749 | Z24: =-($G$25*'Technický model'!AA31)*(1+$G$36+$G$86)^Y5 -> -9168643.334 | AA24: =-($G$25*'Technický model'!AB31)*(1+$G$36+$G$86)^Z5 -> -9879213.193 | AB24: =-($G$25*'Technický model'!AC31)*(1+$G$36+$G$86)^AA5 -> -10644852.21 | AC24: =-($G$25*'Technický model'!AD31)*(1+$G$36+$G$86)^AB5 -> -11469828.26 | AD24: =-($G$25*'Technický model'!AE31)*(1+$G$36+$G$86)^AC5 -> -12358739.95 | AE24: =-($G$25*'Technický model'!AF31)*(1+$G$36+$G$86)^AD5 -> -13316542.3 | AF24: =-($G$25*'Technický model'!AG31)*(1+$G$36+$G$86)^AE5 -> -14348574.33 | AG24: =-($G$25*'Technický model'!AH31)*(1+$G$36+$G$86)^AF5 -> -15460588.84 | AH24: =-($G$25*'Technický model'!AI31)*(1+$G$36+$G$86)^AG5 -> -16658784.47 | AI24: =-($G$25*'Technický model'!AJ31)*(1+$G$36+$G$86)^AH5 -> -17949840.27 | AJ24: =-($G$25*'Technický model'!AK31)*(1+$G$36+$G$86)^AI5 -> -19340952.89 | AK24: =-($G$25*'Technický model'!AL31)*(1+$G$36+$G$86)^AJ5 -> -20839876.74 | AL24: =-($G$25*'Technický model'!AM31)*(1+$G$36+$G$86)^AK5 -> -22454967.18 | AM24: =-($G$25*'Technický model'!AN31)*(1+$G$36+$G$86)^AL5 -> -24195227.14 | AN24: =-($G$25*'Technický model'!AO31)*(1+$G$36+$G$86)^AM5 -> -26070357.24 | AO24: =-($G$25*'Technický model'!AP31)*(1+$G$36+$G$86)^AN5 -> -28090809.93 | AP24: =-($G$25*'Technický model'!AQ31)*(1+$G$36+$G$86)^AO5 -> -30267847.7 | AQ24: =-($G$25*'Technický model'!AR31)*(1+$G$36+$G$86)^AP5 -> -32613605.9 | AR24: =-($G$25*'Technický model'!AS31)*(1+$G$36+$G$86)^AQ5 -> -35141160.36 | AS24: =-($G$25*'Technický model'!AT31)*(1+$G$36+$G$86)^AR5 -> -37864600.28 | AT24: =-($G$25*'Technický model'!AU31)*(1+$G$36+$G$86)^AS5 -> -40799106.8 | AU24: =-($G$25*'Technický model'!AV31)*(1+$G$36+$G$86)^AT5 -> -43961037.58 | AV24: =-($G$25*'Technický model'!AW31)*(1+$G$36+$G$86)^AU5 -> -47368017.99
C25: 150106 - Směsné obaly | F25: [Kč/t] | G25: 1363.636364 | K25: 170201 - Dřevo | L25: [Kč] | M25: =-($G$26*'Technický model'!N32) -> 0 | N25: =-($G$26*'Technický model'!O32)*(1+$G$37+$G$86)^M5 -> -709139.5963 | O25: =-($G$26*'Technický model'!P32)*(1+$G$37+$G$86)^N5 -> -764097.915 | P25: =-($G$26*'Technický model'!Q32)*(1+$G$37+$G$86)^O5 -> -823315.5034 | Q25: =-($G$26*'Technický model'!R32)*(1+$G$37+$G$86)^P5 -> -887122.4549 | R25: =-($G$26*'Technický model'!S32)*(1+$G$37+$G$86)^Q5 -> -955874.4452 | S25: =-($G$26*'Technický model'!T32)*(1+$G$37+$G$86)^R5 -> -1029954.715 | T25: =-($G$26*'Technický model'!U32)*(1+$G$37+$G$86)^S5 -> -1109776.205 | U25: =-($G$26*'Technický model'!V32)*(1+$G$37+$G$86)^T5 -> -1195783.861 | V25: =-($G$26*'Technický model'!W32)*(1+$G$37+$G$86)^U5 -> -1288457.11 | W25: =-($G$26*'Technický model'!X32)*(1+$G$37+$G$86)^V5 -> -1388312.536 | X25: =-($G$26*'Technický model'!Y32)*(1+$G$37+$G$86)^W5 -> -1495906.758 | Y25: =-($G$26*'Technický model'!Z32)*(1+$G$37+$G$86)^X5 -> -1611839.531 | Z25: =-($G$26*'Technický model'!AA32)*(1+$G$37+$G$86)^Y5 -> -1736757.095 | AA25: =-($G$26*'Technický model'!AB32)*(1+$G$37+$G$86)^Z5 -> -1871355.77 | AB25: =-($G$26*'Technický model'!AC32)*(1+$G$37+$G$86)^AA5 -> -2016385.842 | AC25: =-($G$26*'Technický model'!AD32)*(1+$G$37+$G$86)^AB5 -> -2172655.745 | AD25: =-($G$26*'Technický model'!AE32)*(1+$G$37+$G$86)^AC5 -> -2341036.565 | AE25: =-($G$26*'Technický model'!AF32)*(1+$G$37+$G$86)^AD5 -> -2522466.899 | AF25: =-($G$26*'Technický model'!AG32)*(1+$G$37+$G$86)^AE5 -> -2717958.084 | AG25: =-($G$26*'Technický model'!AH32)*(1+$G$37+$G$86)^AF5 -> -2928599.835 | AH25: =-($G$26*'Technický model'!AI32)*(1+$G$37+$G$86)^AG5 -> -3155566.322 | AI25: =-($G$26*'Technický model'!AJ32)*(1+$G$37+$G$86)^AH5 -> -3400122.712 | AJ25: =-($G$26*'Technický model'!AK32)*(1+$G$37+$G$86)^AI5 -> -3663632.223 | AK25: =-($G$26*'Technický model'!AL32)*(1+$G$37+$G$86)^AJ5 -> -3947563.72 | AL25: =-($G$26*'Technický model'!AM32)*(1+$G$37+$G$86)^AK5 -> -4253499.908 | AM25: =-($G$26*'Technický model'!AN32)*(1+$G$37+$G$86)^AL5 -> -4583146.151 | AN25: =-($G$26*'Technický model'!AO32)*(1+$G$37+$G$86)^AM5 -> -4938339.978 | AO25: =-($G$26*'Technický model'!AP32)*(1+$G$37+$G$86)^AN5 -> -5321061.326 | AP25: =-($G$26*'Technický model'!AQ32)*(1+$G$37+$G$86)^AO5 -> -5733443.579 | AQ25: =-($G$26*'Technický model'!AR32)*(1+$G$37+$G$86)^AP5 -> -6177785.456 | AR25: =-($G$26*'Technický model'!AS32)*(1+$G$37+$G$86)^AQ5 -> -6656563.829 | AS25: =-($G$26*'Technický model'!AT32)*(1+$G$37+$G$86)^AR5 -> -7172447.526 | AT25: =-($G$26*'Technický model'!AU32)*(1+$G$37+$G$86)^AS5 -> -7728312.209 | AU25: =-($G$26*'Technický model'!AV32)*(1+$G$37+$G$86)^AT5 -> -8327256.405 | AV25: =-($G$26*'Technický model'!AW32)*(1+$G$37+$G$86)^AU5 -> -8972618.777
C26: 170201 - Dřevo | F26: [Kč/t] | G26: 1983.471074 | K26: 200101 - Papír | L26: [Kč] | M26: =-($G$27*'Technický model'!N33) -> 0 | N26: =-($G$27*'Technický model'!O33)*(1+$G$38+$G$86)^M5 -> -792790.2508 | O26: =-($G$27*'Technický model'!P33)*(1+$G$38+$G$86)^N5 -> -854231.4952 | P26: =-($G$27*'Technický model'!Q33)*(1+$G$38+$G$86)^O5 -> -920434.4361 | Q26: =-($G$27*'Technický model'!R33)*(1+$G$38+$G$86)^P5 -> -991768.1049 | R26: =-($G$27*'Technický model'!S33)*(1+$G$38+$G$86)^Q5 -> -1068630.133 | S26: =-($G$27*'Technický model'!T33)*(1+$G$38+$G$86)^R5 -> -1151448.968 | T26: =-($G$27*'Technický model'!U33)*(1+$G$38+$G$86)^S5 -> -1240686.263 | U26: =-($G$27*'Technický model'!V33)*(1+$G$38+$G$86)^T5 -> -1336839.449 | V26: =-($G$27*'Technický model'!W33)*(1+$G$38+$G$86)^U5 -> -1440444.506 | W26: =-($G$27*'Technický model'!X33)*(1+$G$38+$G$86)^V5 -> -1552078.955 | X26: =-($G$27*'Technický model'!Y33)*(1+$G$38+$G$86)^W5 -> -1672365.074 | Y26: =-($G$27*'Technický model'!Z33)*(1+$G$38+$G$86)^X5 -> -1801973.368 | Z26: =-($G$27*'Technický model'!AA33)*(1+$G$38+$G$86)^Y5 -> -1941626.304 | AA26: =-($G$27*'Technický model'!AB33)*(1+$G$38+$G$86)^Z5 -> -2092102.342 | AB26: =-($G$27*'Technický model'!AC33)*(1+$G$38+$G$86)^AA5 -> -2254240.274 | AC26: =-($G$27*'Technický model'!AD33)*(1+$G$38+$G$86)^AB5 -> -2428943.895 | AD26: =-($G$27*'Technický model'!AE33)*(1+$G$38+$G$86)^AC5 -> -2617187.047 | AE26: =-($G$27*'Technický model'!AF33)*(1+$G$38+$G$86)^AD5 -> -2820019.043 | AF26: =-($G$27*'Technický model'!AG33)*(1+$G$38+$G$86)^AE5 -> -3038570.519 | AG26: =-($G$27*'Technický model'!AH33)*(1+$G$38+$G$86)^AF5 -> -3274059.734 | AH26: =-($G$27*'Technický model'!AI33)*(1+$G$38+$G$86)^AG5 -> -3527799.363 | AI26: =-($G$27*'Technický model'!AJ33)*(1+$G$38+$G$86)^AH5 -> -3801203.814 | AJ26: =-($G$27*'Technický model'!AK33)*(1+$G$38+$G$86)^AI5 -> -4095797.109 | AK26: =-($G$27*'Technický model'!AL33)*(1+$G$38+$G$86)^AJ5 -> -4413221.385 | AL26: =-($G$27*'Technický model'!AM33)*(1+$G$38+$G$86)^AK5 -> -4755246.043 | AM26: =-($G$27*'Technický model'!AN33)*(1+$G$38+$G$86)^AL5 -> -5123777.611 | AN26: =-($G$27*'Technický model'!AO33)*(1+$G$38+$G$86)^AM5 -> -5520870.376 | AO26: =-($G$27*'Technický model'!AP33)*(1+$G$38+$G$86)^AN5 -> -5948737.83 | AP26: =-($G$27*'Technický model'!AQ33)*(1+$G$38+$G$86)^AO5 -> -6409765.012 | AQ26: =-($G$27*'Technický model'!AR33)*(1+$G$38+$G$86)^AP5 -> -6906521.8 | AR26: =-($G$27*'Technický model'!AS33)*(1+$G$38+$G$86)^AQ5 -> -7441777.24 | AS26: =-($G$27*'Technický model'!AT33)*(1+$G$38+$G$86)^AR5 -> -8018514.976 | AT26: =-($G$27*'Technický model'!AU33)*(1+$G$38+$G$86)^AS5 -> -8639949.887 | AU26: =-($G$27*'Technický model'!AV33)*(1+$G$38+$G$86)^AT5 -> -9309546.003 | AV26: =-($G$27*'Technický model'!AW33)*(1+$G$38+$G$86)^AU5 -> -10031035.82
C27: 200101 - Papír | F27: [Kč/t] | G27: 1818.181818 | K27: 200111 - Textil | L27: [Kč] | M27: =-($G$28*'Technický model'!N34) -> 0 | N27: =-($G$28*'Technický model'!O34)*(1+$G$39+$G$86)^M5 -> -593360.4227 | O27: =-($G$28*'Technický model'!P34)*(1+$G$39+$G$86)^N5 -> -639345.8555 | P27: =-($G$28*'Technický model'!Q34)*(1+$G$39+$G$86)^O5 -> -688895.1593 | Q27: =-($G$28*'Technický model'!R34)*(1+$G$39+$G$86)^P5 -> -742284.5341 | R27: =-($G$28*'Technický model'!S34)*(1+$G$39+$G$86)^Q5 -> -799811.5855 | S27: =-($G$28*'Technický model'!T34)*(1+$G$39+$G$86)^R5 -> -861796.9834 | T27: =-($G$28*'Technický model'!U34)*(1+$G$39+$G$86)^S5 -> -928586.2496 | U27: =-($G$28*'Technický model'!V34)*(1+$G$39+$G$86)^T5 -> -1000551.684 | V27: =-($G$28*'Technický model'!W34)*(1+$G$39+$G$86)^U5 -> -1078094.439 | W27: =-($G$28*'Technický model'!X34)*(1+$G$39+$G$86)^V5 -> -1161646.759 | X27: =-($G$28*'Technický model'!Y34)*(1+$G$39+$G$86)^W5 -> -1251674.382 | Y27: =-($G$28*'Technický model'!Z34)*(1+$G$39+$G$86)^X5 -> -1348679.147 | Z27: =-($G$28*'Technický model'!AA34)*(1+$G$39+$G$86)^Y5 -> -1453201.781 | AA27: =-($G$28*'Technický model'!AB34)*(1+$G$39+$G$86)^Z5 -> -1565824.919 | AB27: =-($G$28*'Technický model'!AC34)*(1+$G$39+$G$86)^AA5 -> -1687176.35 | AC27: =-($G$28*'Technický model'!AD34)*(1+$G$39+$G$86)^AB5 -> -1817932.517 | AD27: =-($G$28*'Technický model'!AE34)*(1+$G$39+$G$86)^AC5 -> -1958822.287 | AE27: =-($G$28*'Technický model'!AF34)*(1+$G$39+$G$86)^AD5 -> -2110631.015 | AF27: =-($G$28*'Technický model'!AG34)*(1+$G$39+$G$86)^AE5 -> -2274204.918 | AG27: =-($G$28*'Technický model'!AH34)*(1+$G$39+$G$86)^AF5 -> -2450455.799 | AH27: =-($G$28*'Technický model'!AI34)*(1+$G$39+$G$86)^AG5 -> -2640366.124 | AI27: =-($G$28*'Technický model'!AJ34)*(1+$G$39+$G$86)^AH5 -> -2844994.498 | AJ27: =-($G$28*'Technický model'!AK34)*(1+$G$39+$G$86)^AI5 -> -3065481.572 | AK27: =-($G$28*'Technický model'!AL34)*(1+$G$39+$G$86)^AJ5 -> -3303056.394 | AL27: =-($G$28*'Technický model'!AM34)*(1+$G$39+$G$86)^AK5 -> -3559043.264 | AM27: =-($G$28*'Technický model'!AN34)*(1+$G$39+$G$86)^AL5 -> -3834869.117 | AN27: =-($G$28*'Technický model'!AO34)*(1+$G$39+$G$86)^AM5 -> -4132071.474 | AO27: =-($G$28*'Technický model'!AP34)*(1+$G$39+$G$86)^AN5 -> -4452307.013 | AP27: =-($G$28*'Technický model'!AQ34)*(1+$G$39+$G$86)^AO5 -> -4797360.807 | AQ27: =-($G$28*'Technický model'!AR34)*(1+$G$39+$G$86)^AP5 -> -5169156.269 | AR27: =-($G$28*'Technický model'!AS34)*(1+$G$39+$G$86)^AQ5 -> -5569765.88 | AS27: =-($G$28*'Technický model'!AT34)*(1+$G$39+$G$86)^AR5 -> -6001422.736 | AT27: =-($G$28*'Technický model'!AU34)*(1+$G$39+$G$86)^AS5 -> -6466532.998 | AU27: =-($G$28*'Technický model'!AV34)*(1+$G$39+$G$86)^AT5 -> -6967689.305 | AV27: =-($G$28*'Technický model'!AW34)*(1+$G$39+$G$86)^AU5 -> -7507685.226
C28: 200111 - Textil | F28: [Kč/t] | G28: 1818.181818 | K28: 200301 - Směsný komunální odpad | L28: [Kč] | M28: =-($G$29*'Technický model'!N35) -> 0 | N28: =-($G$29*'Technický model'!O35)*(1+$G$40+$G$86)^M5 -> -78585945.26 | O28: =-($G$29*'Technický model'!P35)*(1+$G$40+$G$86)^N5 -> -87819793.83 | P28: =-($G$29*'Technický model'!Q35)*(1+$G$40+$G$86)^O5 -> -98138619.61 | Q28: =-($G$29*'Technický model'!R35)*(1+$G$40+$G$86)^P5 -> -109669907.4 | R28: =-($G$29*'Technický model'!S35)*(1+$G$40+$G$86)^Q5 -> -122556121.5 | S28: =-($G$29*'Technický model'!T35)*(1+$G$40+$G$86)^R5 -> -136956465.8 | T28: =-($G$29*'Technický model'!U35)*(1+$G$40+$G$86)^S5 -> -153048850.5 | U28: =-($G$29*'Technický model'!V35)*(1+$G$40+$G$86)^T5 -> -171032090.5 | V28: =-($G$29*'Technický model'!W35)*(1+$G$40+$G$86)^U5 -> -191128361.1 | W28: =-($G$29*'Technický model'!X35)*(1+$G$40+$G$86)^V5 -> -213585943.5 | X28: =-($G$29*'Technický model'!Y35)*(1+$G$40+$G$86)^W5 -> -238682291.9 | Y28: =-($G$29*'Technický model'!Z35)*(1+$G$40+$G$86)^X5 -> -266727461.2 | Z28: =-($G$29*'Technický model'!AA35)*(1+$G$40+$G$86)^Y5 -> -298067937.9 | AA28: =-($G$29*'Technický model'!AB35)*(1+$G$40+$G$86)^Z5 -> -333090920.6 | AB28: =-($G$29*'Technický model'!AC35)*(1+$G$40+$G$86)^AA5 -> -372229103.8 | AC28: =-($G$29*'Technický model'!AD35)*(1+$G$40+$G$86)^AB5 -> -415966023.5 | AD28: =-($G$29*'Technický model'!AE35)*(1+$G$40+$G$86)^AC5 -> -464842031.2 | AE28: =-($G$29*'Technický model'!AF35)*(1+$G$40+$G$86)^AD5 -> -519460969.9 | AF28: =-($G$29*'Technický model'!AG35)*(1+$G$40+$G$86)^AE5 -> -580497633.9 | AG28: =-($G$29*'Technický model'!AH35)*(1+$G$40+$G$86)^AF5 -> -648706105.8 | AH28: =-($G$29*'Technický model'!AI35)*(1+$G$40+$G$86)^AG5 -> -724929073.3 | AI28: =-($G$29*'Technický model'!AJ35)*(1+$G$40+$G$86)^AH5 -> -810108239.4 | AJ28: =-($G$29*'Technický model'!AK35)*(1+$G$40+$G$86)^AI5 -> -905295957.5 | AK28: =-($G$29*'Technický model'!AL35)*(1+$G$40+$G$86)^AJ5 -> -1011668233 | AL28: =-($G$29*'Technický model'!AM35)*(1+$G$40+$G$86)^AK5 -> -1130539250 | AM28: =-($G$29*'Technický model'!AN35)*(1+$G$40+$G$86)^AL5 -> -1263377612 | AN28: =-($G$29*'Technický model'!AO35)*(1+$G$40+$G$86)^AM5 -> -1411824481 | AO28: =-($G$29*'Technický model'!AP35)*(1+$G$40+$G$86)^AN5 -> -1577713858 | AP28: =-($G$29*'Technický model'!AQ35)*(1+$G$40+$G$86)^AO5 -> -1763095236 | AQ28: =-($G$29*'Technický model'!AR35)*(1+$G$40+$G$86)^AP5 -> -1970258926 | AR28: =-($G$29*'Technický model'!AS35)*(1+$G$40+$G$86)^AQ5 -> -2201764350 | AS28: =-($G$29*'Technický model'!AT35)*(1+$G$40+$G$86)^AR5 -> -2460471661 | AT28: =-($G$29*'Technický model'!AU35)*(1+$G$40+$G$86)^AS5 -> -2749577081 | AU28: =-($G$29*'Technický model'!AV35)*(1+$G$40+$G$86)^AT5 -> -3072652388 | AV28: =-($G$29*'Technický model'!AW35)*(1+$G$40+$G$86)^AU5 -> -3433689044
C29: 200301 - Směsný komunální odpad | F29: [Kč/t] | G29: 1074.380165 | K29: 200307 - Objemný odpad | L29: [Kč] | M29: =-($G$30*'Technický model'!N36) -> 0 | N29: =-($G$30*'Technický model'!O36)*(1+$G$41+$G$86)^M5 -> -6568253.158 | O29: =-($G$30*'Technický model'!P36)*(1+$G$41+$G$86)^N5 -> -7077292.777 | P29: =-($G$30*'Technický model'!Q36)*(1+$G$41+$G$86)^O5 -> -7625782.968 | Q29: =-($G$30*'Technický model'!R36)*(1+$G$41+$G$86)^P5 -> -8216781.148 | R29: =-($G$30*'Technický model'!S36)*(1+$G$41+$G$86)^Q5 -> -8853581.687 | S29: =-($G$30*'Technický model'!T36)*(1+$G$41+$G$86)^R5 -> -9539734.267 | T29: =-($G$30*'Technický model'!U36)*(1+$G$41+$G$86)^S5 -> -10279063.67 | U29: =-($G$30*'Technický model'!V36)*(1+$G$41+$G$86)^T5 -> -11075691.11 | V29: =-($G$30*'Technický model'!W36)*(1+$G$41+$G$86)^U5 -> -11934057.17 | W29: =-($G$30*'Technický model'!X36)*(1+$G$41+$G$86)^V5 -> -12858946.6 | X29: =-($G$30*'Technický model'!Y36)*(1+$G$41+$G$86)^W5 -> -13855514.96 | Y29: =-($G$30*'Technický model'!Z36)*(1+$G$41+$G$86)^X5 -> -14929317.37 | Z29: =-($G$30*'Technický model'!AA36)*(1+$G$41+$G$86)^Y5 -> -16086339.47 | AA29: =-($G$30*'Technický model'!AB36)*(1+$G$41+$G$86)^Z5 -> -17333030.77 | AB29: =-($G$30*'Technický model'!AC36)*(1+$G$41+$G$86)^AA5 -> -18676340.66 | AC29: =-($G$30*'Technický model'!AD36)*(1+$G$41+$G$86)^AB5 -> -20123757.06 | AD29: =-($G$30*'Technický model'!AE36)*(1+$G$41+$G$86)^AC5 -> -21683348.23 | AE29: =-($G$30*'Technický model'!AF36)*(1+$G$41+$G$86)^AD5 -> -23363807.72 | AF29: =-($G$30*'Technický model'!AG36)*(1+$G$41+$G$86)^AE5 -> -25174502.82 | AG29: =-($G$30*'Technický model'!AH36)*(1+$G$41+$G$86)^AF5 -> -27125526.79 | AH29: =-($G$30*'Technický model'!AI36)*(1+$G$41+$G$86)^AG5 -> -29227755.11 | AI29: =-($G$30*'Technický model'!AJ36)*(1+$G$41+$G$86)^AH5 -> -31492906.14 | AJ29: =-($G$30*'Technický model'!AK36)*(1+$G$41+$G$86)^AI5 -> -33933606.36 | AK29: =-($G$30*'Technický model'!AL36)*(1+$G$41+$G$86)^AJ5 -> -36563460.85 | AL29: =-($G$30*'Technický model'!AM36)*(1+$G$41+$G$86)^AK5 -> -39397129.07 | AM29: =-($G$30*'Technický model'!AN36)*(1+$G$41+$G$86)^AL5 -> -42450406.57 | AN29: =-($G$30*'Technický model'!AO36)*(1+$G$41+$G$86)^AM5 -> -45740313.08 | AO29: =-($G$30*'Technický model'!AP36)*(1+$G$41+$G$86)^AN5 -> -49285187.35 | AP29: =-($G$30*'Technický model'!AQ36)*(1+$G$41+$G$86)^AO5 -> -53104789.37 | AQ29: =-($G$30*'Technický model'!AR36)*(1+$G$41+$G$86)^AP5 -> -57220410.54 | AR29: =-($G$30*'Technický model'!AS36)*(1+$G$41+$G$86)^AQ5 -> -61654992.36 | AS29: =-($G$30*'Technický model'!AT36)*(1+$G$41+$G$86)^AR5 -> -66433254.27 | AT29: =-($G$30*'Technický model'!AU36)*(1+$G$41+$G$86)^AS5 -> -71581831.47 | AU29: =-($G$30*'Technický model'!AV36)*(1+$G$41+$G$86)^AT5 -> -77129423.41 | AV29: =-($G$30*'Technický model'!AW36)*(1+$G$41+$G$86)^AU5 -> -83106953.72
C30: 200307 - Objemný odpad | F30: [Kč/t] | G30: 1471.07438 | K30: Ostatní nezařazený odpad | L30: [Kč] | M30: =-($G$31*'Technický model'!N37) -> 0 | N30: =-($G$31*'Technický model'!O37)*(1+$G$42+$G$86)^M5 -> -4694822.634 | O30: =-($G$31*'Technický model'!P37)*(1+$G$42+$G$86)^N5 -> -5058671.388 | P30: =-($G$31*'Technický model'!Q37)*(1+$G$42+$G$86)^O5 -> -5450718.421 | Q30: =-($G$31*'Technický model'!R37)*(1+$G$42+$G$86)^P5 -> -5873149.099 | R30: =-($G$31*'Technický model'!S37)*(1+$G$42+$G$86)^Q5 -> -6328318.154 | S30: =-($G$31*'Technický model'!T37)*(1+$G$42+$G$86)^R5 -> -6818762.811 | T30: =-($G$31*'Technický model'!U37)*(1+$G$42+$G$86)^S5 -> -7347216.929 | U30: =-($G$31*'Technický model'!V37)*(1+$G$42+$G$86)^T5 -> -7916626.241 | V30: =-($G$31*'Technický model'!W37)*(1+$G$42+$G$86)^U5 -> -8530164.774 | W30: =-($G$31*'Technický model'!X37)*(1+$G$42+$G$86)^V5 -> -9191252.544 | X30: =-($G$31*'Technický model'!Y37)*(1+$G$42+$G$86)^W5 -> -9903574.616 | Y30: =-($G$31*'Technický model'!Z37)*(1+$G$42+$G$86)^X5 -> -10671101.65 | Z30: =-($G$31*'Technický model'!AA37)*(1+$G$42+$G$86)^Y5 -> -11498112.03 | AA30: =-($G$31*'Technický model'!AB37)*(1+$G$42+$G$86)^Z5 -> -12389215.71 | AB30: =-($G$31*'Technický model'!AC37)*(1+$G$42+$G$86)^AA5 -> -13349379.93 | AC30: =-($G$31*'Technický model'!AD37)*(1+$G$42+$G$86)^AB5 -> -14383956.87 | AD30: =-($G$31*'Technický model'!AE37)*(1+$G$42+$G$86)^AC5 -> -15498713.53 | AE30: =-($G$31*'Technický model'!AF37)*(1+$G$42+$G$86)^AD5 -> -16699863.83 | AF30: =-($G$31*'Technický model'!AG37)*(1+$G$42+$G$86)^AE5 -> -17994103.27 | AG30: =-($G$31*'Technický model'!AH37)*(1+$G$42+$G$86)^AF5 -> -19388646.28 | AH30: =-($G$31*'Technický model'!AI37)*(1+$G$42+$G$86)^AG5 -> -20891266.36 | AI30: =-($G$31*'Technický model'!AJ37)*(1+$G$42+$G$86)^AH5 -> -22510339.51 | AJ30: =-($G$31*'Technický model'!AK37)*(1+$G$42+$G$86)^AI5 -> -24254890.82 | AK30: =-($G$31*'Technický model'!AL37)*(1+$G$42+$G$86)^AJ5 -> -26134644.86 | AL30: =-($G$31*'Technický model'!AM37)*(1+$G$42+$G$86)^AK5 -> -28160079.83 | AM30: =-($G$31*'Technický model'!AN37)*(1+$G$42+$G$86)^AL5 -> -30342486.02 | AN30: =-($G$31*'Technický model'!AO37)*(1+$G$42+$G$86)^AM5 -> -32694028.69 | AO30: =-($G$31*'Technický model'!AP37)*(1+$G$42+$G$86)^AN5 -> -35227815.91 | AP30: =-($G$31*'Technický model'!AQ37)*(1+$G$42+$G$86)^AO5 -> -37957971.64 | AQ30: =-($G$31*'Technický model'!AR37)*(1+$G$42+$G$86)^AP5 -> -40899714.45 | AR30: =-($G$31*'Technický model'!AS37)*(1+$G$42+$G$86)^AQ5 -> -44069442.31 | AS30: =-($G$31*'Technický model'!AT37)*(1+$G$42+$G$86)^AR5 -> -47484824.09 | AT30: =-($G$31*'Technický model'!AU37)*(1+$G$42+$G$86)^AS5 -> -51164897.96 | AU30: =-($G$31*'Technický model'!AV37)*(1+$G$42+$G$86)^AT5 -> -55130177.55 | AV30: =-($G$31*'Technický model'!AW37)*(1+$G$42+$G$86)^AU5 -> -59402766.31
C31: Ostatní nezařazený odpad | F31: [Kč/t] | G31: 1471.07438 | K31: Celkové náklady na vodu | L31: [Kč] | M31: =SUM(M32:M34) -> 0 | N31: =SUM(N32:N34) -> -17476650 | O31: =SUM(O32:O34) -> -19867033.12 | P31: -22584818.33 | Q31: -25674910.96 | R31: -29188383.92 | S31: -33183325.96 | T31: -37725806.72 | U31: -42890974.8 | V31: -48764306.98 | W31: -55443029.67 | X31: -63037736.26 | Y31: -71674227.29 | Z31: -81495604.43 | AA31: -92664653.06 | AB31: -105366553.5 | AC31: -119811966.3 | AD31: -136240542.6 | AE31: -154924919.5 | AF31: -176175266.5 | AG31: -200344459.2 | AH31: -227833967.4 | AI31: -259100555.7 | AJ31: -294663910.3 | AK31: -335115317.6 | AL31: -381127542.9 | AM31: -433466073 | AN31: -493001912.5 | AO31: -560726147.8 | AP31: -637766525.3 | AQ31: -725406320 | AR31: -825105813 | AS31: -938526739.9 | AT31: -1067560119 | AU31: -1214357928 | AV31: -1381369169
C32: Eskalace ceny 040209 - Kompozitní tkaniny | F32: [%] | G32: 0.055 | J32: Náklady na nákup vody | K32: Teplonosná voda | L32: [Kč] | M32: =-($G$43*'Technický model'!N15)*(1+$G$46) -> 0 | N32: =-($G$43*'Technický model'!O15)*(1+$G$46+$G$86)^M5 -> -7573500 | O32: =-($G$43*'Technický model'!P15)*(1+$G$46+$G$86)^N5 -> -8652723.75 | P32: =-($G$43*'Technický model'!Q15)*(1+$G$46+$G$86)^O5 -> -9885736.884 | Q32: =-($G$43*'Technický model'!R15)*(1+$G$46+$G$86)^P5 -> -11294454.39 | R32: =-($G$43*'Technický model'!S15)*(1+$G$46+$G$86)^Q5 -> -12903914.14 | S32: =-($G$43*'Technický model'!T15)*(1+$G$46+$G$86)^R5 -> -14742721.91 | T32: =-($G$43*'Technický model'!U15)*(1+$G$46+$G$86)^S5 -> -16843559.78 | U32: =-($G$43*'Technický model'!V15)*(1+$G$46+$G$86)^T5 -> -19243767.05 | V32: =-($G$43*'Technický model'!W15)*(1+$G$46+$G$86)^U5 -> -21986003.85 | W32: =-($G$43*'Technický model'!X15)*(1+$G$46+$G$86)^V5 -> -25119009.4 | X32: =-($G$43*'Technický model'!Y15)*(1+$G$46+$G$86)^W5 -> -28698468.24 | Y32: =-($G$43*'Technický model'!Z15)*(1+$G$46+$G$86)^X5 -> -32787999.96 | Z32: =-($G$43*'Technický model'!AA15)*(1+$G$46+$G$86)^Y5 -> -37460289.96 | AA32: =-($G$43*'Technický model'!AB15)*(1+$G$46+$G$86)^Z5 -> -42798381.28 | AB32: =-($G$43*'Technický model'!AC15)*(1+$G$46+$G$86)^AA5 -> -48897150.61 | AC32: =-($G$43*'Technický model'!AD15)*(1+$G$46+$G$86)^AB5 -> -55864994.57 | AD32: =-($G$43*'Technický model'!AE15)*(1+$G$46+$G$86)^AC5 -> -63825756.29 | AE32: =-($G$43*'Technický model'!AF15)*(1+$G$46+$G$86)^AD5 -> -72920926.57 | AF32: =-($G$43*'Technický model'!AG15)*(1+$G$46+$G$86)^AE5 -> -83312158.6 | AG32: =-($G$43*'Technický model'!AH15)*(1+$G$46+$G$86)^AF5 -> -95184141.2 | AH32: =-($G$43*'Technický model'!AI15)*(1+$G$46+$G$86)^AG5 -> -108747881.3 | AI32: =-($G$43*'Technický model'!AJ15)*(1+$G$46+$G$86)^AH5 -> -124244454.4 | AJ32: =-($G$43*'Technický model'!AK15)*(1+$G$46+$G$86)^AI5 -> -141949289.2 | AK32: =-($G$43*'Technický model'!AL15)*(1+$G$46+$G$86)^AJ5 -> -162177062.9 | AL32: =-($G$43*'Technický model'!AM15)*(1+$G$46+$G$86)^AK5 -> -185287294.3 | AM32: =-($G$43*'Technický model'!AN15)*(1+$G$46+$G$86)^AL5 -> -211690733.8 | AN32: =-($G$43*'Technický model'!AO15)*(1+$G$46+$G$86)^AM5 -> -241856663.3 | AO32: =-($G$43*'Technický model'!AP15)*(1+$G$46+$G$86)^AN5 -> -276321237.9 | AP32: =-($G$43*'Technický model'!AQ15)*(1+$G$46+$G$86)^AO5 -> -315697014.3 | AQ32: =-($G$43*'Technický model'!AR15)*(1+$G$46+$G$86)^AP5 -> -360683838.8 | AR32: =-($G$43*'Technický model'!AS15)*(1+$G$46+$G$86)^AQ5 -> -412081285.8 | AS32: =-($G$43*'Technický model'!AT15)*(1+$G$46+$G$86)^AR5 -> -470802869.1 | AT32: =-($G$43*'Technický model'!AU15)*(1+$G$46+$G$86)^AS5 -> -537892277.9 | AU32: =-($G$43*'Technický model'!AV15)*(1+$G$46+$G$86)^AT5 -> -614541927.5 | AV32: =-($G$43*'Technický model'!AW15)*(1+$G$46+$G$86)^AU5 -> -702114152.2
C33: Eskalace ceny 040210 - Organické přírodní produkty | F33: [%] | G33: 0.02 | K33: Výrobní voda | L33: [Kč] | M33: =-($G$44*'Technický model'!N17)*(1+$G$47) -> 0 | N33: =-($G$44*'Technický model'!O17)*(1+$G$47+$G$86)^M5 -> -9845550 | O33: =-($G$44*'Technický model'!P17)*(1+$G$47+$G$86)^N5 -> -11150085.38 | P33: =-($G$44*'Technický model'!Q17)*(1+$G$47+$G$86)^O5 -> -12627471.69 | Q33: =-($G$44*'Technický model'!R17)*(1+$G$47+$G$86)^P5 -> -14300611.69 | R33: =-($G$44*'Technický model'!S17)*(1+$G$47+$G$86)^Q5 -> -16195442.73 | S33: =-($G$44*'Technický model'!T17)*(1+$G$47+$G$86)^R5 -> -18341338.9 | T33: =-($G$44*'Technický model'!U17)*(1+$G$47+$G$86)^S5 -> -20771566.3 | U33: =-($G$44*'Technický model'!V17)*(1+$G$47+$G$86)^T5 -> -23523798.83 | V33: =-($G$44*'Technický model'!W17)*(1+$G$47+$G$86)^U5 -> -26640702.18 | W33: =-($G$44*'Technický model'!X17)*(1+$G$47+$G$86)^V5 -> -30170595.22 | X33: =-($G$44*'Technický model'!Y17)*(1+$G$47+$G$86)^W5 -> -34168199.09 | Y33: =-($G$44*'Technický model'!Z17)*(1+$G$47+$G$86)^X5 -> -38695485.46 | Z33: =-($G$44*'Technický model'!AA17)*(1+$G$47+$G$86)^Y5 -> -43822637.29 | AA33: =-($G$44*'Technický model'!AB17)*(1+$G$47+$G$86)^Z5 -> -49629136.73 | AB33: =-($G$44*'Technický model'!AC17)*(1+$G$47+$G$86)^AA5 -> -56204997.35 | AC33: =-($G$44*'Technický model'!AD17)*(1+$G$47+$G$86)^AB5 -> -63652159.49 | AD33: =-($G$44*'Technický model'!AE17)*(1+$G$47+$G$86)^AC5 -> -72086070.63 | AE33: =-($G$44*'Technický model'!AF17)*(1+$G$47+$G$86)^AD5 -> -81637474.99 | AF33: =-($G$44*'Technický model'!AG17)*(1+$G$47+$G$86)^AE5 -> -92454440.42 | AG33: =-($G$44*'Technický model'!AH17)*(1+$G$47+$G$86)^AF5 -> -104704653.8 | AH33: =-($G$44*'Technický model'!AI17)*(1+$G$47+$G$86)^AG5 -> -118578020.4 | AI33: =-($G$44*'Technický model'!AJ17)*(1+$G$47+$G$86)^AH5 -> -134289608.1 | AJ33: =-($G$44*'Technický model'!AK17)*(1+$G$47+$G$86)^AI5 -> -152082981.2 | AK33: =-($G$44*'Technický model'!AL17)*(1+$G$47+$G$86)^AJ5 -> -172233976.2 | AL33: =-($G$44*'Technický model'!AM17)*(1+$G$47+$G$86)^AK5 -> -195054978 | AM33: =-($G$44*'Technický model'!AN17)*(1+$G$47+$G$86)^AL5 -> -220899762.6 | AN33: =-($G$44*'Technický model'!AO17)*(1+$G$47+$G$86)^AM5 -> -250168981.2 | AO33: =-($G$44*'Technický model'!AP17)*(1+$G$47+$G$86)^AN5 -> -283316371.2 | AP33: =-($G$44*'Technický model'!AQ17)*(1+$G$47+$G$86)^AO5 -> -320855790.4 | AQ33: =-($G$44*'Technický model'!AR17)*(1+$G$47+$G$86)^AP5 -> -363369182.6 | AR33: =-($G$44*'Technický model'!AS17)*(1+$G$47+$G$86)^AQ5 -> -411515599.3 | AS33: =-($G$44*'Technický model'!AT17)*(1+$G$47+$G$86)^AR5 -> -466041416.2 | AT33: =-($G$44*'Technický model'!AU17)*(1+$G$47+$G$86)^AS5 -> -527791903.8 | AU33: =-($G$44*'Technický model'!AV17)*(1+$G$47+$G$86)^AT5 -> -597724331.1 | AV33: =-($G$44*'Technický model'!AW17)*(1+$G$47+$G$86)^AU5 -> -676922804.9
C34: Eskalace ceny 070210 - Plastový odpad | F34: [%] | G34: 0.055 | K34: Odpadní voda | L34: [Kč] | M34: =-($G$45*'Technický model'!N55)*(1+$G$45) -> 0 | N34: =-($G$45*'Technický model'!O55)*(1+$G$48+$G$86)^M5 -> -57600 | O34: =-($G$45*'Technický model'!P55)*(1+$G$48+$G$86)^N5 -> -64224 | P34: =-($G$45*'Technický model'!Q55)*(1+$G$48+$G$86)^O5 -> -71609.76 | Q34: =-($G$45*'Technický model'!R55)*(1+$G$48+$G$86)^P5 -> -79844.8824 | R34: =-($G$45*'Technický model'!S55)*(1+$G$48+$G$86)^Q5 -> -89027.04388 | S34: =-($G$45*'Technický model'!T55)*(1+$G$48+$G$86)^R5 -> -99265.15392 | T34: =-($G$45*'Technický model'!U55)*(1+$G$48+$G$86)^S5 -> -110680.6466 | U34: =-($G$45*'Technický model'!V55)*(1+$G$48+$G$86)^T5 -> -123408.921 | V34: =-($G$45*'Technický model'!W55)*(1+$G$48+$G$86)^U5 -> -137600.9469 | W34: =-($G$45*'Technický model'!X55)*(1+$G$48+$G$86)^V5 -> -153425.0558 | X34: =-($G$45*'Technický model'!Y55)*(1+$G$48+$G$86)^W5 -> -171068.9372 | Y34: =-($G$45*'Technický model'!Z55)*(1+$G$48+$G$86)^X5 -> -190741.865 | Z34: =-($G$45*'Technický model'!AA55)*(1+$G$48+$G$86)^Y5 -> -212677.1795 | AA34: =-($G$45*'Technický model'!AB55)*(1+$G$48+$G$86)^Z5 -> -237135.0551 | AB34: =-($G$45*'Technický model'!AC55)*(1+$G$48+$G$86)^AA5 -> -264405.5864 | AC34: =-($G$45*'Technický model'!AD55)*(1+$G$48+$G$86)^AB5 -> -294812.2289 | AD34: =-($G$45*'Technický model'!AE55)*(1+$G$48+$G$86)^AC5 -> -328715.6352 | AE34: =-($G$45*'Technický model'!AF55)*(1+$G$48+$G$86)^AD5 -> -366517.9332 | AF34: =-($G$45*'Technický model'!AG55)*(1+$G$48+$G$86)^AE5 -> -408667.4956 | AG34: =-($G$45*'Technický model'!AH55)*(1+$G$48+$G$86)^AF5 -> -455664.2576 | AH34: =-($G$45*'Technický model'!AI55)*(1+$G$48+$G$86)^AG5 -> -508065.6472 | AI34: =-($G$45*'Technický model'!AJ55)*(1+$G$48+$G$86)^AH5 -> -566493.1966 | AJ34: =-($G$45*'Technický model'!AK55)*(1+$G$48+$G$86)^AI5 -> -631639.9142 | AK34: =-($G$45*'Technický model'!AL55)*(1+$G$48+$G$86)^AJ5 -> -704278.5043 | AL34: =-($G$45*'Technický model'!AM55)*(1+$G$48+$G$86)^AK5 -> -785270.5323 | AM34: =-($G$45*'Technický model'!AN55)*(1+$G$48+$G$86)^AL5 -> -875576.6436 | AN34: =-($G$45*'Technický model'!AO55)*(1+$G$48+$G$86)^AM5 -> -976267.9576 | AO34: =-($G$45*'Technický model'!AP55)*(1+$G$48+$G$86)^AN5 -> -1088538.773 | AP34: =-($G$45*'Technický model'!AQ55)*(1+$G$48+$G$86)^AO5 -> -1213720.732 | AQ34: =-($G$45*'Technický model'!AR55)*(1+$G$48+$G$86)^AP5 -> -1353298.616 | AR34: =-($G$45*'Technický model'!AS55)*(1+$G$48+$G$86)^AQ5 -> -1508927.956 | AS34: =-($G$45*'Technický model'!AT55)*(1+$G$48+$G$86)^AR5 -> -1682454.671 | AT34: =-($G$45*'Technický model'!AU55)*(1+$G$48+$G$86)^AS5 -> -1875936.959 | AU34: =-($G$45*'Technický model'!AV55)*(1+$G$48+$G$86)^AT5 -> -2091669.709 | AV34: =-($G$45*'Technický model'!AW55)*(1+$G$48+$G$86)^AU5 -> -2332211.725
C35: Eskalace ceny 120105 - Plastové hobliny | F35: [%] | G35: 0.055 | K35: Celkové náklady na chemikálie | L35: [Kč] | M35: =SUM(M36:M43) -> 0 | N35: =SUM(N36:N43) -> -46841064.47 | O35: =SUM(O36:O43) -> -50002836.32 | P35: -53378027.77 | Q35: -56981044.65 | R35: -60827265.16 | S35: -64933105.56 | T35: -69316090.19 | U35: -73994926.27 | V35: -78989583.8 | W35: -84321380.7 | X35: -90013073.9 | Y35: -96088956.39 | Z35: -102574960.9 | AA35: -109498770.8 | AB35: -116889937.8 | AC35: -124780008.6 | AD35: -133202659.2 | AE35: -142193838.7 | AF35: -151791922.8 | AG35: -162037877.6 | AH35: -172975434.4 | AI35: -184651276.2 | AJ35: -197115237.3 | AK35: -210420515.9 | AL35: -224623900.7 | AM35: -239786014 | AN35: -255971569.9 | AO35: -273249650.9 | AP35: -291694002.3 | AQ35: -311383347.5 | AR35: -332401723.4 | AS35: -354838839.8 | AT35: -378790461.4 | AU35: -404358817.6 | AV35: -431653037.8
C36: Eskalace ceny 150106 - Směsné obaly | F36: [%] | G36: 0.02 | J36: Náklady na nákup chemikálií pro čištění spalin | K36: Hydroxid sodný | L36: [Kč] | M36: =-$G$49*'Technický model'!N19 -> 0 | N36: =-$G$49*'Technický model'!O19*(1+$G$57+$G$86)^M5 -> -20462967.11 | O36: =-$G$49*'Technický model'!P19*(1+$G$57+$G$86)^N5 -> -21844217.39 | P36: =-$G$49*'Technický model'!Q19*(1+$G$57+$G$86)^O5 -> -23318702.06 | Q36: =-$G$49*'Technický model'!R19*(1+$G$57+$G$86)^P5 -> -24892714.45 | R36: =-$G$49*'Technický model'!S19*(1+$G$57+$G$86)^Q5 -> -26572972.68 | S36: =-$G$49*'Technický model'!T19*(1+$G$57+$G$86)^R5 -> -28366648.33 | T36: =-$G$49*'Technický model'!U19*(1+$G$57+$G$86)^S5 -> -30281397.1 | U36: =-$G$49*'Technický model'!V19*(1+$G$57+$G$86)^T5 -> -32325391.4 | V36: =-$G$49*'Technický model'!W19*(1+$G$57+$G$86)^U5 -> -34507355.32 | W36: =-$G$49*'Technický model'!X19*(1+$G$57+$G$86)^V5 -> -36836601.8 | X36: =-$G$49*'Technický model'!Y19*(1+$G$57+$G$86)^W5 -> -39323072.42 | Y36: =-$G$49*'Technický model'!Z19*(1+$G$57+$G$86)^X5 -> -41977379.81 | Z36: =-$G$49*'Technický model'!AA19*(1+$G$57+$G$86)^Y5 -> -44810852.95 | AA36: =-$G$49*'Technický model'!AB19*(1+$G$57+$G$86)^Z5 -> -47835585.53 | AB36: =-$G$49*'Technický model'!AC19*(1+$G$57+$G$86)^AA5 -> -51064487.55 | AC36: =-$G$49*'Technický model'!AD19*(1+$G$57+$G$86)^AB5 -> -54511340.46 | AD36: =-$G$49*'Technický model'!AE19*(1+$G$57+$G$86)^AC5 -> -58190855.94 | AE36: =-$G$49*'Technický model'!AF19*(1+$G$57+$G$86)^AD5 -> -62118738.71 | AF36: =-$G$49*'Technický model'!AG19*(1+$G$57+$G$86)^AE5 -> -66311753.58 | AG36: =-$G$49*'Technický model'!AH19*(1+$G$57+$G$86)^AF5 -> -70787796.94 | AH36: =-$G$49*'Technický model'!AI19*(1+$G$57+$G$86)^AG5 -> -75565973.24 | AI36: =-$G$49*'Technický model'!AJ19*(1+$G$57+$G$86)^AH5 -> -80666676.43 | AJ36: =-$G$49*'Technický model'!AK19*(1+$G$57+$G$86)^AI5 -> -86111677.09 | AK36: =-$G$49*'Technický model'!AL19*(1+$G$57+$G$86)^AJ5 -> -91924215.29 | AL36: =-$G$49*'Technický model'!AM19*(1+$G$57+$G$86)^AK5 -> -98129099.83 | AM36: =-$G$49*'Technický model'!AN19*(1+$G$57+$G$86)^AL5 -> -104752814.1 | AN36: =-$G$49*'Technický model'!AO19*(1+$G$57+$G$86)^AM5 -> -111823629 | AO36: =-$G$49*'Technický model'!AP19*(1+$G$57+$G$86)^AN5 -> -119371724 | AP36: =-$G$49*'Technický model'!AQ19*(1+$G$57+$G$86)^AO5 -> -127429315.3 | AQ36: =-$G$49*'Technický model'!AR19*(1+$G$57+$G$86)^AP5 -> -136030794.1 | AR36: =-$G$49*'Technický model'!AS19*(1+$G$57+$G$86)^AQ5 -> -145212872.7 | AS36: =-$G$49*'Technický model'!AT19*(1+$G$57+$G$86)^AR5 -> -155014741.6 | AT36: =-$G$49*'Technický model'!AU19*(1+$G$57+$G$86)^AS5 -> -165478236.7 | AU36: =-$G$49*'Technický model'!AV19*(1+$G$57+$G$86)^AT5 -> -176648017.7 | AV36: =-$G$49*'Technický model'!AW19*(1+$G$57+$G$86)^AU5 -> -188571758.9
C37: Eskalace ceny 170201 - Dřevo | F37: [%] | G37: 0.02 | K37: Vápenný hydrát | L37: [Kč] | M37: =-$G$50*'Technický model'!N20 -> 0 | N37: =-$G$50*'Technický model'!O20*(1+$G$58+$G$86)^M5 -> -597177.5812 | O37: =-$G$50*'Technický model'!P20*(1+$G$58+$G$86)^N5 -> -637487.068 | P37: =-$G$50*'Technický model'!Q20*(1+$G$58+$G$86)^O5 -> -680517.4451 | Q37: =-$G$50*'Technický model'!R20*(1+$G$58+$G$86)^P5 -> -726452.3726 | R37: =-$G$50*'Technický model'!S20*(1+$G$58+$G$86)^Q5 -> -775487.9077 | S37: =-$G$50*'Technický model'!T20*(1+$G$58+$G$86)^R5 -> -827833.3415 | T37: =-$G$50*'Technický model'!U20*(1+$G$58+$G$86)^S5 -> -883712.0921 | U37: =-$G$50*'Technický model'!V20*(1+$G$58+$G$86)^T5 -> -943362.6583 | V37: =-$G$50*'Technický model'!W20*(1+$G$58+$G$86)^U5 -> -1007039.638 | W37: =-$G$50*'Technický model'!X20*(1+$G$58+$G$86)^V5 -> -1075014.813 | X37: =-$G$50*'Technický model'!Y20*(1+$G$58+$G$86)^W5 -> -1147578.313 | Y37: =-$G$50*'Technický model'!Z20*(1+$G$58+$G$86)^X5 -> -1225039.849 | Z37: =-$G$50*'Technický model'!AA20*(1+$G$58+$G$86)^Y5 -> -1307730.039 | AA37: =-$G$50*'Technický model'!AB20*(1+$G$58+$G$86)^Z5 -> -1396001.817 | AB37: =-$G$50*'Technický model'!AC20*(1+$G$58+$G$86)^AA5 -> -1490231.939 | AC37: =-$G$50*'Technický model'!AD20*(1+$G$58+$G$86)^AB5 -> -1590822.595 | AD37: =-$G$50*'Technický model'!AE20*(1+$G$58+$G$86)^AC5 -> -1698203.121 | AE37: =-$G$50*'Technický model'!AF20*(1+$G$58+$G$86)^AD5 -> -1812831.831 | AF37: =-$G$50*'Technický model'!AG20*(1+$G$58+$G$86)^AE5 -> -1935197.98 | AG37: =-$G$50*'Technický model'!AH20*(1+$G$58+$G$86)^AF5 -> -2065823.843 | AH37: =-$G$50*'Technický model'!AI20*(1+$G$58+$G$86)^AG5 -> -2205266.953 | AI37: =-$G$50*'Technický model'!AJ20*(1+$G$58+$G$86)^AH5 -> -2354122.472 | AJ37: =-$G$50*'Technický model'!AK20*(1+$G$58+$G$86)^AI5 -> -2513025.739 | AK37: =-$G$50*'Technický model'!AL20*(1+$G$58+$G$86)^AJ5 -> -2682654.976 | AL37: =-$G$50*'Technický model'!AM20*(1+$G$58+$G$86)^AK5 -> -2863734.187 | AM37: =-$G$50*'Technický model'!AN20*(1+$G$58+$G$86)^AL5 -> -3057036.245 | AN37: =-$G$50*'Technický model'!AO20*(1+$G$58+$G$86)^AM5 -> -3263386.191 | AO37: =-$G$50*'Technický model'!AP20*(1+$G$58+$G$86)^AN5 -> -3483664.759 | AP37: =-$G$50*'Technický model'!AQ20*(1+$G$58+$G$86)^AO5 -> -3718812.131 | AQ37: =-$G$50*'Technický model'!AR20*(1+$G$58+$G$86)^AP5 -> -3969831.949 | AR37: =-$G$50*'Technický model'!AS20*(1+$G$58+$G$86)^AQ5 -> -4237795.606 | AS37: =-$G$50*'Technický model'!AT20*(1+$G$58+$G$86)^AR5 -> -4523846.809 | AT37: =-$G$50*'Technický model'!AU20*(1+$G$58+$G$86)^AS5 -> -4829206.469 | AU37: =-$G$50*'Technický model'!AV20*(1+$G$58+$G$86)^AT5 -> -5155177.906 | AV37: =-$G$50*'Technický model'!AW20*(1+$G$58+$G$86)^AU5 -> -5503152.414
C38: Eskalace ceny 200101 - Papír | F38: [%] | G38: 0.02 | K38: Čpavková voda | L38: [Kč] | M38: =-$G$51*'Technický model'!N21 -> 0 | N38: =-$G$51*'Technický model'!O21*(1+$G$59+$G$86)^M5 -> -3420010.82 | O38: =-$G$51*'Technický model'!P21*(1+$G$59+$G$86)^N5 -> -3650861.551 | P38: =-$G$51*'Technický model'!Q21*(1+$G$59+$G$86)^O5 -> -3897294.705 | Q38: =-$G$51*'Technický model'!R21*(1+$G$59+$G$86)^P5 -> -4160362.098 | R38: =-$G$51*'Technický model'!S21*(1+$G$59+$G$86)^Q5 -> -4441186.54 | S38: =-$G$51*'Technický model'!T21*(1+$G$59+$G$86)^R5 -> -4740966.631 | T38: =-$G$51*'Technický model'!U21*(1+$G$59+$G$86)^S5 -> -5060981.879 | U38: =-$G$51*'Technický model'!V21*(1+$G$59+$G$86)^T5 -> -5402598.155 | V38: =-$G$51*'Technický model'!W21*(1+$G$59+$G$86)^U5 -> -5767273.531 | W38: =-$G$51*'Technický model'!X21*(1+$G$59+$G$86)^V5 -> -6156564.494 | X38: =-$G$51*'Technický model'!Y21*(1+$G$59+$G$86)^W5 -> -6572132.598 | Y38: =-$G$51*'Technický model'!Z21*(1+$G$59+$G$86)^X5 -> -7015751.548 | Z38: =-$G$51*'Technický model'!AA21*(1+$G$59+$G$86)^Y5 -> -7489314.777 | AA38: =-$G$51*'Technický model'!AB21*(1+$G$59+$G$86)^Z5 -> -7994843.525 | AB38: =-$G$51*'Technický model'!AC21*(1+$G$59+$G$86)^AA5 -> -8534495.463 | AC38: =-$G$51*'Technický model'!AD21*(1+$G$59+$G$86)^AB5 -> -9110573.907 | AD38: =-$G$51*'Technický model'!AE21*(1+$G$59+$G$86)^AC5 -> -9725537.645 | AE38: =-$G$51*'Technický model'!AF21*(1+$G$59+$G$86)^AD5 -> -10382011.44 | AF38: =-$G$51*'Technický model'!AG21*(1+$G$59+$G$86)^AE5 -> -11082797.21 | AG38: =-$G$51*'Technický model'!AH21*(1+$G$59+$G$86)^AF5 -> -11830886.02 | AH38: =-$G$51*'Technický model'!AI21*(1+$G$59+$G$86)^AG5 -> -12629470.83 | AI38: =-$G$51*'Technický model'!AJ21*(1+$G$59+$G$86)^AH5 -> -13481960.11 | AJ38: =-$G$51*'Technický model'!AK21*(1+$G$59+$G$86)^AI5 -> -14391992.41 | AK38: =-$G$51*'Technický model'!AL21*(1+$G$59+$G$86)^AJ5 -> -15363451.9 | AL38: =-$G$51*'Technický model'!AM21*(1+$G$59+$G$86)^AK5 -> -16400484.91 | AM38: =-$G$51*'Technický model'!AN21*(1+$G$59+$G$86)^AL5 -> -17507517.64 | AN38: =-$G$51*'Technický model'!AO21*(1+$G$59+$G$86)^AM5 -> -18689275.08 | AO38: =-$G$51*'Technický model'!AP21*(1+$G$59+$G$86)^AN5 -> -19950801.14 | AP38: =-$G$51*'Technický model'!AQ21*(1+$G$59+$G$86)^AO5 -> -21297480.22 | AQ38: =-$G$51*'Technický model'!AR21*(1+$G$59+$G$86)^AP5 -> -22735060.14 | AR38: =-$G$51*'Technický model'!AS21*(1+$G$59+$G$86)^AQ5 -> -24269676.7 | AS38: =-$G$51*'Technický model'!AT21*(1+$G$59+$G$86)^AR5 -> -25907879.87 | AT38: =-$G$51*'Technický model'!AU21*(1+$G$59+$G$86)^AS5 -> -27656661.76 | AU38: =-$G$51*'Technický model'!AV21*(1+$G$59+$G$86)^AT5 -> -29523486.43 | AV38: =-$G$51*'Technický model'!AW21*(1+$G$59+$G$86)^AU5 -> -31516321.77
C39: Eskalace ceny 200111 - Textil | F39: [%] | G39: 0.02 | K39: Kyselina solná | L39: [Kč] | M39: =-$G$52*'Technický model'!N22 -> 0 | N39: =-$G$52*'Technický model'!O22*(1+$G$60+$G$86)^M5 -> -710729.3413 | O39: =-$G$52*'Technický model'!P22*(1+$G$60+$G$86)^N5 -> -758703.5718 | P39: =-$G$52*'Technický model'!Q22*(1+$G$60+$G$86)^O5 -> -809916.0629 | Q39: =-$G$52*'Technický model'!R22*(1+$G$60+$G$86)^P5 -> -864585.3972 | R39: =-$G$52*'Technický model'!S22*(1+$G$60+$G$86)^Q5 -> -922944.9115 | S39: =-$G$52*'Technický model'!T22*(1+$G$60+$G$86)^R5 -> -985243.693 | T39: =-$G$52*'Technický model'!U22*(1+$G$60+$G$86)^S5 -> -1051747.642 | U39: =-$G$52*'Technický model'!V22*(1+$G$60+$G$86)^T5 -> -1122740.608 | V39: =-$G$52*'Technický model'!W22*(1+$G$60+$G$86)^U5 -> -1198525.599 | W39: =-$G$52*'Technický model'!X22*(1+$G$60+$G$86)^V5 -> -1279426.077 | X39: =-$G$52*'Technický model'!Y22*(1+$G$60+$G$86)^W5 -> -1365787.337 | Y39: =-$G$52*'Technický model'!Z22*(1+$G$60+$G$86)^X5 -> -1457977.983 | Z39: =-$G$52*'Technický model'!AA22*(1+$G$60+$G$86)^Y5 -> -1556391.496 | AA39: =-$G$52*'Technický model'!AB22*(1+$G$60+$G$86)^Z5 -> -1661447.922 | AB39: =-$G$52*'Technický model'!AC22*(1+$G$60+$G$86)^AA5 -> -1773595.657 | AC39: =-$G$52*'Technický model'!AD22*(1+$G$60+$G$86)^AB5 -> -1893313.364 | AD39: =-$G$52*'Technický model'!AE22*(1+$G$60+$G$86)^AC5 -> -2021112.016 | AE39: =-$G$52*'Technický model'!AF22*(1+$G$60+$G$86)^AD5 -> -2157537.077 | AF39: =-$G$52*'Technický model'!AG22*(1+$G$60+$G$86)^AE5 -> -2303170.83 | AG39: =-$G$52*'Technický model'!AH22*(1+$G$60+$G$86)^AF5 -> -2458634.861 | AH39: =-$G$52*'Technický model'!AI22*(1+$G$60+$G$86)^AG5 -> -2624592.714 | AI39: =-$G$52*'Technický model'!AJ22*(1+$G$60+$G$86)^AH5 -> -2801752.722 | AJ39: =-$G$52*'Technický model'!AK22*(1+$G$60+$G$86)^AI5 -> -2990871.031 | AK39: =-$G$52*'Technický model'!AL22*(1+$G$60+$G$86)^AJ5 -> -3192754.826 | AL39: =-$G$52*'Technický model'!AM22*(1+$G$60+$G$86)^AK5 -> -3408265.776 | AM39: =-$G$52*'Technický model'!AN22*(1+$G$60+$G$86)^AL5 -> -3638323.716 | AN39: =-$G$52*'Technický model'!AO22*(1+$G$60+$G$86)^AM5 -> -3883910.567 | AO39: =-$G$52*'Technický model'!AP22*(1+$G$60+$G$86)^AN5 -> -4146074.53 | AP39: =-$G$52*'Technický model'!AQ22*(1+$G$60+$G$86)^AO5 -> -4425934.561 | AQ39: =-$G$52*'Technický model'!AR22*(1+$G$60+$G$86)^AP5 -> -4724685.144 | AR39: =-$G$52*'Technický model'!AS22*(1+$G$60+$G$86)^AQ5 -> -5043601.391 | AS39: =-$G$52*'Technický model'!AT22*(1+$G$60+$G$86)^AR5 -> -5384044.485 | AT39: =-$G$52*'Technický model'!AU22*(1+$G$60+$G$86)^AS5 -> -5747467.488 | AU39: =-$G$52*'Technický model'!AV22*(1+$G$60+$G$86)^AT5 -> -6135421.543 | AV39: =-$G$52*'Technický model'!AW22*(1+$G$60+$G$86)^AU5 -> -6549562.498
C40: Eskalace ceny 200301 - Směsný komunální odpad | F40: [%] | G40: 0.06 | K40: Chlorid železitý | L40: [Kč] | M40: =-$G$53*'Technický model'!N23 -> 0 | N40: =-$G$53*'Technický model'!O23*(1+$G$61+$G$86)^M5 -> -1182286.564 | O40: =-$G$53*'Technický model'!P23*(1+$G$61+$G$86)^N5 -> -1262090.907 | P40: =-$G$53*'Technický model'!Q23*(1+$G$61+$G$86)^O5 -> -1347282.044 | Q40: =-$G$53*'Technický model'!R23*(1+$G$61+$G$86)^P5 -> -1438223.582 | R40: =-$G$53*'Technický model'!S23*(1+$G$61+$G$86)^Q5 -> -1535303.673 | S40: =-$G$53*'Technický model'!T23*(1+$G$61+$G$86)^R5 -> -1638936.671 | T40: =-$G$53*'Technický model'!U23*(1+$G$61+$G$86)^S5 -> -1749564.897 | U40: =-$G$53*'Technický model'!V23*(1+$G$61+$G$86)^T5 -> -1867660.527 | V40: =-$G$53*'Technický model'!W23*(1+$G$61+$G$86)^U5 -> -1993727.613 | W40: =-$G$53*'Technický model'!X23*(1+$G$61+$G$86)^V5 -> -2128304.227 | X40: =-$G$53*'Technický model'!Y23*(1+$G$61+$G$86)^W5 -> -2271964.762 | Y40: =-$G$53*'Technický model'!Z23*(1+$G$61+$G$86)^X5 -> -2425322.383 | Z40: =-$G$53*'Technický model'!AA23*(1+$G$61+$G$86)^Y5 -> -2589031.644 | AA40: =-$G$53*'Technický model'!AB23*(1+$G$61+$G$86)^Z5 -> -2763791.28 | AB40: =-$G$53*'Technický model'!AC23*(1+$G$61+$G$86)^AA5 -> -2950347.192 | AC40: =-$G$53*'Technický model'!AD23*(1+$G$61+$G$86)^AB5 -> -3149495.627 | AD40: =-$G$53*'Technický model'!AE23*(1+$G$61+$G$86)^AC5 -> -3362086.582 | AE40: =-$G$53*'Technický model'!AF23*(1+$G$61+$G$86)^AD5 -> -3589027.426 | AF40: =-$G$53*'Technický model'!AG23*(1+$G$61+$G$86)^AE5 -> -3831286.778 | AG40: =-$G$53*'Technický model'!AH23*(1+$G$61+$G$86)^AF5 -> -4089898.635 | AH40: =-$G$53*'Technický model'!AI23*(1+$G$61+$G$86)^AG5 -> -4365966.793 | AI40: =-$G$53*'Technický model'!AJ23*(1+$G$61+$G$86)^AH5 -> -4660669.551 | AJ40: =-$G$53*'Technický model'!AK23*(1+$G$61+$G$86)^AI5 -> -4975264.746 | AK40: =-$G$53*'Technický model'!AL23*(1+$G$61+$G$86)^AJ5 -> -5311095.117 | AL40: =-$G$53*'Technický model'!AM23*(1+$G$61+$G$86)^AK5 -> -5669594.037 | AM40: =-$G$53*'Technický model'!AN23*(1+$G$61+$G$86)^AL5 -> -6052291.634 | AN40: =-$G$53*'Technický model'!AO23*(1+$G$61+$G$86)^AM5 -> -6460821.32 | AO40: =-$G$53*'Technický model'!AP23*(1+$G$61+$G$86)^AN5 -> -6896926.759 | AP40: =-$G$53*'Technický model'!AQ23*(1+$G$61+$G$86)^AO5 -> -7362469.315 | AQ40: =-$G$53*'Technický model'!AR23*(1+$G$61+$G$86)^AP5 -> -7859435.994 | AR40: =-$G$53*'Technický model'!AS23*(1+$G$61+$G$86)^AQ5 -> -8389947.923 | AS40: =-$G$53*'Technický model'!AT23*(1+$G$61+$G$86)^AR5 -> -8956269.408 | AT40: =-$G$53*'Technický model'!AU23*(1+$G$61+$G$86)^AS5 -> -9560817.593 | AU40: =-$G$53*'Technický model'!AV23*(1+$G$61+$G$86)^AT5 -> -10206172.78 | AV40: =-$G$53*'Technický model'!AW23*(1+$G$61+$G$86)^AU5 -> -10895089.44
C41: Eskalace ceny 200307 - Objemný odpad | F41: [%] | G41: 0.02 | K41: Sulfid sodný | L41: [Kč] | M41: =-$G$54*'Technický model'!N24 -> 0 | N41: =-$G$54*'Technický model'!O24*(1+$G$62+$G$86)^M5 -> -15154479.57 | O41: =-$G$54*'Technický model'!P24*(1+$G$62+$G$86)^N5 -> -16177406.94 | P41: =-$G$54*'Technický model'!Q24*(1+$G$62+$G$86)^O5 -> -17269381.91 | Q41: =-$G$54*'Technický model'!R24*(1+$G$62+$G$86)^P5 -> -18435065.19 | R41: =-$G$54*'Technický model'!S24*(1+$G$62+$G$86)^Q5 -> -19679432.09 | S41: =-$G$54*'Technický model'!T24*(1+$G$62+$G$86)^R5 -> -21007793.75 | T41: =-$G$54*'Technický model'!U24*(1+$G$62+$G$86)^S5 -> -22425819.83 | U41: =-$G$54*'Technický model'!V24*(1+$G$62+$G$86)^T5 -> -23939562.67 | V41: =-$G$54*'Technický model'!W24*(1+$G$62+$G$86)^U5 -> -25555483.15 | W41: =-$G$54*'Technický model'!X24*(1+$G$62+$G$86)^V5 -> -27280478.26 | X41: =-$G$54*'Technický model'!Y24*(1+$G$62+$G$86)^W5 -> -29121910.54 | Y41: =-$G$54*'Technický model'!Z24*(1+$G$62+$G$86)^X5 -> -31087639.51 | Z41: =-$G$54*'Technický model'!AA24*(1+$G$62+$G$86)^Y5 -> -33186055.17 | AA41: =-$G$54*'Technický model'!AB24*(1+$G$62+$G$86)^Z5 -> -35426113.9 | AB41: =-$G$54*'Technický model'!AC24*(1+$G$62+$G$86)^AA5 -> -37817376.59 | AC41: =-$G$54*'Technický model'!AD24*(1+$G$62+$G$86)^AB5 -> -40370049.5 | AD41: =-$G$54*'Technický model'!AE24*(1+$G$62+$G$86)^AC5 -> -43095027.85 | AE41: =-$G$54*'Technický model'!AF24*(1+$G$62+$G$86)^AD5 -> -46003942.23 | AF41: =-$G$54*'Technický model'!AG24*(1+$G$62+$G$86)^AE5 -> -49109208.33 | AG41: =-$G$54*'Technický model'!AH24*(1+$G$62+$G$86)^AF5 -> -52424079.89 | AH41: =-$G$54*'Technický model'!AI24*(1+$G$62+$G$86)^AG5 -> -55962705.28 | AI41: =-$G$54*'Technický model'!AJ24*(1+$G$62+$G$86)^AH5 -> -59740187.89 | AJ41: =-$G$54*'Technický model'!AK24*(1+$G$62+$G$86)^AI5 -> -63772650.57 | AK41: =-$G$54*'Technický model'!AL24*(1+$G$62+$G$86)^AJ5 -> -68077304.48 | AL41: =-$G$54*'Technický model'!AM24*(1+$G$62+$G$86)^AK5 -> -72672522.54 | AM41: =-$G$54*'Technický model'!AN24*(1+$G$62+$G$86)^AL5 -> -77577917.81 | AN41: =-$G$54*'Technický model'!AO24*(1+$G$62+$G$86)^AM5 -> -82814427.26 | AO41: =-$G$54*'Technický model'!AP24*(1+$G$62+$G$86)^AN5 -> -88404401.1 | AP41: =-$G$54*'Technický model'!AQ24*(1+$G$62+$G$86)^AO5 -> -94371698.17 | AQ41: =-$G$54*'Technický model'!AR24*(1+$G$62+$G$86)^AP5 -> -100741787.8 | AR41: =-$G$54*'Technický model'!AS24*(1+$G$62+$G$86)^AQ5 -> -107541858.5 | AS41: =-$G$54*'Technický model'!AT24*(1+$G$62+$G$86)^AR5 -> -114800933.9 | AT41: =-$G$54*'Technický model'!AU24*(1+$G$62+$G$86)^AS5 -> -122549997 | AU41: =-$G$54*'Technický model'!AV24*(1+$G$62+$G$86)^AT5 -> -130822121.8 | AV41: =-$G$54*'Technický model'!AW24*(1+$G$62+$G$86)^AU5 -> -139652615
C42: Eskalace ceny Ostatní nezařazený odpad | F42: [%] | G42: 0.02 | K42: Činidla kotelních vod | L42: [Kč] | M42: =-$G$55*'Technický model'!N25 -> 0 | N42: =-$G$55*'Technický model'!O25*(1+$G$63+$G$86)^M5 -> -5306960.432 | O42: =-$G$55*'Technický model'!P25*(1+$G$63+$G$86)^N5 -> -5665180.262 | P42: =-$G$55*'Technický model'!Q25*(1+$G$63+$G$86)^O5 -> -6047579.929 | Q42: =-$G$55*'Technický model'!R25*(1+$G$63+$G$86)^P5 -> -6455791.574 | R42: =-$G$55*'Technický model'!S25*(1+$G$63+$G$86)^Q5 -> -6891557.506 | S42: =-$G$55*'Technický model'!T25*(1+$G$63+$G$86)^R5 -> -7356737.637 | T42: =-$G$55*'Technický model'!U25*(1+$G$63+$G$86)^S5 -> -7853317.428 | U42: =-$G$55*'Technický model'!V25*(1+$G$63+$G$86)^T5 -> -8383416.354 | V42: =-$G$55*'Technický model'!W25*(1+$G$63+$G$86)^U5 -> -8949296.958 | W42: =-$G$55*'Technický model'!X25*(1+$G$63+$G$86)^V5 -> -9553374.503 | X42: =-$G$55*'Technický model'!Y25*(1+$G$63+$G$86)^W5 -> -10198227.28 | Y42: =-$G$55*'Technický model'!Z25*(1+$G$63+$G$86)^X5 -> -10886607.62 | Z42: =-$G$55*'Technický model'!AA25*(1+$G$63+$G$86)^Y5 -> -11621453.64 | AA42: =-$G$55*'Technický model'!AB25*(1+$G$63+$G$86)^Z5 -> -12405901.76 | AB42: =-$G$55*'Technický model'!AC25*(1+$G$63+$G$86)^AA5 -> -13243300.13 | AC42: =-$G$55*'Technický model'!AD25*(1+$G$63+$G$86)^AB5 -> -14137222.89 | AD42: =-$G$55*'Technický model'!AE25*(1+$G$63+$G$86)^AC5 -> -15091485.43 | AE42: =-$G$55*'Technický model'!AF25*(1+$G$63+$G$86)^AD5 -> -16110160.7 | AF42: =-$G$55*'Technický model'!AG25*(1+$G$63+$G$86)^AE5 -> -17197596.54 | AG42: =-$G$55*'Technický model'!AH25*(1+$G$63+$G$86)^AF5 -> -18358434.31 | AH42: =-$G$55*'Technický model'!AI25*(1+$G$63+$G$86)^AG5 -> -19597628.63 | AI42: =-$G$55*'Technický model'!AJ25*(1+$G$63+$G$86)^AH5 -> -20920468.56 | AJ42: =-$G$55*'Technický model'!AK25*(1+$G$63+$G$86)^AI5 -> -22332600.19 | AK42: =-$G$55*'Technický model'!AL25*(1+$G$63+$G$86)^AJ5 -> -23840050.7 | AL42: =-$G$55*'Technický model'!AM25*(1+$G$63+$G$86)^AK5 -> -25449254.12 | AM42: =-$G$55*'Technický model'!AN25*(1+$G$63+$G$86)^AL5 -> -27167078.77 | AN42: =-$G$55*'Technický model'!AO25*(1+$G$63+$G$86)^AM5 -> -29000856.59 | AO42: =-$G$55*'Technický model'!AP25*(1+$G$63+$G$86)^AN5 -> -30958414.41 | AP42: =-$G$55*'Technický model'!AQ25*(1+$G$63+$G$86)^AO5 -> -33048107.39 | AQ42: =-$G$55*'Technický model'!AR25*(1+$G$63+$G$86)^AP5 -> -35278854.63 | AR42: =-$G$55*'Technický model'!AS25*(1+$G$63+$G$86)^AQ5 -> -37660177.32 | AS42: =-$G$55*'Technický model'!AT25*(1+$G$63+$G$86)^AR5 -> -40202239.29 | AT42: =-$G$55*'Technický model'!AU25*(1+$G$63+$G$86)^AS5 -> -42915890.44 | AU42: =-$G$55*'Technický model'!AV25*(1+$G$63+$G$86)^AT5 -> -45812713.05 | AV42: =-$G$55*'Technický model'!AW25*(1+$G$63+$G$86)^AU5 -> -48905071.18
B43: Cena vody | C43: Teplonosná voda | F43: [Kč/m3] | G43: 4.5 | K43: Flokulant | L43: [Kč] | M43: =-$G$56*'Technický model'!N26 -> 0 | N43: =-$G$56*'Technický model'!O26*(1+$G$64+$G$86)^M5 -> -6453.053744 | O43: =-$G$56*'Technický model'!P26*(1+$G$64+$G$86)^N5 -> -6888.634872 | P43: =-$G$56*'Technický model'!Q26*(1+$G$64+$G$86)^O5 -> -7353.617726 | Q43: =-$G$56*'Technický model'!R26*(1+$G$64+$G$86)^P5 -> -7849.986922 | R43: =-$G$56*'Technický model'!S26*(1+$G$64+$G$86)^Q5 -> -8379.86104 | S43: =-$G$56*'Technický model'!T26*(1+$G$64+$G$86)^R5 -> -8945.50166 | T43: =-$G$56*'Technický model'!U26*(1+$G$64+$G$86)^S5 -> -9549.323022 | U43: =-$G$56*'Technický model'!V26*(1+$G$64+$G$86)^T5 -> -10193.90233 | V43: =-$G$56*'Technický model'!W26*(1+$G$64+$G$86)^U5 -> -10881.99073 | W43: =-$G$56*'Technický model'!X26*(1+$G$64+$G$86)^V5 -> -11616.52511 | X43: =-$G$56*'Technický model'!Y26*(1+$G$64+$G$86)^W5 -> -12400.64055 | Y43: =-$G$56*'Technický model'!Z26*(1+$G$64+$G$86)^X5 -> -13237.68379 | Z43: =-$G$56*'Technický model'!AA26*(1+$G$64+$G$86)^Y5 -> -14131.22745 | AA43: =-$G$56*'Technický model'!AB26*(1+$G$64+$G$86)^Z5 -> -15085.0853 | AB43: =-$G$56*'Technický model'!AC26*(1+$G$64+$G$86)^AA5 -> -16103.32856 | AC43: =-$G$56*'Technický model'!AD26*(1+$G$64+$G$86)^AB5 -> -17190.30323 | AD43: =-$G$56*'Technický model'!AE26*(1+$G$64+$G$86)^AC5 -> -18350.6487 | AE43: =-$G$56*'Technický model'!AF26*(1+$G$64+$G$86)^AD5 -> -19589.31749 | AF43: =-$G$56*'Technický model'!AG26*(1+$G$64+$G$86)^AE5 -> -20911.59642 | AG43: =-$G$56*'Technický model'!AH26*(1+$G$64+$G$86)^AF5 -> -22323.12918 | AH43: =-$G$56*'Technický model'!AI26*(1+$G$64+$G$86)^AG5 -> -23829.9404 | AI43: =-$G$56*'Technický model'!AJ26*(1+$G$64+$G$86)^AH5 -> -25438.46137 | AJ43: =-$G$56*'Technický model'!AK26*(1+$G$64+$G$86)^AI5 -> -27155.55752 | AK43: =-$G$56*'Technický model'!AL26*(1+$G$64+$G$86)^AJ5 -> -28988.55765 | AL43: =-$G$56*'Technický model'!AM26*(1+$G$64+$G$86)^AK5 -> -30945.28529 | AM43: =-$G$56*'Technický model'!AN26*(1+$G$64+$G$86)^AL5 -> -33034.09205 | AN43: =-$G$56*'Technický model'!AO26*(1+$G$64+$G$86)^AM5 -> -35263.89326 | AO43: =-$G$56*'Technický model'!AP26*(1+$G$64+$G$86)^AN5 -> -37644.20605 | AP43: =-$G$56*'Technický model'!AQ26*(1+$G$64+$G$86)^AO5 -> -40185.18996 | AQ43: =-$G$56*'Technický model'!AR26*(1+$G$64+$G$86)^AP5 -> -42897.69029 | AR43: =-$G$56*'Technický model'!AS26*(1+$G$64+$G$86)^AQ5 -> -45793.28438 | AS43: =-$G$56*'Technický model'!AT26*(1+$G$64+$G$86)^AR5 -> -48884.33108 | AT43: =-$G$56*'Technický model'!AU26*(1+$G$64+$G$86)^AS5 -> -52184.02342 | AU43: =-$G$56*'Technický model'!AV26*(1+$G$64+$G$86)^AT5 -> -55706.445 | AV43: =-$G$56*'Technický model'!AW26*(1+$G$64+$G$86)^AU5 -> -59466.63004
C44: Výrobní voda | F44: [Kč/m3] | G44: 5.2 | J44: Finanční náklady na provoz | K44: Pojištění | L44: [Kč] | M44: 0 | N44: =-$G$19*$G$7*(1+$G$20+$G$86)^M5 -> -13875000 | O44: =-$G$19*$G$7*(1+$G$20+$G$86)^N5 -> -14811562.5 | P44: =-$G$19*$G$7*(1+$G$20+$G$86)^O5 -> -15811342.97 | Q44: -16878608.62 | R44: -18017914.7 | S44: -19234123.94 | T44: -20532427.31 | U44: -21918366.15 | V44: -23397855.87 | W44: -24977211.14 | X44: -26663172.89 | Y44: -28462937.06 | Z44: -30384185.31 | AA44: -32435117.82 | AB44: -34624488.27 | AC44: -36961641.23 | AD44: -39456552.02 | AE44: -42119869.28 | AF44: -44962960.45 | AG44: -47997960.28 | AH44: -51237822.6 | AI44: -54696375.63 | AJ44: -58388380.98 | AK44: -62329596.7 | AL44: -66536844.48 | AM44: -71028081.48 | AN44: -75822476.98 | AO44: -80940494.18 | AP44: -86403977.53 | AQ44: -92236246.02 | AR44: -98462192.62 | AS44: -105108390.6 | AT44: -112203207 | AU44: -119776923.5 | AV44: -127861865.8
C45: Odpadní voda | F45: [Kč/m3] | G45: 4 | K45: Ostatní finanční náklady | L45: [Kč] | M45: 0 | N45: 0 | O45: 0 | P45: 0 | Q45: 0 | R45: 0 | S45: 0 | T45: 0 | U45: 0 | V45: 0 | W45: 0 | X45: 0 | Y45: 0 | Z45: 0 | AA45: 0 | AB45: 0 | AC45: 0 | AD45: 0 | AE45: 0 | AF45: 0 | AG45: 0 | AH45: 0 | AI45: 0 | AJ45: 0 | AK45: 0 | AL45: 0 | AM45: 0 | AN45: 0 | AO45: 0 | AP45: 0 | AQ45: 0 | AR45: 0 | AS45: 0 | AT45: 0 | AU45: 0 | AV45: 0
C46: Eskalace ceny chladící vody | F46: [%] | G46: 0.085 | K46: Celkové finanční náklady | L46: [Kč] | M46: =M44+M45+M47 -> 0 | N46: =N44+N45+N47 -> -13875000 | O46: =O44+O45+O47 -> -14811562.5 | P46: -15811342.97 | Q46: =Q44+Q45+Q47 -> -16878608.62 | R46: -18017914.7 | S46: -19234123.94 | T46: -20532427.31 | U46: -21918366.15 | V46: -23397855.87 | W46: -24977211.14 | X46: -26663172.89 | Y46: -28462937.06 | Z46: -30384185.31 | AA46: -32435117.82 | AB46: -34624488.27 | AC46: -36961641.23 | AD46: -39456552.02 | AE46: -42119869.28 | AF46: -44962960.45 | AG46: -47997960.28 | AH46: -51237822.6 | AI46: -54696375.63 | AJ46: -58388380.98 | AK46: -62329596.7 | AL46: -66536844.48 | AM46: -71028081.48 | AN46: -75822476.98 | AO46: -80940494.18 | AP46: -86403977.53 | AQ46: -92236246.02 | AR46: -98462192.62 | AS46: -105108390.6 | AT46: -112203207 | AU46: -119776923.5 | AV46: -127861865.8
C47: Eskalace ceny výrobní vody | F47: [%] | G47: 0.075 | J47: EU ETS | K47: Náklady na emisní povolenku EU ETS | L47: [Kč] | M47: =-IF($H$65=TRUE,IF(M6>=$G$65,$G$66*$G$69*'Technický model'!N69*(1+$G$67)^L5,0),0) -> 0 | N47: =-IF($H$65=TRUE,IF(N6>=$G$65,$I$66*'Technický model'!O69*(1+$G$67)^M5,0),0) -> 0 | O47: =-IF($H$65=TRUE,IF(O6>=$G$65,$I$66*'Technický model'!P69*(1+$G$67)^N5,0),0) -> 0 | P47: =-IF($H$65=TRUE,IF(P6>=$G$65,$I$66*'Technický model'!Q69*(1+$G$67)^O5,0),0) -> 0 | Q47: =-IF($H$65=TRUE,IF(Q6>=$G$65,$I$66*'Technický model'!R69*(1+$G$67)^P5,0),0) -> 0 | R47: =-IF($H$65=TRUE,IF(R6>=$G$65,$I$66*'Technický model'!S69*(1+$G$67)^Q5,0),0) -> 0 | S47: =-IF($H$65=TRUE,IF(S6>=$G$65,$I$66*'Technický model'!T69*(1+$G$67)^R5,0),0) -> 0 | T47: =-IF($H$65=TRUE,IF(T6>=$G$65,$I$66*'Technický model'!U69*(1+$G$67)^S5,0),0) -> 0 | U47: =-IF($H$65=TRUE,IF(U6>=$G$65,$I$66*'Technický model'!V69*(1+$G$67)^T5,0),0) -> 0 | V47: =-IF($H$65=TRUE,IF(V6>=$G$65,$I$66*'Technický model'!W69*(1+$G$67)^U5,0),0) -> 0 | W47: =-IF($H$65=TRUE,IF(W6>=$G$65,$I$66*'Technický model'!X69*(1+$G$67)^V5,0),0) -> 0 | X47: =-IF($H$65=TRUE,IF(X6>=$G$65,$I$66*'Technický model'!Y69*(1+$G$67)^W5,0),0) -> 0 | Y47: =-IF($H$65=TRUE,IF(Y6>=$G$65,$I$66*'Technický model'!Z69*(1+$G$67)^X5,0),0) -> 0 | Z47: =-IF($H$65=TRUE,IF(Z6>=$G$65,$I$66*'Technický model'!AA69*(1+$G$67)^Y5,0),0) -> 0 | AA47: =-IF($H$65=TRUE,IF(AA6>=$G$65,$I$66*'Technický model'!AB69*(1+$G$67)^Z5,0),0) -> 0 | AB47: =-IF($H$65=TRUE,IF(AB6>=$G$65,$I$66*'Technický model'!AC69*(1+$G$67)^AA5,0),0) -> 0 | AC47: =-IF($H$65=TRUE,IF(AC6>=$G$65,$I$66*'Technický model'!AD69*(1+$G$67)^AB5,0),0) -> 0 | AD47: =-IF($H$65=TRUE,IF(AD6>=$G$65,$I$66*'Technický model'!AE69*(1+$G$67)^AC5,0),0) -> 0 | AE47: =-IF($H$65=TRUE,IF(AE6>=$G$65,$I$66*'Technický model'!AF69*(1+$G$67)^AD5,0),0) -> 0 | AF47: =-IF($H$65=TRUE,IF(AF6>=$G$65,$I$66*'Technický model'!AG69*(1+$G$67)^AE5,0),0) -> 0 | AG47: =-IF($H$65=TRUE,IF(AG6>=$G$65,$I$66*'Technický model'!AH69*(1+$G$67)^AF5,0),0) -> 0 | AH47: =-IF($H$65=TRUE,IF(AH6>=$G$65,$I$66*'Technický model'!AI69*(1+$G$67)^AG5,0),0) -> 0 | AI47: =-IF($H$65=TRUE,IF(AI6>=$G$65,$I$66*'Technický model'!AJ69*(1+$G$67)^AH5,0),0) -> 0 | AJ47: =-IF($H$65=TRUE,IF(AJ6>=$G$65,$I$66*'Technický model'!AK69*(1+$G$67)^AI5,0),0) -> 0 | AK47: =-IF($H$65=TRUE,IF(AK6>=$G$65,$I$66*'Technický model'!AL69*(1+$G$67)^AJ5,0),0) -> 0 | AL47: =-IF($H$65=TRUE,IF(AL6>=$G$65,$I$66*'Technický model'!AM69*(1+$G$67)^AK5,0),0) -> 0 | AM47: =-IF($H$65=TRUE,IF(AM6>=$G$65,$I$66*'Technický model'!AN69*(1+$G$67)^AL5,0),0) -> 0 | AN47: =-IF($H$65=TRUE,IF(AN6>=$G$65,$I$66*'Technický model'!AO69*(1+$G$67)^AM5,0),0) -> 0 | AO47: =-IF($H$65=TRUE,IF(AO6>=$G$65,$I$66*'Technický model'!AP69*(1+$G$67)^AN5,0),0) -> 0 | AP47: =-IF($H$65=TRUE,IF(AP6>=$G$65,$I$66*'Technický model'!AQ69*(1+$G$67)^AO5,0),0) -> 0 | AQ47: =-IF($H$65=TRUE,IF(AQ6>=$G$65,$I$66*'Technický model'!AR69*(1+$G$67)^AP5,0),0) -> 0 | AR47: =-IF($H$65=TRUE,IF(AR6>=$G$65,$I$66*'Technický model'!AS69*(1+$G$67)^AQ5,0),0) -> 0 | AS47: =-IF($H$65=TRUE,IF(AS6>=$G$65,$I$66*'Technický model'!AT69*(1+$G$67)^AR5,0),0) -> 0 | AT47: =-IF($H$65=TRUE,IF(AT6>=$G$65,$I$66*'Technický model'!AU69*(1+$G$67)^AS5,0),0) -> 0 | AU47: =-IF($H$65=TRUE,IF(AU6>=$G$65,$I$66*'Technický model'!AV69*(1+$G$67)^AT5,0),0) -> 0 | AV47: =-IF($H$65=TRUE,IF(AV6>=$G$65,$I$66*'Technický model'!AW69*(1+$G$67)^AU5,0),0) -> 0
C48: Eskalace ceny odpadní vody | F48: [%] | G48: 0.0575 | J48: Mzdové náklady | K48: Mzdy zaměstnancům (včetně zdravotního a sociálního) | L48: [Kč] | M48: 0 | N48: =-$G$72*(1+$G$73)^M5 -> -45000000 | O48: =-$G$72*(1+$G$73)^N5 -> -47587500 | P48: -50323781.25 | Q48: -53217398.67 | R48: -56277399.1 | S48: -59513349.54 | T48: -62935367.14 | U48: -66554150.75 | V48: -70381014.42 | W48: -74427922.75 | X48: -78707528.31 | Y48: -83233211.19 | Z48: -88019120.83 | AA48: -93080220.28 | AB48: -98432332.94 | AC48: -104092192.1 | AD48: -110077493.1 | AE48: -116406949 | AF48: -123100348.6 | AG48: -130178618.6 | AH48: -137663889.2 | AI48: -145579562.8 | AJ48: -153950387.7 | AK48: -162802534.9 | AL48: -172163680.7 | AM48: -182063092.3 | AN48: -192531720.2 | AO48: -203602294.1 | AP48: -215309426 | AQ48: -227689718 | AR48: -240781876.7 | AS48: -254626834.7 | AT48: -269267877.7 | AU48: -284750780.6 | AV48: -301123950.5
B49: Ceny chemikálií pro čištění spalin | C49: Hydroxid sodný | F49: [Kč/t] | G49: 33057.85124 | K49: Celkové náklady | L49: [Kč] | M49: =M48+M47+M35+M31+M19+M16+M44 -> 0 | N49: =N48+N47+N46+N35+N31+N19+N16 -> -268097911.2 | O49: =O48+O47+O46+O35+O31+O19+O16 -> -291807611.3 | P49: -317838191.7 | Q49: -346436400.1 | R49: -377876818.5 | S49: -412465130.7 | T49: -450541782.4 | U49: -492486084 | V49: -538720809.1 | W49: -589717350.5 | X49: -646001502.1 | Y49: -708159944.3 | Z49: -776847518.7 | AA49: -852795391.8 | AB49: -936820215.7 | AC49: -1029834411 | AD49: -1132857709 | AE49: -1247030118 | AF49: -1373626473 | AG49: -1514072790 | AH49: -1669964631 | AI49: -1843087742 | AJ49: -2035441240 | AK49: -2249263679 | AL49: -2487062345 | AM49: -2751646196 | AN49: -3046162898 | AO49: -3374140468 | AP49: -3739534130 | AQ49: -4146778999 | AR49: -4600849377 | AS49: -5107325453 | AT49: -5672468382 | AU49: -6303304778 | AV49: -7007721825
C50: Vápenný hydrát | F50: [Kč/t] | G50: 3719.008264 | J50: Výnosy z hlavní činnosti | K50: Tržby z prodeje elektrické energie | L50: [Kč] | M50: ='Technický model'!N50*'Ekonomický model'!$G$78 -> 0 | N50: ='Technický model'!O50*'Ekonomický model'!$G$78*(1+$G$81+$G$86)^M5 -> 69540625 | O50: ='Technický model'!P50*'Ekonomický model'!$G$78*(1+$G$81+$G$86)^N5 -> 75799281.25 | P50: ='Technický model'!Q50*'Ekonomický model'!$G$78*(1+$G$81+$G$86)^O5 -> 82621216.56 | Q50: ='Technický model'!R50*'Ekonomický model'!$G$78*(1+$G$81+$G$86)^P5 -> 90057126.05 | R50: ='Technický model'!S50*'Ekonomický model'!$G$78*(1+$G$81+$G$86)^Q5 -> 98162267.4 | S50: ='Technický model'!T50*'Ekonomický model'!$G$78*(1+$G$81+$G$86)^R5 -> 106996871.5 | T50: ='Technický model'!U50*'Ekonomický model'!$G$78*(1+$G$81+$G$86)^S5 -> 116626589.9 | U50: ='Technický model'!V50*'Ekonomický model'!$G$78*(1+$G$81+$G$86)^T5 -> 127122983 | V50: ='Technický model'!W50*'Ekonomický model'!$G$78*(1+$G$81+$G$86)^U5 -> 138564051.5 | W50: ='Technický model'!X50*'Ekonomický model'!$G$78*(1+$G$81+$G$86)^V5 -> 151034816.1 | X50: ='Technický model'!Y50*'Ekonomický model'!$G$78*(1+$G$81+$G$86)^W5 -> 164627949.5 | Y50: ='Technický model'!Z50*'Ekonomický model'!$G$78*(1+$G$81+$G$86)^X5 -> 179444465 | Z50: ='Technický model'!AA50*'Ekonomický model'!$G$78*(1+$G$81+$G$86)^Y5 -> 195594466.8 | AA50: ='Technický model'!AB50*'Ekonomický model'!$G$78*(1+$G$81+$G$86)^Z5 -> 213197968.9 | AB50: ='Technický model'!AC50*'Ekonomický model'!$G$78*(1+$G$81+$G$86)^AA5 -> 232385786.1 | AC50: ='Technický model'!AD50*'Ekonomický model'!$G$78*(1+$G$81+$G$86)^AB5 -> 253300506.8 | AD50: ='Technický model'!AE50*'Ekonomický model'!$G$78*(1+$G$81+$G$86)^AC5 -> 276097552.4 | AE50: ='Technický model'!AF50*'Ekonomický model'!$G$78*(1+$G$81+$G$86)^AD5 -> 300946332.1 | AF50: ='Technický model'!AG50*'Ekonomický model'!$G$78*(1+$G$81+$G$86)^AE5 -> 328031502 | AG50: ='Technický model'!AH50*'Ekonomický model'!$G$78*(1+$G$81+$G$86)^AF5 -> 357554337.2 | AH50: ='Technický model'!AI50*'Ekonomický model'!$G$78*(1+$G$81+$G$86)^AG5 -> 389734227.5 | AI50: ='Technický model'!AJ50*'Ekonomický model'!$G$78*(1+$G$81+$G$86)^AH5 -> 424810308 | AJ50: ='Technický model'!AK50*'Ekonomický model'!$G$78*(1+$G$81+$G$86)^AI5 -> 463043235.7 | AK50: ='Technický model'!AL50*'Ekonomický model'!$G$78*(1+$G$81+$G$86)^AJ5 -> 504717127 | AL50: ='Technický model'!AM50*'Ekonomický model'!$G$78*(1+$G$81+$G$86)^AK5 -> 550141668.4 | AM50: ='Technický model'!AN50*'Ekonomický model'!$G$78*(1+$G$81+$G$86)^AL5 -> 599654418.5 | AN50: ='Technický model'!AO50*'Ekonomický model'!$G$78*(1+$G$81+$G$86)^AM5 -> 653623316.2 | AO50: ='Technický model'!AP50*'Ekonomický model'!$G$78*(1+$G$81+$G$86)^AN5 -> 712449414.7 | AP50: ='Technický model'!AQ50*'Ekonomický model'!$G$78*(1+$G$81+$G$86)^AO5 -> 776569862 | AQ50: ='Technický model'!AR50*'Ekonomický model'!$G$78*(1+$G$81+$G$86)^AP5 -> 846461149.6 | AR50: ='Technický model'!AS50*'Ekonomický model'!$G$78*(1+$G$81+$G$86)^AQ5 -> 922642653 | AS50: ='Technický model'!AT50*'Ekonomický model'!$G$78*(1+$G$81+$G$86)^AR5 -> 1005680492 | AT50: ='Technický model'!AU50*'Ekonomický model'!$G$78*(1+$G$81+$G$86)^AS5 -> 1096191736 | AU50: ='Technický model'!AV50*'Ekonomický model'!$G$78*(1+$G$81+$G$86)^AT5 -> 1194848992 | AV50: ='Technický model'!AW50*'Ekonomický model'!$G$78*(1+$G$81+$G$86)^AU5 -> 1302385402
C51: Čpavková voda | F51: [Kč/t] | G51: 28925.61983 | K51: Tržby z prodeje tepelné energie | L51: [Kč] | M51: ='Technický model'!N42*'Ekonomický model'!$G$79 -> 0 | N51: ='Technický model'!O42*'Ekonomický model'!$G$79*(1+$G$82+$G$86)^M5 -> 131274000 | O51: ='Technický model'!P42*'Ekonomický model'!$G$79*(1+$G$82+$G$86)^N5 -> 143745030 | P51: ='Technický model'!Q42*'Ekonomický model'!$G$79*(1+$G$82+$G$86)^O5 -> 157400807.9 | Q51: ='Technický model'!R42*'Ekonomický model'!$G$79*(1+$G$82+$G$86)^P5 -> 172353884.6 | R51: ='Technický model'!S42*'Ekonomický model'!$G$79*(1+$G$82+$G$86)^Q5 -> 188727503.6 | S51: ='Technický model'!T42*'Ekonomický model'!$G$79*(1+$G$82+$G$86)^R5 -> 206656616.5 | T51: ='Technický model'!U42*'Ekonomický model'!$G$79*(1+$G$82+$G$86)^S5 -> 226288995 | U51: ='Technický model'!V42*'Ekonomický model'!$G$79*(1+$G$82+$G$86)^T5 -> 247786449.6 | V51: ='Technický model'!W42*'Ekonomický model'!$G$79*(1+$G$82+$G$86)^U5 -> 271326162.3 | W51: ='Technický model'!X42*'Ekonomický model'!$G$79*(1+$G$82+$G$86)^V5 -> 297102147.7 | X51: ='Technický model'!Y42*'Ekonomický model'!$G$79*(1+$G$82+$G$86)^W5 -> 325326851.7 | Y51: ='Technický model'!Z42*'Ekonomický model'!$G$79*(1+$G$82+$G$86)^X5 -> 356232902.6 | Z51: ='Technický model'!AA42*'Ekonomický model'!$G$79*(1+$G$82+$G$86)^Y5 -> 390075028.4 | AA51: ='Technický model'!AB42*'Ekonomický model'!$G$79*(1+$G$82+$G$86)^Z5 -> 427132156.1 | AB51: ='Technický model'!AC42*'Ekonomický model'!$G$79*(1+$G$82+$G$86)^AA5 -> 467709710.9 | AC51: ='Technický model'!AD42*'Ekonomický model'!$G$79*(1+$G$82+$G$86)^AB5 -> 512142133.5 | AD51: ='Technický model'!AE42*'Ekonomický model'!$G$79*(1+$G$82+$G$86)^AC5 -> 560795636.1 | AE51: ='Technický model'!AF42*'Ekonomický model'!$G$79*(1+$G$82+$G$86)^AD5 -> 614071221.6 | AF51: ='Technický model'!AG42*'Ekonomický model'!$G$79*(1+$G$82+$G$86)^AE5 -> 672407987.6 | AG51: ='Technický model'!AH42*'Ekonomický model'!$G$79*(1+$G$82+$G$86)^AF5 -> 736286746.4 | AH51: ='Technický model'!AI42*'Ekonomický model'!$G$79*(1+$G$82+$G$86)^AG5 -> 806233987.4 | AI51: ='Technický model'!AJ42*'Ekonomický model'!$G$79*(1+$G$82+$G$86)^AH5 -> 882826216.2 | AJ51: ='Technický model'!AK42*'Ekonomický model'!$G$79*(1+$G$82+$G$86)^AI5 -> 966694706.7 | AK51: ='Technický model'!AL42*'Ekonomický model'!$G$79*(1+$G$82+$G$86)^AJ5 -> 1058530704 | AL51: ='Technický model'!AM42*'Ekonomický model'!$G$79*(1+$G$82+$G$86)^AK5 -> 1159091121 | AM51: ='Technický model'!AN42*'Ekonomický model'!$G$79*(1+$G$82+$G$86)^AL5 -> 1269204777 | AN51: ='Technický model'!AO42*'Ekonomický model'!$G$79*(1+$G$82+$G$86)^AM5 -> 1389779231 | AO51: ='Technický model'!AP42*'Ekonomický model'!$G$79*(1+$G$82+$G$86)^AN5 -> 1521808258 | AP51: ='Technický model'!AQ42*'Ekonomický model'!$G$79*(1+$G$82+$G$86)^AO5 -> 1666380042 | AQ51: ='Technický model'!AR42*'Ekonomický model'!$G$79*(1+$G$82+$G$86)^AP5 -> 1824686146 | AR51: ='Technický model'!AS42*'Ekonomický model'!$G$79*(1+$G$82+$G$86)^AQ5 -> 1998031330 | AS51: ='Technický model'!AT42*'Ekonomický model'!$G$79*(1+$G$82+$G$86)^AR5 -> 2187844307 | AT51: ='Technický model'!AU42*'Ekonomický model'!$G$79*(1+$G$82+$G$86)^AS5 -> 2395689516 | AU51: ='Technický model'!AV42*'Ekonomický model'!$G$79*(1+$G$82+$G$86)^AT5 -> 2623280020 | AV51: ='Technický model'!AW42*'Ekonomický model'!$G$79*(1+$G$82+$G$86)^AU5 -> 2872491622
C52: Kyselina solná | F52: [Kč/t] | G52: 18842.97521 | J52: Výnosy z vedlejší činnosti | K52: Tržby z prodeje železa | L52: [Kč] | M52: ='Technický model'!N57*'Ekonomický model'!$G$75 -> 0 | N52: ='Technický model'!O57*'Ekonomický model'!$G$75*(1+$G$77+$G$86)^M5 -> 39747272.73 | O52: ='Technický model'!P57*'Ekonomický model'!$G$75*(1+$G$77+$G$86)^N5 -> 43622631.82 | P52: ='Technický model'!Q57*'Ekonomický model'!$G$75*(1+$G$77+$G$86)^O5 -> 47875838.42 | Q52: ='Technický model'!R57*'Ekonomický model'!$G$75*(1+$G$77+$G$86)^P5 -> 52543732.67 | R52: ='Technický model'!S57*'Ekonomický model'!$G$75*(1+$G$77+$G$86)^Q5 -> 57666746.6 | S52: ='Technický model'!T57*'Ekonomický model'!$G$75*(1+$G$77+$G$86)^R5 -> 63289254.4 | T52: ='Technický model'!U57*'Ekonomický model'!$G$75*(1+$G$77+$G$86)^S5 -> 69459956.7 | U52: ='Technický model'!V57*'Ekonomický model'!$G$75*(1+$G$77+$G$86)^T5 -> 76232302.48 | V52: ='Technický model'!W57*'Ekonomický model'!$G$75*(1+$G$77+$G$86)^U5 -> 83664951.97 | W52: ='Technický model'!X57*'Ekonomický model'!$G$75*(1+$G$77+$G$86)^V5 -> 91822284.79 | X52: ='Technický model'!Y57*'Ekonomický model'!$G$75*(1+$G$77+$G$86)^W5 -> 100774957.6 | Y52: ='Technický model'!Z57*'Ekonomický model'!$G$75*(1+$G$77+$G$86)^X5 -> 110600515.9 | Z52: ='Technický model'!AA57*'Ekonomický model'!$G$75*(1+$G$77+$G$86)^Y5 -> 121384066.2 | AA52: ='Technický model'!AB57*'Ekonomický model'!$G$75*(1+$G$77+$G$86)^Z5 -> 133219012.7 | AB52: ='Technický model'!AC57*'Ekonomický model'!$G$75*(1+$G$77+$G$86)^AA5 -> 146207866.4 | AC52: ='Technický model'!AD57*'Ekonomický model'!$G$75*(1+$G$77+$G$86)^AB5 -> 160463133.4 | AD52: ='Technický model'!AE57*'Ekonomický model'!$G$75*(1+$G$77+$G$86)^AC5 -> 176108288.9 | AE52: ='Technický model'!AF57*'Ekonomický model'!$G$75*(1+$G$77+$G$86)^AD5 -> 193278847.1 | AF52: ='Technický model'!AG57*'Ekonomický model'!$G$75*(1+$G$77+$G$86)^AE5 -> 212123534.6 | AG52: ='Technický model'!AH57*'Ekonomický model'!$G$75*(1+$G$77+$G$86)^AF5 -> 232805579.3 | AH52: ='Technický model'!AI57*'Ekonomický model'!$G$75*(1+$G$77+$G$86)^AG5 -> 255504123.2 | AI52: ='Technický model'!AJ57*'Ekonomický model'!$G$75*(1+$G$77+$G$86)^AH5 -> 280415775.3 | AJ52: ='Technický model'!AK57*'Ekonomický model'!$G$75*(1+$G$77+$G$86)^AI5 -> 307756313.3 | AK52: ='Technický model'!AL57*'Ekonomický model'!$G$75*(1+$G$77+$G$86)^AJ5 -> 337762553.9 | AL52: ='Technický model'!AM57*'Ekonomický model'!$G$75*(1+$G$77+$G$86)^AK5 -> 370694402.9 | AM52: ='Technický model'!AN57*'Ekonomický model'!$G$75*(1+$G$77+$G$86)^AL5 -> 406837107.2 | AN52: ='Technický model'!AO57*'Ekonomický model'!$G$75*(1+$G$77+$G$86)^AM5 -> 446503725.1 | AO52: ='Technický model'!AP57*'Ekonomický model'!$G$75*(1+$G$77+$G$86)^AN5 -> 490037838.3 | AP52: ='Technický model'!AQ57*'Ekonomický model'!$G$75*(1+$G$77+$G$86)^AO5 -> 537816527.6 | AQ52: ='Technický model'!AR57*'Ekonomický model'!$G$75*(1+$G$77+$G$86)^AP5 -> 590253639 | AR52: ='Technický model'!AS57*'Ekonomický model'!$G$75*(1+$G$77+$G$86)^AQ5 -> 647803368.8 | AS52: ='Technický model'!AT57*'Ekonomický model'!$G$75*(1+$G$77+$G$86)^AR5 -> 710964197.3 | AT52: ='Technický model'!AU57*'Ekonomický model'!$G$75*(1+$G$77+$G$86)^AS5 -> 780283206.5 | AU52: ='Technický model'!AV57*'Ekonomický model'!$G$75*(1+$G$77+$G$86)^AT5 -> 856360819.2 | AV52: ='Technický model'!AW57*'Ekonomický model'!$G$75*(1+$G$77+$G$86)^AU5 -> 939855999
C53: Chlorid železitý | F53: [Kč/t] | G53: 48099.17355 | K53: Tržby z prodeje stavebního materiálu (SPRUK) | L53: [Kč] | M53: ='Technický model'!N58*'Ekonomický model'!$G$74 -> 0 | N53: ='Technický model'!O58*'Ekonomický model'!$G$74*(1+$G$76+$G$86)^M5 -> 175537190.1 | O53: ='Technický model'!P58*'Ekonomický model'!$G$74*(1+$G$76+$G$86)^N5 -> 192652066.1 | P53: ='Technický model'!Q58*'Ekonomický model'!$G$74*(1+$G$76+$G$86)^O5 -> 211435642.6 | Q53: ='Technický model'!R58*'Ekonomický model'!$G$74*(1+$G$76+$G$86)^P5 -> 232050617.7 | R53: ='Technický model'!S58*'Ekonomický model'!$G$74*(1+$G$76+$G$86)^Q5 -> 254675552.9 | S53: ='Technický model'!T58*'Ekonomický model'!$G$74*(1+$G$76+$G$86)^R5 -> 279506419.4 | T53: ='Technický model'!U58*'Ekonomický model'!$G$74*(1+$G$76+$G$86)^S5 -> 306758295.2 | U53: ='Technický model'!V58*'Ekonomický model'!$G$74*(1+$G$76+$G$86)^T5 -> 336667229 | V53: ='Technický model'!W58*'Ekonomický model'!$G$74*(1+$G$76+$G$86)^U5 -> 369492283.9 | W53: ='Technický model'!X58*'Ekonomický model'!$G$74*(1+$G$76+$G$86)^V5 -> 405517781.5 | X53: ='Technický model'!Y58*'Ekonomický model'!$G$74*(1+$G$76+$G$86)^W5 -> 445055765.2 | Y53: ='Technický model'!Z58*'Ekonomický model'!$G$74*(1+$G$76+$G$86)^X5 -> 488448702.3 | Z53: ='Technický model'!AA58*'Ekonomický model'!$G$74*(1+$G$76+$G$86)^Y5 -> 536072450.8 | AA53: ='Technický model'!AB58*'Ekonomický model'!$G$74*(1+$G$76+$G$86)^Z5 -> 588339514.8 | AB53: ='Technický model'!AC58*'Ekonomický model'!$G$74*(1+$G$76+$G$86)^AA5 -> 645702617.5 | AC53: ='Technický model'!AD58*'Ekonomický model'!$G$74*(1+$G$76+$G$86)^AB5 -> 708658622.7 | AD53: ='Technický model'!AE58*'Ekonomický model'!$G$74*(1+$G$76+$G$86)^AC5 -> 777752838.4 | AE53: ='Technický model'!AF58*'Ekonomický model'!$G$74*(1+$G$76+$G$86)^AD5 -> 853583740.1 | AF53: ='Technický model'!AG58*'Ekonomický model'!$G$74*(1+$G$76+$G$86)^AE5 -> 936808154.8 | AG53: ='Technický model'!AH58*'Ekonomický model'!$G$74*(1+$G$76+$G$86)^AF5 -> 1028146950 | AH53: ='Technický model'!AI58*'Ekonomický model'!$G$74*(1+$G$76+$G$86)^AG5 -> 1128391277 | AI53: ='Technický model'!AJ58*'Ekonomický model'!$G$74*(1+$G$76+$G$86)^AH5 -> 1238409427 | AJ53: ='Technický model'!AK58*'Ekonomický model'!$G$74*(1+$G$76+$G$86)^AI5 -> 1359154346 | AK53: ='Technický model'!AL58*'Ekonomický model'!$G$74*(1+$G$76+$G$86)^AJ5 -> 1491671895 | AL53: ='Technický model'!AM58*'Ekonomický model'!$G$74*(1+$G$76+$G$86)^AK5 -> 1637109905 | AM53: ='Technický model'!AN58*'Ekonomický model'!$G$74*(1+$G$76+$G$86)^AL5 -> 1796728120 | AN53: ='Technický model'!AO58*'Ekonomický model'!$G$74*(1+$G$76+$G$86)^AM5 -> 1971909112 | AO53: ='Technický model'!AP58*'Ekonomický model'!$G$74*(1+$G$76+$G$86)^AN5 -> 2164170251 | AP53: ='Technický model'!AQ58*'Ekonomický model'!$G$74*(1+$G$76+$G$86)^AO5 -> 2375176850 | AQ53: ='Technický model'!AR58*'Ekonomický model'!$G$74*(1+$G$76+$G$86)^AP5 -> 2606756593 | AR53: ='Technický model'!AS58*'Ekonomický model'!$G$74*(1+$G$76+$G$86)^AQ5 -> 2860915361 | AS53: ='Technický model'!AT58*'Ekonomický model'!$G$74*(1+$G$76+$G$86)^AR5 -> 3139854608 | AT53: ='Technický model'!AU58*'Ekonomický model'!$G$74*(1+$G$76+$G$86)^AS5 -> 3445990433 | AU53: ='Technický model'!AV58*'Ekonomický model'!$G$74*(1+$G$76+$G$86)^AT5 -> 3781974500 | AV53: ='Technický model'!AW58*'Ekonomický model'!$G$74*(1+$G$76+$G$86)^AU5 -> 4150717014
C54: Sulfid sodný | F54: [Kč/t] | G54: 1393388.43 | K54: Celkové tržby | L54: [Kč] | M54: =M50+M51+M52+M53 -> 0 | N54: 416099087.8 | O54: =O50+O51+O52+O53 -> 455819009.2 | P54: 499333505.4 | Q54: 547005361 | R54: 599232070.6 | S54: 656449161.7 | T54: 719133836.9 | U54: 787808964.1 | V54: 863047449.6 | W54: 945477030.1 | X54: 1035785524 | Y54: 1134726586 | Z54: 1243126012 | AA54: 1361888652 | AB54: 1492005981 | AC54: 1634564396 | AD54: 1790754316 | AE54: 1961880141 | AF54: 2149371179 | AG54: 2354793613 | AH54: 2579863616 | AI54: 2826461726 | AJ54: 3096648602 | AK54: 3392682280 | AL54: 3717037097 | AM54: 4072424423 | AN54: 4461815384 | AO54: 4888465761 | AP54: 5355943282 | AQ54: 5868157528 | AR54: 6429392713 | AS54: 7044343604 | AT54: 7718154891 | AU54: 8456464331 | AV54: 9265450036
C55: Činidla kotelních vod | F55: [Kč/t] | G55: 1512396.694 | J55: Výpočty | K55: Zisk před započtením úroků, daní a odpisů (EBITDA) | L55: [Kč] | M55: =M54+M48+M47+M46+M35+M31+M19+M16 -> 0 | N55: =N54+N48+N46+N35+N31+N16+N7+N11+N13+N19 -> 117064582.6 | O55: =O54+O48+O46+O35+O31+O16+O7+O11+O13+O19 -> 131657908 | P55: 147660033.9 | Q55: 165184025.3 | R55: 184349686.4 | S55: 243984031 | T55: 268592054.5 | U55: 295322880.1 | V55: 324326640.5 | W55: 355759679.6 | X55: 389784021.9 | Y55: 426566641.6 | Z55: 466278493.5 | AA55: 509093260.6 | AB55: 555185765.2 | AC55: 604729985.7 | AD55: 657896606.6 | AE55: 714850023 | AF55: 775744706.3 | AG55: 840720823 | AH55: 909898984.4 | AI55: 983373984.4 | AJ55: 1061207362 | AK55: 1143418601 | AL55: 1229974752 | AM55: 1320778227 | AN55: 1415652487 | AO55: 1514325293 | AP55: 1616409152 | AQ55: 1721378529 | AR55: 1828543336 | AS55: 1937018151 | AT55: 2045686509 | AU55: 2153159554 | AV55: 2257728211
C56: Flokulant | F56: [Kč/t] | G56: 25206.61157 | K56: Zisk před započtením úroků a daní (EBIT) | L56: [Kč] | M56: =M55-M8 -> 0 | N56: =N55-N8 -> 46302082.63 | O56: =O55-O8 -> -13104592.03 | P56: 2897533.86 | Q56: 20421525.29 | R56: 39587186.36 | S56: 99221530.97 | T56: 123829554.5 | U56: 150560380.1 | V56: 179564140.5 | W56: 210997179.6 | X56: 342146521.9 | Y56: 378929141.6 | Z56: 418640993.5 | AA56: 461455760.6 | AB56: 507548265.2 | AC56: 557092485.7 | AD56: 610259106.6 | AE56: 667212523 | AF56: 728107206.3 | AG56: 793083323 | AH56: 909898984.4 | AI56: 983373984.4 | AJ56: 1061207362 | AK56: 1143418601 | AL56: 1229974752 | AM56: 1320778227 | AN56: 1415652487 | AO56: 1514325293 | AP56: 1616409152 | AQ56: 1721378529 | AR56: 1828543336 | AS56: 1937018151 | AT56: 2045686509 | AU56: 2153159554 | AV56: 2257728211
C57: Eskalace ceny hydroxidu sodného | F57: [%] | G57: 0.01 | K57: Zisk před započtením daně (EBT) | L57: [Kč] | M57: =M56+M12 -> 0 | N57: =N56+N12 -> 38538256.01 | O57: =O56+O12 -> -19451522.65 | P57: -1967606.914 | Q57: 17106040.33 | R57: 37892331.45 | S57: 99221530.97 | T57: 123829554.5 | U57: 150560380.1 | V57: 179564140.5 | W57: 210997179.6 | X57: 342146521.9 | Y57: 378929141.6 | Z57: 418640993.5 | AA57: 461455760.6 | AB57: 507548265.2 | AC57: 557092485.7 | AD57: 610259106.6 | AE57: 667212523 | AF57: 728107206.3 | AG57: 793083323 | AH57: 909898984.4 | AI57: 983373984.4 | AJ57: 1061207362 | AK57: 1143418601 | AL57: 1229974752 | AM57: 1320778227 | AN57: 1415652487 | AO57: 1514325293 | AP57: 1616409152 | AQ57: 1721378529 | AR57: 1828543336 | AS57: 1937018151 | AT57: 2045686509 | AU57: 2153159554 | AV57: 2257728211
C58: Eskalace ceny vápenný hydrát | F58: [%] | G58: 0.01 | K58: Daňová ztráta | L58: [Kč] | M58: =-IF($H$10=TRUE,IF(M57<0,M57*$G$11,0),0) -> 0 | N58: =-IF($H$10=TRUE,IF(N57<0,N57*$G$11,0),0) -> 0 | O58: =-IF($H$10=TRUE,IF(O57<0,O57*$G$11,0),0) -> 3695789.303 | P58: 373845.3136 | Q58: 0 | R58: 0 | S58: 0 | T58: 0 | U58: 0 | V58: 0 | W58: 0 | X58: 0 | Y58: 0 | Z58: 0 | AA58: 0 | AB58: 0 | AC58: 0 | AD58: 0 | AE58: 0 | AF58: 0 | AG58: 0 | AH58: 0 | AI58: 0 | AJ58: 0 | AK58: 0 | AL58: 0 | AM58: 0 | AN58: 0 | AO58: 0 | AP58: 0 | AQ58: 0 | AR58: 0 | AS58: 0 | AT58: 0 | AU58: 0 | AV58: 0
C59: Eskalace ceny čpavková voda | F59: [%] | G59: 0.01 | K59: Daň | L59: [Kč] | M59: =-IF($H$10=TRUE,IF(M57>=0,M57*$G$11,0),0) -> 0 | N59: =-IF($H$10=TRUE,IF(N57>=0,N57*$G$11,0),0) -> -7322268.642 | O59: =-IF($H$10=TRUE,IF(O57>=0,O57*$G$11,0),0) -> 0 | P59: 0 | Q59: -3250147.663 | R59: -7199542.975 | S59: -18852090.89 | T59: -23527615.35 | U59: -28606472.21 | V59: -34117186.69 | W59: -40089464.13 | X59: -65007839.16 | Y59: -71996536.9 | Z59: -79541788.77 | AA59: -87676594.51 | AB59: -96434170.38 | AC59: -105847572.3 | AD59: -115949230.2 | AE59: -126770379.4 | AF59: -138340369.2 | AG59: -150685831.4 | AH59: -172880807 | AI59: -186841057 | AJ59: -201629398.8 | AK59: -217249534.2 | AL59: -233695202.8 | AM59: -250947863.1 | AN59: -268973972.5 | AO59: -287721805.7 | AP59: -307117738.9 | AQ59: -327061920.4 | AR59: -347423233.9 | AS59: -368033448.8 | AT59: -388680436.7 | AU59: -409100315.2 | AV59: -428968360.1
C60: Eskalace ceny kyselina solná | F60: [%] | G60: 0.01 | K60: Čistý zisk (EAT) | L60: [Kč] | M60: =M7+M9+M11+M12 -> -1680484135 | N60: =IF(N57<0,N57,N57+N59) -> 31215987.37 | O60: =IF(O57<0,O57,O57+O59) -> -19451522.65 | P60: -1967606.914 | Q60: 13855892.67 | R60: 30692788.47 | S60: 80369440.09 | T60: 100301939.1 | U60: 121953907.8 | V60: 145446953.8 | W60: 170907715.5 | X60: 277138682.8 | Y60: 306932604.7 | Z60: 339099204.8 | AA60: 373779166.1 | AB60: 411114094.8 | AC60: 451244913.4 | AD60: 494309876.3 | AE60: 540442143.6 | AF60: 589766837.1 | AG60: 642397491.7 | AH60: 737018177.4 | AI60: 796532927.3 | AJ60: 859577963.1 | AK60: 926169066.7 | AL60: 996279548.9 | AM60: 1069830364 | AN60: 1146678514 | AO60: 1226603487 | AP60: 1309291413 | AQ60: 1394316608 | AR60: 1481120102 | AS60: 1568984703 | AT60: 1657006072 | AU60: 1744059238 | AV60: 1828759851
C61: Eskalace ceny chlorid železitý | F61: [%] | G61: 0.01 | K61: Hotovostní tok (cash flow = kaptiálové výdaje peněžní příjem) | L61: [Kč] | M61: =M54+M49+M7+M11 -> -1680484135 | N61: =N60+N8-(1-$G$11)*N12 -> 108267186.9 | O61: =O60+O8-(1-$G$11)*O12 -> 130451991.1 | P61: 146735657.1 | Q61: 161303935.5 | R61: 176828120.9 | S61: =S60+S8-(1-$G$11)*S12 -> 225131940.1 | T61: 245064439.1 | U61: 266716407.8 | V61: 290209453.8 | W61: 315670215.5 | X61: 324776182.8 | Y61: 354570104.7 | Z61: 386736704.8 | AA61: 421416666.1 | AB61: 458751594.8 | AC61: 498882413.4 | AD61: 541947376.3 | AE61: 588079643.6 | AF61: 637404337.1 | AG61: 690034991.7 | AH61: 737018177.4 | AI61: 796532927.3 | AJ61: 859577963.1 | AK61: 926169066.7 | AL61: 996279548.9 | AM61: 1069830364 | AN61: 1146678514 | AO61: 1226603487 | AP61: 1309291413 | AQ61: 1394316608 | AR61: 1481120102 | AS61: 1568984703 | AT61: 1657006072 | AU61: 1744059238 | AV61: 1828759851
C62: Eskalace ceny sulfid sodný | F62: [%] | G62: 0.01 | K62: Diskontované hotovostní tok (cash flow) | L62: [Kč] | M62: =M61/((1+$G$98)^M5) -> -1680484135 | N62: =N61/((1+$G$98)^N5) -> 101883054.3 | O62: =O61/((1+$G$98)^O5) -> 115520994.4 | P62: 122278744.4 | Q62: 126492674.7 | R62: 130489884.8 | S62: 156339145.1 | T62: 160145971.4 | U62: 164017639.9 | V62: 167941289.7 | W62: 171903467.9 | X62: 166433331.8 | Y62: 170987102.6 | Z62: 175501863.9 | AA62: 179962969.5 | AB62: 184354666 | AC62: 188660006.2 | AD62: 192860758.9 | AE62: 196937310.6 | AF62: 200868563.5 | AG62: 204631824.7 | AH62: 205676827.5 | AI62: 209177998.1 | AJ62: 212423541.4 | AK62: 215383657.1 | AL62: 218026254.3 | AM62: 220316792.9 | AN62: 222218115.1 | AO62: 223690264.3 | AP62: 224690292.9 | AQ62: 225172056.5 | AR62: 225085994.8 | AS62: 224378897.3 | AT62: 222993653.6 | AU62: 220868986.5 | AV62: 217939167.7
C63: Eskalace ceny činidla kotelních vod | F63: [%] | G63: 0.01 | K63: Kumulovaný hotovostní tok (cash flow) | L63: [Kč] | M63: =M61 -> -1680484135 | N63: =M63+N61 -> -1572216948 | O63: =N63+O61 -> -1441764957 | P63: -1295029300 | Q63: -1133725364 | R63: -956897243.4 | S63: -731765303.3 | T63: -486700864.2 | U63: -219984456.3 | V63: 70224997.46 | W63: 385895213 | X63: 710671395.7 | Y63: 1065241500 | Z63: 1451978205 | AA63: 1873394871 | AB63: 2332146466 | AC63: 2831028879 | AD63: 3372976256 | AE63: 3961055899 | AF63: 4598460237 | AG63: 5288495228 | AH63: 6025513406 | AI63: 6822046333 | AJ63: 7681624296 | AK63: 8607793363 | AL63: 9604072912 | AM63: 1.067390328e+10 | AN63: 1.182058179e+10 | AO63: 1.304718528e+10 | AP63: 1.435647669e+10 | AQ63: 1.57507933e+10 | AR63: 1.72319134e+10 | AS63: 1.88008981e+10 | AT63: 2.045790418e+10 | AU63: 2.220196341e+10 | AV63: 2.403072327e+10
C64: Eskalace ceny flokulant | F64: [%] | G64: 0.01 | K64: IRR | L64: [%] | M64: =IRR(M61:AV61) -> 0.1583721619
B65: Povolenka EU ETS | C65: Rok povolenky EU ETS | F65: [-] | G65: 2028 | H65: FALSE | K65: NPV | L65: [Kč] | M65: =NPV(G98,M61:AV61) -> 4597673094
C66: Cena emisní povolenky EU ETS | F66: [EURO/t] | G66: =89 -> 89 | I66: =G66*G69 -> 2180.5 | K66: Kumulovaná daňová ztráta (neuplatněná) | L66: [Kč] | M66: =SUM(M58:AV58) -> 4069634.617
C67: Eskalace ceny emisní povolenky | F67: [%] | G67: 0.11
C68: Velikost oprav a údržby vůči počáteční investici | F68: [%] | G68: 0.015
C69: Měnový kurz | F69: [Kč/EURO] | G69: 24.5 | K69: Výpočet regulované ceny tepla | L69: Jednotky | M69: 0 | N69: 1 | O69: 2 | P69: 3 | Q69: 4 | R69: 5 | S69: 6 | T69: 7 | U69: 8 | V69: 9 | W69: 10 | X69: 11 | Y69: 12 | Z69: 13 | AA69: 14 | AB69: 15 | AC69: 16 | AD69: 17 | AE69: 18 | AF69: 19 | AG69: 20 | AH69: 21 | AI69: 22 | AJ69: 23 | AK69: 24 | AL69: 25 | AM69: 26 | AN69: 27 | AO69: 28 | AP69: 29 | AQ69: 30 | AR69: 31 | AS69: 32 | AT69: 33 | AU69: 34 | AV69: 35
B70: Mzdy | C70: Velikost sociálních odvodů | F70: [%] | G70: 0.248 | K70: Aktiva | L70: [Kč] | M70: =-M7 -> 1850000000 | N70: =-N7+M70 -> 1850000000 | O70: 1850000000 | P70: 1850000000 | Q70: 1850000000 | R70: 1850000000 | S70: 1850000000 | T70: 1850000000 | U70: 1850000000 | V70: 1850000000 | W70: 1850000000 | X70: 1850000000 | Y70: 1850000000 | Z70: 1850000000 | AA70: 1850000000 | AB70: 1850000000 | AC70: 1850000000 | AD70: 1850000000 | AE70: 1850000000 | AF70: 1850000000 | AG70: 1850000000 | AH70: 1850000000 | AI70: 1850000000 | AJ70: 1850000000 | AK70: 1850000000 | AL70: 1850000000 | AM70: 1850000000 | AN70: 1850000000 | AO70: 1850000000 | AP70: 1850000000 | AQ70: 1850000000 | AR70: 1850000000 | AS70: 1850000000 | AT70: 1850000000 | AU70: 1850000000 | AV70: 1850000000
C71: Velikost zdravotních odvodů | F71: [%] | G71: 0.09 | K71: RAB | L71: [Kč] | M71: =M70-M8 -> 1850000000 | N71: =N70-N8 -> 1779237500 | O71: 1705237500 | P71: 1705237500 | Q71: 1705237500 | R71: 1705237500 | S71: 1705237500 | T71: 1705237500 | U71: 1705237500 | V71: 1705237500 | W71: 1705237500 | X71: 1802362500 | Y71: 1802362500 | Z71: 1802362500 | AA71: 1802362500 | AB71: 1802362500 | AC71: 1802362500 | AD71: 1802362500 | AE71: 1802362500 | AF71: 1802362500 | AG71: 1802362500 | AH71: 1850000000 | AI71: 1850000000 | AJ71: 1850000000 | AK71: 1850000000 | AL71: 1850000000 | AM71: 1850000000 | AN71: 1850000000 | AO71: 1850000000 | AP71: 1850000000 | AQ71: 1850000000 | AR71: 1850000000 | AS71: 1850000000 | AT71: 1850000000 | AU71: 1850000000 | AV71: 1850000000
C72: Velikost mzdy | F72: [Kč] | G72: 45000000 | K72: Zisk | L72: [Kč] | M72: 0 | N72: =N71*$G$98 -> 111489474.7 | O72: =O71*$G$98 -> 106852532.7 | P72: 106852532.7 | Q72: 106852532.7 | R72: 106852532.7 | S72: 106852532.7 | T72: 106852532.7 | U72: 106852532.7 | V72: 106852532.7 | W72: 106852532.7 | X72: 112938519.1 | Y72: 112938519.1 | Z72: 112938519.1 | AA72: 112938519.1 | AB72: 112938519.1 | AC72: 112938519.1 | AD72: 112938519.1 | AE72: 112938519.1 | AF72: 112938519.1 | AG72: 112938519.1 | AH72: 115923550.5 | AI72: 115923550.5 | AJ72: 115923550.5 | AK72: 115923550.5 | AL72: 115923550.5 | AM72: 115923550.5 | AN72: 115923550.5 | AO72: 115923550.5 | AP72: 115923550.5 | AQ72: 115923550.5 | AR72: 115923550.5 | AS72: 115923550.5 | AT72: 115923550.5 | AU72: 115923550.5 | AV72: 115923550.5
C73: Eskalace mzdy | F73: [%] | G73: =G86 -> 0.0575 | K73: Povolené náklady | L73: [Kč] | M73: =-M8+M16+M19+M31+M35+M12+M44+M48 -> 0 | N73: =-N8+N16+N19+N31+N35+N12+N44+N48 -> -346624237.8 | O73: =-O8+O16+O19+O31+O35+O12+O44+O48 -> -442917041.9 | P73: -467465832.5 | Q73: -494514385.1 | R73: -524334173.5 | S73: -557227630.7 | T73: -595304282.4 | U73: -637248584 | V73: -683483309.1 | W73: -734479850.5 | X73: -693639002.1 | Y73: -755797444.3 | Z73: -824485018.7 | AA73: -900432891.8 | AB73: -984457715.7 | AC73: -1077471911 | AD73: -1180495209 | AE73: -1294667618 | AF73: -1421263973 | AG73: -1561710290 | AH73: -1669964631 | AI73: -1843087742 | AJ73: -2035441240 | AK73: -2249263679 | AL73: -2487062345 | AM73: -2751646196 | AN73: -3046162898 | AO73: -3374140468 | AP73: -3739534130 | AQ73: -4146778999 | AR73: -4600849377 | AS73: -5107325453 | AT73: -5672468382 | AU73: -6303304778 | AV73: -7007721825
B74: Ceny surovin | C74: Cena stavebního materiálu (SPRUK) | F74: [Kč/t] | G74: 4876.033058 | K74: Povolené výnosy | L74: [Kč] | M74: 0 | N74: =N72-N73 -> 458113712.5 | O74: =O72-O73 -> 549769574.5 | P74: =P72-P73 -> 574318365.2 | Q74: =Q72-Q73 -> 601366917.8 | R74: 631186706.1 | S74: 664080163.4 | T74: 702156815.1 | U74: 744101116.7 | V74: 790335841.8 | W74: 841332383.1 | X74: 806577521.2 | Y74: 868735963.4 | Z74: 937423537.8 | AA74: 1013371411 | AB74: 1097396235 | AC74: 1190410430 | AD74: 1293433728 | AE74: 1407606137 | AF74: 1534202492 | AG74: 1674648809 | AH74: 1785888182 | AI74: 1959011293 | AJ74: 2151364791 | AK74: 2365187229 | AL74: 2602985895 | AM74: 2867569747 | AN74: 3162086448 | AO74: 3490064019 | AP74: 3855457680 | AQ74: 4262702550 | AR74: 4716772927 | AS74: 5223249003 | AT74: 5788391933 | AU74: 6419228328 | AV74: 7123645375
C75: Cena železa po spalování | F75: [Kč/t] | G75: 40148.76033 | K75: Výnos ZEVO | L75: [Kč/GJ] | M75: 0 | N75: =N74/'Technický model'!O42 -> 837.5404955 | O75: =O74/'Technický model'!P42 -> 1005.109145 | P75: =P74/'Technický model'!Q42 -> 1049.990155 | Q75: =Q74/'Technický model'!R42 -> 1099.441323 | R75: =R74/'Technický model'!S42 -> 1153.958967 | S75: =S74/'Technický model'!T42 -> 1214.096007 | T75: =T74/'Technický model'!U42 -> 1283.709155 | U75: =U74/'Technický model'!V42 -> 1360.393284 | V75: =V74/'Technický model'!W42 -> 1444.921325 | W75: =W74/'Technický model'!X42 -> 1538.155095 | X75: =X74/'Technický model'!Y42 -> 1474.614966 | Y75: =Y74/'Technický model'!Z42 -> 1588.255338 | Z75: =Z74/'Technický model'!AA42 -> 1713.832511 | AA75: =AA74/'Technický model'!AB42 -> 1852.683232 | AB75: =AB74/'Technický model'!AC42 -> 2006.300534 | AC75: =AC74/'Technický model'!AD42 -> 2176.352538 | AD75: =AD74/'Technický model'!AE42 -> 2364.703557 | AE75: =AE74/'Technický model'!AF42 -> 2573.437793 | AF75: =AF74/'Technický model'!AG42 -> 2804.885949 | AG75: =AG74/'Technický model'!AH42 -> 3061.655119 | AH75: =AH74/'Technický model'!AI42 -> 3265.02707 | AI75: =AI74/'Technický model'!AJ42 -> 3581.537168 | AJ75: =AJ74/'Technický model'!AK42 -> 3933.204974 | AK75: =AK74/'Technický model'!AL42 -> 4324.123094 | AL75: =AL74/'Technický model'!AM42 -> 4758.875443 | AM75: =AM74/'Technický model'!AN42 -> 5242.597462 | AN75: =AN74/'Technický model'!AO42 -> 5781.043828 | AO75: =AO74/'Technický model'!AP42 -> 6380.664599 | AP75: =AP74/'Technický model'!AQ42 -> 7048.690855 | AQ75: =AQ74/'Technický model'!AR42 -> 7793.231043 | AR75: =AR74/'Technický model'!AS42 -> 8623.379363 | AS75: =AS74/'Technický model'!AT42 -> 9549.337727 | AT75: =AT74/'Technický model'!AU42 -> 10582.55301 | AU75: =AU74/'Technický model'!AV42 -> 11735.87153 | AV75: =AV74/'Technický model'!AW42 -> 13023.71292
C76: Eskalace ceny stavebního materiálu (SPRUK) | F76: [%] | G76: 0.04 | K76: Cena tepla dodávána do distribuční soustavy | L76: [Kč/GJ] | M76: =$G$79 -> 240 | N76: =IF(($M$76*(1+$G$82)^M5)>N75,N75,$M$76*(1+$G$82)^M5) -> 240 | O76: =IF(($M$76*(1+$G$82)^N5)>O75,O75,$M$76*(1+$G$82)^N5) -> 249 | P76: 258.3375 | Q76: 268.0251563 | R76: 278.0760996 | S76: 288.5039533 | T76: 299.3228516 | U76: 310.5474585 | V76: 322.1929882 | W76: 334.2752253 | X76: 346.8105462 | Y76: 359.8159417 | Z76: 373.3090395 | AA76: 387.3081285 | AB76: 401.8321833 | AC76: 416.9008902 | AD76: 432.5346736 | AE76: 448.7547238 | AF76: 465.583026 | AG76: 483.0423895 | AH76: 501.1564791 | AI76: 519.949847 | AJ76: 539.4479663 | AK76: 559.677265 | AL76: 580.6651625 | AM76: 602.4401061 | AN76: 625.03161 | AO76: 648.4702954 | AP76: 672.7879315 | AQ76: 698.0174789 | AR76: 724.1931344 | AS76: 751.3503769 | AT76: 779.5260161 | AU76: 808.7582417 | AV76: 839.0866757
C77: Eskalace ceny železa po spalování | F77: [%] | G77: 0.04 | K77: Průměrná cena tepla | L77: [Kč/GJ] | M77: =AVERAGEA(N76:AV76) -> 480.4208961
B78: Ceny komodit | C78: Cena za elektrickou energii | F78: Kč/MWh | G78: 4250 | K78: Minimální cena tepla | L78: [Kč/GJ] | M78: =MIN(N76:AX76) -> 240
C79: Cena za tepelnou energii | F79: Kč/GJ | G79: 240
C80: Cena za zemní plyn | F80: [Kč/m3] | G80: 21
C81: Eskalace ceny elektrické energie | F81: [%] | G81: 0.0325
C82: Eskalace ceny tepelné energie | F82: [%] | G82: 0.0375
C83: Eskalace ceny zemního plynu | F83: [%] | G83: 0.08
B85: Výpočet diskontu metodou CAPM | C85: Státní dluhopisy 10 leté pro Českou Republiku | F85: [%] | G85: 0.0368
C86: Inflace v České Republice | F86: [%] | G86: 0.0575
C87: Bezriziková míra (Rf) | F87: [%] | G87: =((1+$G$85)/(1+$G$86))-1 -> -0.01957446809
C88: Tržní riziková prémie ČR (Rm-Rf=ERP) | F88: [%] | G88: =4.84% -> 0.0484
C89: Beta nezadlužená (βu) | F89: [-] | G89: 1.62
C90: Beta zadlužená (βl) | F90: [-] | G90: =$G$89*(1+$G$97*(1-$G$96)) -> 1.752365854
C91: Náklady na vlastní kapitál (Re) | F91: [%] | G91: =$G$87+$G$90*($G$88) -> 0.06524003926
C92: Náklady na cizí kapitál (Rd) | F92: [%] | G92: =$G$14 -> 0.0458
C93: Vlastní kapitál (E) | F93: [Kč] | G93: =$G$12 -> 1680484135
C94: Cizí kapitál (D) | F94: [Kč] | G94: =$G$13 -> 169515865
C95: Vlastní kapitál (E) a cizí kapitál (D) | F95: [Kč] | G95: =$G$93+$G$94 -> 1850000000
C96: Daňová sazba (T) | F96: [%] | G96: =$G$11 -> 0.19
C97: Poměr cizí kapitál (D) / vlastní kapitál (E) | F97: [Kč/Kč] | G97: =IF($G$93=0,0,$G$94/$G$93) -> 0.1008732314
C98: Vážená cena kapitálu (WACC) | F98: [%] | G98: =IF(($G$93+$G$94)=0,0,$G$91*$G$93/($G$95)+$G$92*(1-$G$96)*$G$94/($G$95)) -> 0.06266137865
B100: Odpisy | C100: Na 3.odpisovou skupinu připadá | F100: [%] | G100: 0.5 | K100: 0 | L100: 1 | M100: 2 | N100: 3 | O100: 4 | P100: 5 | Q100: 6 | R100: 7 | S100: 8 | T100: 9 | U100: 10 | V100: 11 | W100: 12 | X100: 13 | Y100: 14 | Z100: 15 | AA100: 16 | AB100: 17 | AC100: 18 | AD100: 19 | AE100: 20 | AF100: 21 | AG100: 22 | AH100: 23 | AI100: 24 | AJ100: 25 | AK100: 26 | AL100: 27 | AM100: 28 | AN100: 29 | AO100: 30 | AP100: 31 | AQ100: 32 | AR100: 33 | AS100: 34 | AT100: 35
C101: Na 4.odpisovou skupinu připadá | F101: [%] | G101: =1-G100 -> 0.5 | J101: =SUM(L101:AQ101) -> 925000000 | K101: Zrychlený odpis 3.skupiny | L101: =G113/$G$110+G112*G113 -> 92500000 | M101: =IF(L101=0,0,2*($G$113-SUM($L$101:L101))/($G$111-L100)) -> 166500000 | N101: =IF(M101=0,0,2*($G$113-SUM($L$101:M101))/($G$111-M100)) -> 148000000 | O101: =IF(N101=0,0,2*($G$113-SUM($L$101:N101))/($G$111-N100)) -> 129500000 | P101: =IF(O101=0,0,2*($G$113-SUM($L$101:O101))/($G$111-O100)) -> 111000000 | Q101: =IF(P101=0,0,2*($G$113-SUM($L$101:P101))/($G$111-P100)) -> 92500000 | R101: =IF(Q101=0,0,2*($G$113-SUM($L$101:Q101))/($G$111-Q100)) -> 74000000 | S101: =IF(R101=0,0,2*($G$113-SUM($L$101:R101))/($G$111-R100)) -> 55500000 | T101: =IF(S101=0,0,2*($G$113-SUM($L$101:S101))/($G$111-S100)) -> 37000000 | U101: =IF(T101=0,0,2*($G$113-SUM($L$101:T101))/($G$111-T100)) -> 18500000 | V101: =IF(U101=0,0,2*($G$113-SUM($L$101:U101))/($G$111-U100)) -> 0 | W101: =IF(V101=0,0,2*($G$113-SUM($L$101:V101))/($G$111-V100)) -> 0 | X101: =IF(W101=0,0,2*($G$113-SUM($L$101:W101))/($G$111-W100)) -> 0 | Y101: =IF(X101=0,0,2*($G$113-SUM($L$101:X101))/($G$111-X100)) -> 0 | Z101: =IF(Y101=0,0,2*($G$113-SUM($L$101:Y101))/($G$111-Y100)) -> 0 | AA101: =IF(Z101=0,0,2*($G$113-SUM($L$101:Z101))/($G$111-Z100)) -> 0 | AB101: =IF(AA101=0,0,2*($G$113-SUM($L$101:AA101))/($G$111-AA100)) -> 0 | AC101: =IF(AB101=0,0,2*($G$113-SUM($L$101:AB101))/($G$111-AB100)) -> 0 | AD101: =IF(AC101=0,0,2*($G$113-SUM($L$101:AC101))/($G$111-AC100)) -> 0 | AE101: =IF(AD101=0,0,2*($G$113-SUM($L$101:AD101))/($G$111-AD100)) -> 0 | AF101: =IF(AE101=0,0,2*($G$113-SUM($L$101:AE101))/($G$111-AE100)) -> 0 | AG101: =IF(AF101=0,0,2*($G$113-SUM($L$101:AF101))/($G$111-AF100)) -> 0 | AH101: =IF(AG101=0,0,2*($G$113-SUM($L$101:AG101))/($G$111-AG100)) -> 0 | AI101: =IF(AH101=0,0,2*($G$113-SUM($L$101:AH101))/($G$111-AH100)) -> 0 | AJ101: =IF(AI101=0,0,2*($G$113-SUM($L$101:AI101))/($G$111-AI100)) -> 0 | AK101: =IF(AJ101=0,0,2*($G$113-SUM($L$101:AJ101))/($G$111-AJ100)) -> 0 | AL101: =IF(AK101=0,0,2*($G$113-SUM($L$101:AK101))/($G$111-AK100)) -> 0 | AM101: =IF(AL101=0,0,2*($G$113-SUM($L$101:AL101))/($G$111-AL100)) -> 0 | AN101: =IF(AM101=0,0,2*($G$113-SUM($L$101:AM101))/($G$111-AM100)) -> 0 | AO101: =IF(AN101=0,0,2*($G$113-SUM($L$101:AN101))/($G$111-AN100)) -> 0 | AP101: =IF(AO101=0,0,2*($G$113-SUM($L$101:AO101))/($G$111-AO100)) -> 0 | AQ101: =IF(AP101=0,0,2*($G$113-SUM($L$101:AP101))/($G$111-AP100)) -> 0 | AR101: =IF(AQ101=0,0,2*($G$113-SUM($L$101:AQ101))/($G$111-AQ100)) -> 0 | AS101: =IF(AR101=0,0,2*($G$113-SUM($L$101:AR101))/($G$111-AR100)) -> 0 | AT101: =IF(AS101=0,0,2*($G$113-SUM($L$101:AS101))/($G$111-AS100)) -> 0
C102: 3. | D102: kotle | F102: [let] | G102: 10 | J102: =SUM(L102:AQ102) -> 925000000 | K102: Zrychlený odpis 4.skupiny | L102: =G122/$G$119+G121*G122 -> 46250000 | M102: =IF(L102=0,0,2*($G$122-SUM($L$102:L102))/($G$120-L100)) -> 87875000 | N102: =IF(M102=0,0,2*($G$122-SUM($L$102:M102))/($G$120-M100)) -> 83250000 | O102: =IF(N102=0,0,2*($G$122-SUM($L$102:N102))/($G$120-N100)) -> 78625000 | P102: =IF(O102=0,0,2*($G$122-SUM($L$102:O102))/($G$120-O100)) -> 74000000 | Q102: =IF(P102=0,0,2*($G$122-SUM($L$102:P102))/($G$120-P100)) -> 69375000 | R102: =IF(Q102=0,0,2*($G$122-SUM($L$102:Q102))/($G$120-Q100)) -> 64750000 | S102: =IF(R102=0,0,2*($G$122-SUM($L$102:R102))/($G$120-R100)) -> 60125000 | T102: =IF(S102=0,0,2*($G$122-SUM($L$102:S102))/($G$120-S100)) -> 55500000 | U102: =IF(T102=0,0,2*($G$122-SUM($L$102:T102))/($G$120-T100)) -> 50875000 | V102: =IF(U102=0,0,2*($G$122-SUM($L$102:U102))/($G$120-U100)) -> 46250000 | W102: =IF(V102=0,0,2*($G$122-SUM($L$102:V102))/($G$120-V100)) -> 41625000 | X102: =IF(W102=0,0,2*($G$122-SUM($L$102:W102))/($G$120-W100)) -> 37000000 | Y102: =IF(X102=0,0,2*($G$122-SUM($L$102:X102))/($G$120-X100)) -> 32375000 | Z102: =IF(Y102=0,0,2*($G$122-SUM($L$102:Y102))/($G$120-Y100)) -> 27750000 | AA102: =IF(Z102=0,0,2*($G$122-SUM($L$102:Z102))/($G$120-Z100)) -> 23125000 | AB102: =IF(AA102=0,0,2*($G$122-SUM($L$102:AA102))/($G$120-AA100)) -> 18500000 | AC102: =IF(AB102=0,0,2*($G$122-SUM($L$102:AB102))/($G$120-AB100)) -> 13875000 | AD102: =IF(AC102=0,0,2*($G$122-SUM($L$102:AC102))/($G$120-AC100)) -> 9250000 | AE102: =IF(AD102=0,0,2*($G$122-SUM($L$102:AD102))/($G$120-AD100)) -> 4625000 | AF102: =IF(AE102=0,0,2*($G$122-SUM($L$102:AE102))/($G$120-AE100)) -> 0 | AG102: =IF(AF102=0,0,2*($G$122-SUM($L$102:AF102))/($G$120-AF100)) -> 0 | AH102: =IF(AG102=0,0,2*($G$122-SUM($L$102:AG102))/($G$120-AG100)) -> 0 | AI102: =IF(AH102=0,0,2*($G$122-SUM($L$102:AH102))/($G$120-AH100)) -> 0 | AJ102: =IF(AI102=0,0,2*($G$122-SUM($L$102:AI102))/($G$120-AI100)) -> 0 | AK102: =IF(AJ102=0,0,2*($G$122-SUM($L$102:AJ102))/($G$120-AJ100)) -> 0 | AL102: =IF(AK102=0,0,2*($G$122-SUM($L$102:AK102))/($G$120-AK100)) -> 0 | AM102: =IF(AL102=0,0,2*($G$122-SUM($L$102:AL102))/($G$120-AL100)) -> 0 | AN102: =IF(AM102=0,0,2*($G$122-SUM($L$102:AM102))/($G$120-AM100)) -> 0 | AO102: =IF(AN102=0,0,2*($G$122-SUM($L$102:AN102))/($G$120-AN100)) -> 0 | AP102: =IF(AO102=0,0,2*($G$122-SUM($L$102:AO102))/($G$120-AO100)) -> 0 | AQ102: =IF(AP102=0,0,2*($G$122-SUM($L$102:AP102))/($G$120-AP100)) -> 0 | AR102: =IF(AQ102=0,0,2*($G$122-SUM($L$102:AQ102))/($G$120-AQ100)) -> 0 | AS102: =IF(AR102=0,0,2*($G$122-SUM($L$102:AR102))/($G$120-AR100)) -> 0 | AT102: =IF(AS102=0,0,2*($G$122-SUM($L$102:AS102))/($G$120-AS100)) -> 0
C103: 3. | D103: transformátory | F103: [let] | G103: 10 | J103: =SUM(L103:AQ103) -> 1850000000 | K103: Celkový součet zrychlených odpisů | L103: =SUM(L101:L102) -> 138750000 | M103: =SUM(M101:M102) -> 254375000 | N103: 231250000 | O103: 208125000 | P103: 185000000 | Q103: 161875000 | R103: 138750000 | S103: 115625000 | T103: 92500000 | U103: 69375000 | V103: 46250000 | W103: 41625000 | X103: 37000000 | Y103: 32375000 | Z103: 27750000 | AA103: 23125000 | AB103: 18500000 | AC103: 13875000 | AD103: 9250000 | AE103: 4625000 | AF103: =SUM(AF101:AF102) -> 0 | AG103: =SUM(AG101:AG102) -> 0 | AH103: =SUM(AH101:AH102) -> 0 | AI103: =SUM(AI101:AI102) -> 0 | AJ103: =SUM(AJ101:AJ102) -> 0 | AK103: =SUM(AK101:AK102) -> 0 | AL103: =SUM(AL101:AL102) -> 0 | AM103: =SUM(AM101:AM102) -> 0 | AN103: =SUM(AN101:AN102) -> 0 | AO103: =SUM(AO101:AO102) -> 0 | AP103: =SUM(AP101:AP102) -> 0 | AQ103: =SUM(AQ101:AQ102) -> 0 | AR103: =SUM(AR101:AR102) -> 0 | AS103: =SUM(AS101:AS102) -> 0 | AT103: =SUM(AT101:AT102) -> 0
C104: 3. | D104: rozvodna | F104: [let] | G104: 10
C105: 3. | D105: turbína | F105: [let] | G105: 10 | J105: =SUM(L105:AQ105) -> 925000000 | K105: Lineární odpis 3.skupiny | L105: =G113*$G$108/100 -> 50875000 | M105: =IF(L105=0,0,IF(SUM($L$105:L105)<$G$113,$G$113*$G$109/100,0)) -> 97125000 | N105: =IF(M105=0,0,IF(SUM($L$105:M105)<$G$113,$G$113*$G$109/100,0)) -> 97125000 | O105: =IF(N105=0,0,IF(SUM($L$105:N105)<$G$113,$G$113*$G$109/100,0)) -> 97125000 | P105: =IF(O105=0,0,IF(SUM($L$105:O105)<$G$113,$G$113*$G$109/100,0)) -> 97125000 | Q105: =IF(P105=0,0,IF(SUM($L$105:P105)<$G$113,$G$113*$G$109/100,0)) -> 97125000 | R105: =IF(Q105=0,0,IF(SUM($L$105:Q105)<$G$113,$G$113*$G$109/100,0)) -> 97125000 | S105: =IF(R105=0,0,IF(SUM($L$105:R105)<$G$113,$G$113*$G$109/100,0)) -> 97125000 | T105: =IF(S105=0,0,IF(SUM($L$105:S105)<$G$113,$G$113*$G$109/100,0)) -> 97125000 | U105: =IF(T105=0,0,IF(SUM($L$105:T105)<$G$113,$G$113*$G$109/100,0)) -> 97125000 | V105: =IF(U105=0,0,IF(SUM($L$105:U105)<$G$113,$G$113*$G$109/100,0)) -> 0 | W105: =IF(V105=0,0,IF(SUM($L$105:V105)<$G$113,$G$113*$G$109/100,0)) -> 0 | X105: =IF(W105=0,0,IF(SUM($L$105:W105)<$G$113,$G$113*$G$109/100,0)) -> 0 | Y105: =IF(X105=0,0,IF(SUM($L$105:X105)<$G$113,$G$113*$G$109/100,0)) -> 0 | Z105: =IF(Y105=0,0,IF(SUM($L$105:Y105)<$G$113,$G$113*$G$109/100,0)) -> 0 | AA105: =IF(Z105=0,0,IF(SUM($L$105:Z105)<$G$113,$G$113*$G$109/100,0)) -> 0 | AB105: =IF(AA105=0,0,IF(SUM($L$105:AA105)<$G$113,$G$113*$G$109/100,0)) -> 0 | AC105: =IF(AB105=0,0,IF(SUM($L$105:AB105)<$G$113,$G$113*$G$109/100,0)) -> 0 | AD105: =IF(AC105=0,0,IF(SUM($L$105:AC105)<$G$113,$G$113*$G$109/100,0)) -> 0 | AE105: =IF(AD105=0,0,IF(SUM($L$105:AD105)<$G$113,$G$113*$G$109/100,0)) -> 0 | AF105: =IF(AE105=0,0,IF(SUM($L$105:AE105)<$G$113,$G$113*$G$109/100,0)) -> 0 | AG105: =IF(AF105=0,0,IF(SUM($L$105:AF105)<$G$113,$G$113*$G$109/100,0)) -> 0 | AH105: =IF(AG105=0,0,IF(SUM($L$105:AG105)<$G$113,$G$113*$G$109/100,0)) -> 0 | AI105: =IF(AH105=0,0,IF(SUM($L$105:AH105)<$G$113,$G$113*$G$109/100,0)) -> 0 | AJ105: =IF(AI105=0,0,IF(SUM($L$105:AI105)<$G$113,$G$113*$G$109/100,0)) -> 0 | AK105: =IF(AJ105=0,0,IF(SUM($L$105:AJ105)<$G$113,$G$113*$G$109/100,0)) -> 0 | AL105: =IF(AK105=0,0,IF(SUM($L$105:AK105)<$G$113,$G$113*$G$109/100,0)) -> 0 | AM105: =IF(AL105=0,0,IF(SUM($L$105:AL105)<$G$113,$G$113*$G$109/100,0)) -> 0 | AN105: =IF(AM105=0,0,IF(SUM($L$105:AM105)<$G$113,$G$113*$G$109/100,0)) -> 0 | AO105: =IF(AN105=0,0,IF(SUM($L$105:AN105)<$G$113,$G$113*$G$109/100,0)) -> 0 | AP105: =IF(AO105=0,0,IF(SUM($L$105:AO105)<$G$113,$G$113*$G$109/100,0)) -> 0 | AQ105: =IF(AP105=0,0,IF(SUM($L$105:AP105)<$G$113,$G$113*$G$109/100,0)) -> 0 | AR105: =IF(AQ105=0,0,IF(SUM($L$105:AQ105)<$G$113,$G$113*$G$109/100,0)) -> 0 | AS105: =IF(AR105=0,0,IF(SUM($L$105:AR105)<$G$113,$G$113*$G$109/100,0)) -> 0 | AT105: =IF(AS105=0,0,IF(SUM($L$105:AS105)<$G$113,$G$113*$G$109/100,0)) -> 0
C106: 3. | D106: plynové generátory | F106: [let] | G106: 10 | J106: =SUM(L106:AQ106) -> 925000000 | K106: Lineární odpis 4.skupiny | L106: =G122*$G$117/100 -> 19887500 | M106: =IF(L106=0,0,IF(SUM($L$106:L106)<$G$113,$G$122*$G$118/100,0)) -> 47637500 | N106: =IF(M106=0,0,IF(SUM($L$106:M106)<$G$113,$G$122*$G$118/100,0)) -> 47637500 | O106: =IF(N106=0,0,IF(SUM($L$106:N106)<$G$113,$G$122*$G$118/100,0)) -> 47637500 | P106: =IF(O106=0,0,IF(SUM($L$106:O106)<$G$113,$G$122*$G$118/100,0)) -> 47637500 | Q106: =IF(P106=0,0,IF(SUM($L$106:P106)<$G$113,$G$122*$G$118/100,0)) -> 47637500 | R106: =IF(Q106=0,0,IF(SUM($L$106:Q106)<$G$113,$G$122*$G$118/100,0)) -> 47637500 | S106: =IF(R106=0,0,IF(SUM($L$106:R106)<$G$113,$G$122*$G$118/100,0)) -> 47637500 | T106: =IF(S106=0,0,IF(SUM($L$106:S106)<$G$113,$G$122*$G$118/100,0)) -> 47637500 | U106: =IF(T106=0,0,IF(SUM($L$106:T106)<$G$113,$G$122*$G$118/100,0)) -> 47637500 | V106: =IF(U106=0,0,IF(SUM($L$106:U106)<$G$113,$G$122*$G$118/100,0)) -> 47637500 | W106: =IF(V106=0,0,IF(SUM($L$106:V106)<$G$113,$G$122*$G$118/100,0)) -> 47637500 | X106: =IF(W106=0,0,IF(SUM($L$106:W106)<$G$113,$G$122*$G$118/100,0)) -> 47637500 | Y106: =IF(X106=0,0,IF(SUM($L$106:X106)<$G$113,$G$122*$G$118/100,0)) -> 47637500 | Z106: =IF(Y106=0,0,IF(SUM($L$106:Y106)<$G$113,$G$122*$G$118/100,0)) -> 47637500 | AA106: =IF(Z106=0,0,IF(SUM($L$106:Z106)<$G$113,$G$122*$G$118/100,0)) -> 47637500 | AB106: =IF(AA106=0,0,IF(SUM($L$106:AA106)<$G$113,$G$122*$G$118/100,0)) -> 47637500 | AC106: =IF(AB106=0,0,IF(SUM($L$106:AB106)<$G$113,$G$122*$G$118/100,0)) -> 47637500 | AD106: =IF(AC106=0,0,IF(SUM($L$106:AC106)<$G$113,$G$122*$G$118/100,0)) -> 47637500 | AE106: =IF(AD106=0,0,IF(SUM($L$106:AD106)<$G$113,$G$122*$G$118/100,0)) -> 47637500 | AF106: =IF(AE106=0,0,IF(SUM($L$106:AE106)<$G$113,$G$122*$G$118/100,0)) -> 0 | AG106: =IF(AF106=0,0,IF(SUM($L$106:AF106)<$G$113,$G$122*$G$118/100,0)) -> 0 | AH106: =IF(AG106=0,0,IF(SUM($L$106:AG106)<$G$113,$G$122*$G$118/100,0)) -> 0 | AI106: =IF(AH106=0,0,IF(SUM($L$106:AH106)<$G$113,$G$122*$G$118/100,0)) -> 0 | AJ106: =IF(AI106=0,0,IF(SUM($L$106:AI106)<$G$113,$G$122*$G$118/100,0)) -> 0 | AK106: =IF(AJ106=0,0,IF(SUM($L$106:AJ106)<$G$113,$G$122*$G$118/100,0)) -> 0 | AL106: =IF(AK106=0,0,IF(SUM($L$106:AK106)<$G$113,$G$122*$G$118/100,0)) -> 0 | AM106: =IF(AL106=0,0,IF(SUM($L$106:AL106)<$G$113,$G$122*$G$118/100,0)) -> 0 | AN106: =IF(AM106=0,0,IF(SUM($L$106:AM106)<$G$113,$G$122*$G$118/100,0)) -> 0 | AO106: =IF(AN106=0,0,IF(SUM($L$106:AN106)<$G$113,$G$122*$G$118/100,0)) -> 0 | AP106: =IF(AO106=0,0,IF(SUM($L$106:AO106)<$G$113,$G$122*$G$118/100,0)) -> 0 | AQ106: =IF(AP106=0,0,IF(SUM($L$106:AP106)<$G$113,$G$122*$G$118/100,0)) -> 0 | AR106: =IF(AQ106=0,0,IF(SUM($L$106:AQ106)<$G$113,$G$122*$G$118/100,0)) -> 0 | AS106: =IF(AR106=0,0,IF(SUM($L$106:AR106)<$G$113,$G$122*$G$118/100,0)) -> 0 | AT106: =IF(AS106=0,0,IF(SUM($L$106:AS106)<$G$113,$G$122*$G$118/100,0)) -> 0
C107: 3. | D107: Doba odepisování lineárně | F107: [let] | G107: 10 | J107: =SUM(L107:AQ107) -> 1850000000 | K107: Celkový součet lineárních odpisů | L107: =SUM(L105:L106) -> 70762500 | M107: 144762500 | N107: 144762500 | O107: 144762500 | P107: 144762500 | Q107: 144762500 | R107: 144762500 | S107: 144762500 | T107: 144762500 | U107: 144762500 | V107: 47637500 | W107: 47637500 | X107: 47637500 | Y107: 47637500 | Z107: 47637500 | AA107: 47637500 | AB107: 47637500 | AC107: 47637500 | AD107: 47637500 | AE107: 47637500 | AF107: =SUM(AF105:AF106) -> 0 | AG107: 0 | AH107: 0 | AI107: 0 | AJ107: 0 | AK107: 0 | AL107: 0 | AM107: 0 | AN107: 0 | AO107: 0 | AP107: 0 | AQ107: 0 | AR107: 0 | AS107: 0 | AT107: 0
C108: 3. | D108: Sazba 1. roku odepisování lineárně | F108: [%] | G108: 5.5
C109: 3. | D109: Sazba dalších let odepisování lineárně | F109: [%] | G109: 10.5
C110: 3. | D110: Sazba 1. roku odepisování zrychleně | F110: [%] | G110: 10
C111: 3. | D111: Sazba dalších let odepisování zrychleně | F111: [%] | G111: 11
C112: 3. | D112: Navýšený odpis v prvním roce zrychleně | F112: [%] | G112: 0
C113: 3. | D113: Výše investice v 3.odpisové skupině | F113: [Kč] | G113: =G7*G100 -> 925000000
C114: 4. | D114: budovy výrobní pro energetiku | F114: [let] | G114: 20
C115: 4. | D115: energetická výrobní díla | F115: [let] | G115: 20
C116: 4. | D116: Doba odepisování lineárně | F116: [let] | G116: 20
C117: 4. | D117: Sazba 1. roku odepisování lineárně | F117: [%] | G117: 2.15
C118: 4. | D118: Sazba dalších let odepisování lineárně | F118: [%] | G118: 5.15
C119: 4. | D119: Sazba 1. roku odepisování zrychleně | F119: [%] | G119: 20
C120: 4. | D120: Sazba dalších let odepisování zrychleně | F120: [%] | G120: 21
C121: 4. | D121: Navýšený odpočet v prvním roce zrychleně | F121: [%] | G121: 0
C122: 4. | D122: Výše investice v 3.odpisové skupině | F122: [Kč] | G122: =G7*G101 -> 925000000
B126: Grafy
X129: Scénář | Y129: Optimistický | Z129: -1680484135 | AA129: -1564724448 | AB129: -1414327096 | AC129: -1240553906 | AD129: -1040257820 | AE129: -809901026.2 | AF129: -514160827.9 | AG129: -178483662.6 | AH129: 202209697.2 | AI129: 633615062.9 | AJ129: 1122117918 | AK129: 1656421310 | AL129: 2262998282 | AM129: 2950832464 | AN129: 3729985545 | AO129: 4611724270 | AP129: 5608662234 | AQ129: 6734918205 | AR129: 8006292875 | AS129: 9440466186 | AT129: 1.10572176e+10 | AU129: 1.286962087e+10 | AV129: 1.491147183e+10 | AW129: 1.721044138e+10 | AX129: 1.979746846e+10 | AY129: 2.270714161e+10 | AZ129: 2.597812476e+10 | BA129: 2.965363241e+10 | BB129: 3.378195979e+10 | BC129: 3.841707457e+10 | BD129: 4.361927698e+10 | BE129: 4.945593636e+10 | BF129: 5.600231299e+10 | BG129: 6.334247497e+10 | BH129: 7.157032106e+10 | BI129: 8.079072191e+10
Y130: Pesimistický | Z130: -1680484135 | AA130: -1579709448 | AB130: -1466028951 | AC130: -1345246586 | AD130: -1217745394 | AE130: -1084081889 | AF130: -912590061.8 | AG130: -736383631.2 | AH130: -556469062.4 | AI130: -374133871.5 | AJ130: -190997933.7 | AK130: -27526801.12 | AL130: 132260455.2 | AM130: 285349923.8 | AN130: 428093881.6 | AO130: 556103497.3 | AP130: 664124750.4 | AQ130: 745895021.5 | AR130: 793977431.4 | AS130: 789707074.2 | AT130: 720154034 | AU130: 570219965.4 | AV130: 322171130.6 | AW130: -44779646.22 | AX130: -554954812.3 | AY130: -1236767303 | AZ130: -2123360177 | BA130: -3253343375 | BB130: -4671642191 | BC130: -6430474282 | BD130: -8590474529 | BE130: -1.122199003e+10 | BF130: -1.440657079e+10 | BG130: -1.823868569e+10 | BH130: -2.282769752e+10 | BI130: -2.830013631e+10
Y131: Realistický | Z131: -1680484135 | AA131: -1572216948 | AB131: -1440169332 | AC131: -1290400601 | AD131: -1124992075 | AE131: -942530892.8 | AF131: -710149534.7 | AG131: -456126379.7 | AH131: -178643673.5 | AI131: 124243597 | AJ131: 454613059.9 | AK131: 796226153 | AL131: 1169893747 | AM131: 1578118502 | AN131: 2023551238 | AO131: 2508992284 | AP131: 3037391247 | AQ131: 3611844831 | AR131: 4235592246 | AS131: 4912007707 | AT131: 5644589419 | AU131: 6427893209 | AV131: 7274665628 | AW131: 8188664309 | AX131: 9173675742 | AY131: 1.023347355e+10 | AZ131: 1.137176693e+10 | BA131: 1.259213754e+10 | BB131: 1.389796287e+10 | BC131: 1.529232384e+10 | BD131: 1.677789396e+10 | BE131: 1.835680711e+10 | BF131: 2.003050042e+10 | BG131: 2.17995283e+10 | BH131: 2.366334305e+10 | BI131: 2.562003681e+10
AX135: =SUM(AX136:AX146) -> -113923296.8
AN136: =SUM(AN137:AN139) -> -17476650 | AS136: =SUM(AS137:AS144) -> -46841064.47 | AV136: 040209 - Kompozitní tkaniny | AX136: =-($G$21*'Technický model'!O27)*(1+$G$32)^M5 -> -2056762.933 | AY136: =AX136/$AX$135 -> 0.01805392744
AM137: Teplonosná voda | AN137: =-($G$43*'Technický model'!O15)*(1+$G$46)^M5 -> -7573500 | AO137: =AN137/$AN$136 -> 0.4333496408 | AR137: Hydroxid sodný | AS137: =-$G$49*'Technický model'!O19*(1+$G$57)^M5 -> -20462967.11 | AT137: =AS137/$AS$136 -> 0.4368595663 | AV137: 040210 - Organické přírodní produkty | AX137: =-($G$22*'Technický model'!O28)*(1+$G$33)^M5 -> -493085.3881 | AY137: =AX137/$AX$135 -> 0.004328222603
AM138: Výrobní voda | AN138: =-($G$44*'Technický model'!O17)*(1+$G$47)^M5 -> -9845550 | AO138: =AN138/$AN$136 -> 0.563354533 | AR138: Vápenný hydrát | AS138: =-$G$50*'Technický model'!O20*(1+$G$58)^M5 -> -597177.5812 | AT138: =AS138/$AS$136 -> 0.01274901815 | AV138: 070210 - Plastový odpad | AX138: =-($G$23*'Technický model'!O29)*(1+$G$34)^M5 -> -13783457.29 | AY138: 0.1209889257
AM139: Odpadní voda | AN139: =-($G$45*'Technický model'!O55)*(1+$G$48)^M5 -> -57600 | AO139: 0.003295826145 | AR139: Čpavková voda | AS139: =-$G$51*'Technický model'!O21*(1+$G$59)^M5 -> -3420010.82 | AT139: 0.07301308924 | AV139: 120105 - Plastové hobliny | AX139: =-($G$24*'Technický model'!O30)*(1+$G$35)^M5 -> -1902008.326 | AY139: 0.0166955169
AR140: Kyselina solná | AS140: =-$G$52*'Technický model'!O22*(1+$G$60)^M5 -> -710729.3413 | AT140: 0.01517321071 | AV140: 150106 - Směsné obaly | AX140: =-($G$25*'Technický model'!O31)*(1+$G$36)^M5 -> -3743671.496 | AY140: 0.03286133392
AR141: Chlorid železitý | AS141: =-$G$53*'Technický model'!O23*(1+$G$61)^M5 -> -1182286.564 | AT141: 0.02524038635 | AV141: 170201 - Dřevo | AX141: =-($G$26*'Technický model'!O32)*(1+$G$37)^M5 -> -709139.5963 | AY141: 0.006224710981
AR142: Sulfid sodný | AS142: =-$G$54*'Technický model'!O24*(1+$G$62)^M5 -> -15154479.57 | AT142: 0.3235297861 | AV142: 200101 - Papír | AX142: =-($G$27*'Technický model'!O33)*(1+$G$38)^M5 -> -792790.2508 | AY142: 0.006958982696
AR143: Činidla kotelních vod | AS143: =-$G$55*'Technický model'!O25*(1+$G$63)^M5 -> -5306960.432 | AT143: 0.1132971783 | AV143: 200111 - Textil | AX143: =-($G$28*'Technický model'!O34)*(1+$G$39)^M5 -> -593360.4227 | AY143: 0.005208420399
AR144: Flokulant | AS144: =-$G$56*'Technický model'!O26*(1+$G$64)^M5 -> -6453.053744 | AT144: 0.0001377648825 | AV144: 200301 - Směsný komunální odpad | AX144: =-($G$29*'Technický model'!O35)*(1+$G$40)^M5 -> -78585945.26 | AY144: 0.6898145287
AV145: 200307 - Objemný odpad | AX145: =-($G$30*'Technický model'!O36)*(1+$G$41)^M5 -> -6568253.158 | AY145: 0.05765504813
AV146: Ostatní nezařazený odpad | AX146: =-($G$31*'Technický model'!O37)*(1+$G$42)^M5 -> -4694822.634 | AY146: 0.0412103825
Z159: =SUM(Z160:Z165) -> -254222911.2
X160: Cena zemního plynu | Z160: =-$G$80*'Technický model'!O12*(1+$G$83)^M5 -> -3231900 | AA160: =Z160/$Z$159 -> 0.0127128589
X161: Opravy, údržba a reinvestice | Z161: =-$G$68*$G$7 -> -27750000 | AA161: =Z161/$Z$159 -> 0.1091561727
X162: Celkové náklady na palivo (odpad) | Z162: =SUM(N20:N30) -> -113923296.8 | AA162: 0.4481236416
X163: Celkové náklady na vodu | Z163: =SUM(N32:N34) -> -17476650 | AA163: 0.0687453775
X164: Celkové náklady na chemikálie | Z164: =SUM(N36:N43) -> -46841064.47 | AA164: 0.1842519395
X165: Mzdy zaměstnancům (včetně zdravotního a sociálního) | Z165: =-$G$72*(1+$G$73)^M5 -> -45000000 | AA165: 0.1770100098
Z167: =SUM(Z168:Z171) -> 416099087.8
X168: Tržby z prodeje stavebního materiálu (SPRUK) | Z168: ='Technický model'!O58*'Ekonomický model'!$G$74*(1+$G$76)^M5 -> 175537190.1 | AA168: =Z168/$Z$167 -> 0.4218639147
X169: Tržby z prodeje tepelné energie | Z169: ='Technický model'!O42*'Ekonomický model'!$G$79*(1+$G$82)^M5 -> 131274000 | AA169: =Z169/$Z$167 -> 0.3154873535
X170: Tržby z prodeje železa | Z170: ='Technický model'!O57*'Ekonomický model'!$G$75*(1+$G$77)^M5 -> 39747272.73 | AA170: 0.09552357573
X171: Tržby z prodeje elektrické energie | Z171: ='Technický model'!O50*'Ekonomický model'!$G$78*(1+$G$81)^M5 -> 69540625 | AA171: 0.1671251561
X174: Tržby z prodeje elektrické energie | Z174: ='Technický model'!O50*'Ekonomický model'!$G$78*(1+$G$81)^M5 -> 69540625
X175: Tržby z prodeje stavebního materiálu (SPRUK) | Z175: ='Technický model'!O58*'Ekonomický model'!$G$74*(1+$G$76)^M5 -> 175537190.1
B183: Citlivostní analýzy
C185: Změna hodnoty WACC | R185: Eskalace ceny SPRUK
D186: NPV [Kč] | S186: NPV [Kč]
C187: [%] | D187: =$M$65 -> 4597673094 | R187: [%] | S187: =$M$65 -> 4597673094
C188: 0.03 | D188: 1.073298574e+10 | R188: -0.08 | S188: -2311776221
C189: 0.04 | D189: 8267756390 | R189: -0.06 | S189: -1904274105
C190: 0.05 | D190: 6381114422 | R190: -0.04 | S190: -1344343257
C191: 0.06 | D191: 4926435240 | R191: -0.02 | S191: -560517048.8
C192: 0.07 | D192: 3796372252 | R192: 0 | S192: 574463767
C193: 0.08 | D193: 2911875078 | R193: 0.02 | S193: 2192099441
C194: 0.09 | D194: 2214387977 | R194: 0.03 | S194: 3265838878
C195: 0.0954 | D195: 1899662554 | R195: 0.04 | S195: 4597673094
C196: 0.1 | D196: 1660279373 | R196: 0.05 | S196: 6253992724
C197: 0.11 | D197: 1216844236 | R197: 0.06 | S197: 8319027979
C198: 0.12 | D198: 859420681.6 | R198: 0.07 | S198: 1.089950183e+10
C199: 0.13 | D199: 569299697.8 | R199: 0.08 | S199: 1.412983412e+10
C200: 0.14 | D200: 332202155.3 | R200: 0.09 | S200: 1.817973146e+10
C201: 0.15 | D201: 137163528.2 | R201: 0.1 | S201: 2.326334881e+10
C202: 0.16 | D202: -24286966.31 | R202: 0.11 | S202: 2.965077974e+10
C203: 0.17 | D203: -158733596.7 | R203: 0.12 | S203: 3.768245081e+10
C204: 0.18 | D204: -271325595.9 | R204: 0.13 | S204: 4.778713343e+10
C210: Eskalace ceny tepla | R210: Eskalace ceny zemního plynu
D211: NPV [Kč] | S211: NPV [Kč]
C212: [%] | D212: =$M$65 -> 4597673094 | R212: [%] | S212: =$M$65 -> 4597673094
C213: -0.02 | D213: 1105559536 | R213: -0.06 | S213: 4887662392
C214: 0 | D214: 1891757609 | R214: -0.04 | S214: 4878693381
C215: 0.02 | D215: 3068306080 | R215: -0.02 | S215: 4865696938
C216: 0.04 | D216: 4867293950 | R216: 0 | S216: 4846468172
C217: 0.06 | D217: 7650244378 | R217: 0.02 | S217: 4817502146
C218: 0.08 | D218: 1.199580651e+10 | R218: 0.04 | S218: 4773211968
C219: 0.1 | D219: 1.882622807e+10 | R219: 0.06 | S219: 4704680371
C220: 0.12 | D220: 2.96094313e+10 | R220: 0.08 | S220: 4597673094
C221: 0.14 | D221: 4.667667427e+10 | R221: 0.1 | S221: 4429489441
C222: 0.16 | D222: 7.371930606e+10 | R222: 0.12 | S222: 4163989901
C223: 0.18 | D223: 1.165623674e+11 | R223: 0.14 | S223: 3743780071
C224: 0.2 | D224: 1.843632054e+11 | R224: 0.16 | S224: 3076132682
C225: 0.22 | D225: 2.914611972e+11 | R225: 0.18 | S225: 1927083190
C226: 0.24 | D226: 4.602145517e+11 | R226: 0.2 | S226: -13426080.18
C227: 0.26 | D227: 7.253327863e+11 | R227: 0.22 | S227: -3173880908
C228: 0.28 | D228: 1.140459756e+12 | R228: 0.24 | S228: -8227336440
C229: 0.3 | D229: 1.788126544e+12 | R229: 0.26 | S229: -1.62234152e+10
R230: 0.28 | S230: -2.879106702e+10
R231: 0.3 | S231: -4.843793939e+10
R232: 0.32 | S232: -7.900084894e+10
R233: 0.34 | S233: -1.263342329e+11
C235: Eskalace ceny 040209 - Kompozitní tkaniny | R235: Eskalace ceny 070210 - Plastový odpad
D236: NPV [Kč] | S236: NPV [Kč]
C237: [%] | D237: =$M$65 -> 4597673094 | R237: [%] | S237: =$M$65 -> 4597673094
C238: -0.06 | D238: 4701350263 | R238: -0.06 | S238: 5292263531
C239: -0.04 | D239: 4695642436 | R239: -0.04 | S239: 5254095119
C240: -0.02 | D240: 4687371572 | R240: -0.02 | S240: 5198752092
... 177 more rows
